Workbook

Sheet Dashboard
B2: German 1. Bundesliga | K2: Match day | L2: =Control!C4 -> 34 | O2: Season | T2: Points for a Win | AH2: www.cs-analytics.de
B5: # | C5: P | D5: PW | E5: T | G5: M | H5: W | I5: D | J5: L | K5: W% D% L% | L5: GF | M5: GA | N5: Goal Difference | P5: Average Goals for | R5: Average Goals against | T5: Points | V5: PpM | W5: PtH | X5: PtA | Y5: Last 10 matches | Z5: Last 10 positions | AA5: B | AB5: Avg. | AC5: W | AE5: ="Results Match day "&myMatchDay -> Results Match day 34
B6: ='Calculation Table'!C31 -> 1 | C6: ='Calculation Table'!D31 -> 1 | D6: ='Calculation Table'!E31 -> 1 | E6: ='Calculation Table'!F31 -> ↔ | F6: ='Calculation Table'!H31 -> FC Bayern München | G6: ='Calculation Table'!I31 -> 34 | H6: ='Calculation Table'!J31 -> 28 | I6: ='Calculation Table'!K31 -> 4 | J6: ='Calculation Table'!L31 -> 2 | L6: ='Calculation Table'!M31 -> 80 | M6: ='Calculation Table'!N31 -> 17 | N6: ='Calculation Table'!O31 -> 63 | P6: ='Calculation Table'!P31 -> 2.352941176 | S6: ='Calculation Table'!Q31 -> 0.5 | U6: ='Calculation Table'!R31 -> 88 | V6: ='Calculation Table'!S31 -> 2.588235294 | W6: ='Calculation Table'!T31 -> 46 | X6: ='Calculation Table'!U31 -> 42 | AA6: ='Calculation Table'!AP31 -> 1 | AB6: ='Calculation Table'!AQ31 -> 1 | AC6: ='Calculation Table'!AR31 -> 1 | AE6: ='Calculation Table'!H100 -> FC Augsburg | AF6: ='Calculation Table'!I100 -> 1 | AG6: ='Calculation Table'!J100 -> 3 | AH6: ='Calculation Table'!K100 -> Hamburger SV
B7: ='Calculation Table'!C32 -> 2 | C7: ='Calculation Table'!D32 -> 2 | D7: ='Calculation Table'!E32 -> 2 | E7: ='Calculation Table'!F32 -> ↔ | F7: ='Calculation Table'!H32 -> Borussia Dortmund | G7: ='Calculation Table'!I32 -> 34 | H7: ='Calculation Table'!J32 -> 24 | I7: ='Calculation Table'!K32 -> 6 | J7: ='Calculation Table'!L32 -> 4 | L7: ='Calculation Table'!M32 -> 82 | M7: ='Calculation Table'!N32 -> 34 | N7: ='Calculation Table'!O32 -> 48 | P7: ='Calculation Table'!P32 -> 2.411764706 | S7: ='Calculation Table'!Q32 -> 1 | U7: ='Calculation Table'!R32 -> 78 | V7: ='Calculation Table'!S32 -> 2.294117647 | W7: ='Calculation Table'!T32 -> 45 | X7: ='Calculation Table'!U32 -> 33 | AA7: ='Calculation Table'!AP32 -> 2 | AB7: ='Calculation Table'!AQ32 -> 2 | AC7: ='Calculation Table'!AR32 -> 2 | AE7: ='Calculation Table'!H101 -> FC Bayern München | AF7: ='Calculation Table'!I101 -> 3 | AG7: ='Calculation Table'!J101 -> 1 | AH7: ='Calculation Table'!K101 -> Hannover 96
B8: ='Calculation Table'!C33 -> 3 | C8: ='Calculation Table'!D33 -> 3 | D8: ='Calculation Table'!E33 -> 3 | E8: ='Calculation Table'!F33 -> ↔ | F8: ='Calculation Table'!H33 -> Bayer Leverkusen | G8: ='Calculation Table'!I33 -> 34 | H8: ='Calculation Table'!J33 -> 18 | I8: ='Calculation Table'!K33 -> 6 | J8: ='Calculation Table'!L33 -> 10 | L8: ='Calculation Table'!M33 -> 56 | M8: ='Calculation Table'!N33 -> 40 | N8: ='Calculation Table'!O33 -> 16 | P8: ='Calculation Table'!P33 -> 1.647058824 | S8: ='Calculation Table'!Q33 -> 1.176470588 | U8: ='Calculation Table'!R33 -> 60 | V8: ='Calculation Table'!S33 -> 1.764705882 | W8: ='Calculation Table'!T33 -> 33 | X8: ='Calculation Table'!U33 -> 27 | AA8: ='Calculation Table'!AP33 -> 3 | AB8: ='Calculation Table'!AQ33 -> 4.5 | AC8: ='Calculation Table'!AR33 -> 8 | AE8: ='Calculation Table'!H102 -> Darmstadt 98 | AF8: ='Calculation Table'!I102 -> 0 | AG8: ='Calculation Table'!J102 -> 2 | AH8: ='Calculation Table'!K102 -> Borussia M'gladbach
B9: ='Calculation Table'!C34 -> 4 | C9: ='Calculation Table'!D34 -> 4 | D9: ='Calculation Table'!E34 -> 4 | E9: ='Calculation Table'!F34 -> ↔ | F9: ='Calculation Table'!H34 -> Borussia M'gladbach | G9: ='Calculation Table'!I34 -> 34 | H9: ='Calculation Table'!J34 -> 17 | I9: ='Calculation Table'!K34 -> 4 | J9: ='Calculation Table'!L34 -> 13 | L9: ='Calculation Table'!M34 -> 67 | M9: ='Calculation Table'!N34 -> 50 | N9: ='Calculation Table'!O34 -> 17 | P9: ='Calculation Table'!P34 -> 1.970588235 | S9: ='Calculation Table'!Q34 -> 1.470588235 | U9: ='Calculation Table'!R34 -> 55 | V9: ='Calculation Table'!S34 -> 1.617647059 | W9: ='Calculation Table'!T34 -> 40 | X9: ='Calculation Table'!U34 -> 15 | AA9: ='Calculation Table'!AP34 -> 4 | AB9: ='Calculation Table'!AQ34 -> 4.6 | AC9: ='Calculation Table'!AR34 -> 6 | AE9: ='Calculation Table'!H103 -> Borussia Dortmund | AF9: ='Calculation Table'!I103 -> 2 | AG9: ='Calculation Table'!J103 -> 2 | AH9: ='Calculation Table'!K103 -> 1.FC Köln
B10: ='Calculation Table'!C35 -> 5 | C10: ='Calculation Table'!D35 -> 5 | D10: ='Calculation Table'!E35 -> 7 | E10: ='Calculation Table'!F35 -> ▲ | F10: ='Calculation Table'!H35 -> FC Schalke 04 | G10: ='Calculation Table'!I35 -> 34 | H10: ='Calculation Table'!J35 -> 15 | I10: ='Calculation Table'!K35 -> 7 | J10: ='Calculation Table'!L35 -> 12 | L10: ='Calculation Table'!M35 -> 51 | M10: ='Calculation Table'!N35 -> 49 | N10: ='Calculation Table'!O35 -> 2 | P10: ='Calculation Table'!P35 -> 1.5 | S10: ='Calculation Table'!Q35 -> 1.441176471 | U10: ='Calculation Table'!R35 -> 52 | V10: ='Calculation Table'!S35 -> 1.529411765 | W10: ='Calculation Table'!T35 -> 29 | X10: ='Calculation Table'!U35 -> 23 | AA10: ='Calculation Table'!AP35 -> 4 | AB10: ='Calculation Table'!AQ35 -> 5.9 | AC10: ='Calculation Table'!AR35 -> 7 | AE10: ='Calculation Table'!H104 -> TSG 1899 Hoffenheim | AF10: ='Calculation Table'!I104 -> 1 | AG10: ='Calculation Table'!J104 -> 4 | AH10: ='Calculation Table'!K104 -> FC Schalke 04
B11: ='Calculation Table'!C36 -> 6 | C11: ='Calculation Table'!D36 -> 6 | D11: ='Calculation Table'!E36 -> 5 | E11: ='Calculation Table'!F36 -> ▼ | F11: ='Calculation Table'!H36 -> FSV Mainz 05 | G11: ='Calculation Table'!I36 -> 34 | H11: ='Calculation Table'!J36 -> 14 | I11: ='Calculation Table'!K36 -> 8 | J11: ='Calculation Table'!L36 -> 12 | L11: ='Calculation Table'!M36 -> 46 | M11: ='Calculation Table'!N36 -> 42 | N11: ='Calculation Table'!O36 -> 4 | P11: ='Calculation Table'!P36 -> 1.352941176 | S11: ='Calculation Table'!Q36 -> 1.235294118 | U11: ='Calculation Table'!R36 -> 50 | V11: ='Calculation Table'!S36 -> 1.470588235 | W11: ='Calculation Table'!T36 -> 28 | X11: ='Calculation Table'!U36 -> 22 | AA11: ='Calculation Table'!AP36 -> 5 | AB11: ='Calculation Table'!AQ36 -> 6 | AC11: ='Calculation Table'!AR36 -> 7 | AE11: ='Calculation Table'!H105 -> Bayer Leverkusen | AF11: ='Calculation Table'!I105 -> 3 | AG11: ='Calculation Table'!J105 -> 2 | AH11: ='Calculation Table'!K105 -> FC Ingolstadt
B12: ='Calculation Table'!C37 -> 7 | C12: ='Calculation Table'!D37 -> 7 | D12: ='Calculation Table'!E37 -> 6 | E12: ='Calculation Table'!F37 -> ▼ | F12: ='Calculation Table'!H37 -> Hertha BSC Berlin | G12: ='Calculation Table'!I37 -> 34 | H12: ='Calculation Table'!J37 -> 14 | I12: ='Calculation Table'!K37 -> 8 | J12: ='Calculation Table'!L37 -> 12 | L12: ='Calculation Table'!M37 -> 42 | M12: ='Calculation Table'!N37 -> 42 | N12: ='Calculation Table'!O37 -> 0 | P12: ='Calculation Table'!P37 -> 1.235294118 | S12: ='Calculation Table'!Q37 -> 1.235294118 | U12: ='Calculation Table'!R37 -> 50 | V12: ='Calculation Table'!S37 -> 1.470588235 | W12: ='Calculation Table'!T37 -> 32 | X12: ='Calculation Table'!U37 -> 18 | AA12: ='Calculation Table'!AP37 -> 3 | AB12: ='Calculation Table'!AQ37 -> 4.1 | AC12: ='Calculation Table'!AR37 -> 7 | AE12: ='Calculation Table'!H106 -> FSV Mainz 05 | AF12: ='Calculation Table'!I106 -> 0 | AG12: ='Calculation Table'!J106 -> 0 | AH12: ='Calculation Table'!K106 -> Hertha BSC Berlin
B13: ='Calculation Table'!C38 -> 8 | C13: ='Calculation Table'!D38 -> 8 | D13: ='Calculation Table'!E38 -> 8 | E13: ='Calculation Table'!F38 -> ↔ | F13: ='Calculation Table'!H38 -> VfL Wolfsburg | G13: ='Calculation Table'!I38 -> 34 | H13: ='Calculation Table'!J38 -> 12 | I13: ='Calculation Table'!K38 -> 9 | J13: ='Calculation Table'!L38 -> 13 | L13: ='Calculation Table'!M38 -> 47 | M13: ='Calculation Table'!N38 -> 49 | N13: ='Calculation Table'!O38 -> -2 | P13: ='Calculation Table'!P38 -> 1.382352941 | S13: ='Calculation Table'!Q38 -> 1.441176471 | U13: ='Calculation Table'!R38 -> 45 | V13: ='Calculation Table'!S38 -> 1.323529412 | W13: ='Calculation Table'!T38 -> 32 | X13: ='Calculation Table'!U38 -> 13 | AA13: ='Calculation Table'!AP38 -> 7 | AB13: ='Calculation Table'!AQ38 -> 8.3 | AC13: ='Calculation Table'!AR38 -> 10 | AE13: ='Calculation Table'!H107 -> Werder Bremen | AF13: ='Calculation Table'!I107 -> 1 | AG13: ='Calculation Table'!J107 -> 0 | AH13: ='Calculation Table'!K107 -> Eintracht Frankfurt
B14: ='Calculation Table'!C39 -> 9 | C14: ='Calculation Table'!D39 -> 9 | D14: ='Calculation Table'!E39 -> 9 | E14: ='Calculation Table'!F39 -> ↔ | F14: ='Calculation Table'!H39 -> 1.FC Köln | G14: ='Calculation Table'!I39 -> 34 | H14: ='Calculation Table'!J39 -> 10 | I14: ='Calculation Table'!K39 -> 13 | J14: ='Calculation Table'!L39 -> 11 | L14: ='Calculation Table'!M39 -> 38 | M14: ='Calculation Table'!N39 -> 42 | N14: ='Calculation Table'!O39 -> -4 | P14: ='Calculation Table'!P39 -> 1.117647059 | S14: ='Calculation Table'!Q39 -> 1.235294118 | U14: ='Calculation Table'!R39 -> 43 | V14: ='Calculation Table'!S39 -> 1.264705882 | W14: ='Calculation Table'!T39 -> 20 | X14: ='Calculation Table'!U39 -> 23 | AA14: ='Calculation Table'!AP39 -> 8 | AB14: ='Calculation Table'!AQ39 -> 9.6 | AC14: ='Calculation Table'!AR39 -> 12 | AE14: ='Calculation Table'!H108 -> VfL Wolfsburg | AF14: ='Calculation Table'!I108 -> 3 | AG14: ='Calculation Table'!J108 -> 1 | AH14: ='Calculation Table'!K108 -> VfB Stuttgart
B15: ='Calculation Table'!C40 -> 10 | C15: ='Calculation Table'!D40 -> 10 | D15: ='Calculation Table'!E40 -> 12 | E15: ='Calculation Table'!F40 -> ▲ | F15: ='Calculation Table'!H40 -> Hamburger SV | G15: ='Calculation Table'!I40 -> 34 | H15: ='Calculation Table'!J40 -> 11 | I15: ='Calculation Table'!K40 -> 8 | J15: ='Calculation Table'!L40 -> 15 | L15: ='Calculation Table'!M40 -> 40 | M15: ='Calculation Table'!N40 -> 46 | N15: ='Calculation Table'!O40 -> -6 | P15: ='Calculation Table'!P40 -> 1.176470588 | S15: ='Calculation Table'!Q40 -> 1.352941176 | U15: ='Calculation Table'!R40 -> 41 | V15: ='Calculation Table'!S40 -> 1.205882353 | W15: ='Calculation Table'!T40 -> 19 | X15: ='Calculation Table'!U40 -> 22 | AA15: ='Calculation Table'!AP40 -> 10 | AB15: ='Calculation Table'!AQ40 -> 11 | AC15: ='Calculation Table'!AR40 -> 12
B16: ='Calculation Table'!C41 -> 11 | C16: ='Calculation Table'!D41 -> 11 | D16: ='Calculation Table'!E41 -> 10 | E16: ='Calculation Table'!F41 -> ▼ | F16: ='Calculation Table'!H41 -> FC Ingolstadt | G16: ='Calculation Table'!I41 -> 34 | H16: ='Calculation Table'!J41 -> 10 | I16: ='Calculation Table'!K41 -> 10 | J16: ='Calculation Table'!L41 -> 14 | L16: ='Calculation Table'!M41 -> 33 | M16: ='Calculation Table'!N41 -> 42 | N16: ='Calculation Table'!O41 -> -9 | P16: ='Calculation Table'!P41 -> 0.9705882353 | S16: ='Calculation Table'!Q41 -> 1.235294118 | U16: ='Calculation Table'!R41 -> 40 | V16: ='Calculation Table'!S41 -> 1.176470588 | W16: ='Calculation Table'!T41 -> 26 | X16: ='Calculation Table'!U41 -> 14 | AA16: ='Calculation Table'!AP41 -> 9 | AB16: ='Calculation Table'!AQ41 -> 9.5 | AC16: ='Calculation Table'!AR41 -> 11 | AF16: Match day | AH16: Total
B17: ='Calculation Table'!C42 -> 12 | C17: ='Calculation Table'!D42 -> 12 | D17: ='Calculation Table'!E42 -> 11 | E17: ='Calculation Table'!F42 -> ▼ | F17: ='Calculation Table'!H42 -> FC Augsburg | G17: ='Calculation Table'!I42 -> 34 | H17: ='Calculation Table'!J42 -> 9 | I17: ='Calculation Table'!K42 -> 11 | J17: ='Calculation Table'!L42 -> 14 | L17: ='Calculation Table'!M42 -> 42 | M17: ='Calculation Table'!N42 -> 52 | N17: ='Calculation Table'!O42 -> -10 | P17: ='Calculation Table'!P42 -> 1.235294118 | S17: ='Calculation Table'!Q42 -> 1.529411765 | U17: ='Calculation Table'!R42 -> 38 | V17: ='Calculation Table'!S42 -> 1.117647059 | W17: ='Calculation Table'!T42 -> 15 | X17: ='Calculation Table'!U42 -> 23 | AA17: ='Calculation Table'!AP42 -> 11 | AB17: ='Calculation Table'!AQ42 -> 13.4 | AC17: ='Calculation Table'!AR42 -> 16 | AE17: Goals | AF17: ='Calculation Table'!I115 -> 29 | AH17: ='Calculation Table'!J115 -> 866
B18: ='Calculation Table'!C43 -> 13 | C18: ='Calculation Table'!D43 -> 13 | D18: ='Calculation Table'!E43 -> 16 | E18: ='Calculation Table'!F43 -> ▲ | F18: ='Calculation Table'!H43 -> Werder Bremen | G18: ='Calculation Table'!I43 -> 34 | H18: ='Calculation Table'!J43 -> 10 | I18: ='Calculation Table'!K43 -> 8 | J18: ='Calculation Table'!L43 -> 16 | L18: ='Calculation Table'!M43 -> 50 | M18: ='Calculation Table'!N43 -> 65 | N18: ='Calculation Table'!O43 -> -15 | P18: ='Calculation Table'!P43 -> 1.470588235 | S18: ='Calculation Table'!Q43 -> 1.911764706 | U18: ='Calculation Table'!R43 -> 38 | V18: ='Calculation Table'!S43 -> 1.117647059 | W18: ='Calculation Table'!T43 -> 20 | X18: ='Calculation Table'!U43 -> 18 | AA18: ='Calculation Table'!AP43 -> 13 | AB18: ='Calculation Table'!AQ43 -> 14.9 | AC18: ='Calculation Table'!AR43 -> 16 | AE18: Goals per match | AF18: ='Calculation Table'!I116 -> 3.222222222 | AH18: ='Calculation Table'!J116 -> 2.830065359
B19: ='Calculation Table'!C44 -> 14 | C19: ='Calculation Table'!D44 -> 14 | D19: ='Calculation Table'!E44 -> 13 | E19: ='Calculation Table'!F44 -> ▼ | F19: ='Calculation Table'!H44 -> Darmstadt 98 | G19: ='Calculation Table'!I44 -> 34 | H19: ='Calculation Table'!J44 -> 9 | I19: ='Calculation Table'!K44 -> 11 | J19: ='Calculation Table'!L44 -> 14 | L19: ='Calculation Table'!M44 -> 38 | M19: ='Calculation Table'!N44 -> 53 | N19: ='Calculation Table'!O44 -> -15 | P19: ='Calculation Table'!P44 -> 1.117647059 | S19: ='Calculation Table'!Q44 -> 1.558823529 | U19: ='Calculation Table'!R44 -> 38 | V19: ='Calculation Table'!S44 -> 1.117647059 | W19: ='Calculation Table'!T44 -> 12 | X19: ='Calculation Table'!U44 -> 26 | AA19: ='Calculation Table'!AP44 -> 11 | AB19: ='Calculation Table'!AQ44 -> 13.3 | AC19: ='Calculation Table'!AR44 -> 15 | AE19: Goals per match (home) | AF19: ='Calculation Table'!I117 -> 1.555555556 | AH19: ='Calculation Table'!J117 -> 1.565359477
B20: ='Calculation Table'!C45 -> 15 | C20: ='Calculation Table'!D45 -> 15 | D20: ='Calculation Table'!E45 -> 14 | E20: ='Calculation Table'!F45 -> ▼ | F20: ='Calculation Table'!H45 -> TSG 1899 Hoffenheim | G20: ='Calculation Table'!I45 -> 34 | H20: ='Calculation Table'!J45 -> 9 | I20: ='Calculation Table'!K45 -> 10 | J20: ='Calculation Table'!L45 -> 15 | L20: ='Calculation Table'!M45 -> 39 | M20: ='Calculation Table'!N45 -> 54 | N20: ='Calculation Table'!O45 -> -15 | P20: ='Calculation Table'!P45 -> 1.147058824 | S20: ='Calculation Table'!Q45 -> 1.588235294 | U20: ='Calculation Table'!R45 -> 37 | V20: ='Calculation Table'!S45 -> 1.088235294 | W20: ='Calculation Table'!T45 -> 24 | X20: ='Calculation Table'!U45 -> 13 | AA20: ='Calculation Table'!AP45 -> 13 | AB20: ='Calculation Table'!AQ45 -> 14.7 | AC20: ='Calculation Table'!AR45 -> 17 | AE20: Goals per match (away) | AF20: ='Calculation Table'!I118 -> 1.666666667 | AH20: ='Calculation Table'!J118 -> 1.264705882
B21: ='Calculation Table'!C46 -> 16 | C21: ='Calculation Table'!D46 -> 16 | D21: ='Calculation Table'!E46 -> 15 | E21: ='Calculation Table'!F46 -> ▼ | F21: ='Calculation Table'!H46 -> Eintracht Frankfurt | G21: ='Calculation Table'!I46 -> 34 | H21: ='Calculation Table'!J46 -> 9 | I21: ='Calculation Table'!K46 -> 9 | J21: ='Calculation Table'!L46 -> 16 | L21: ='Calculation Table'!M46 -> 34 | M21: ='Calculation Table'!N46 -> 52 | N21: ='Calculation Table'!O46 -> -18 | P21: ='Calculation Table'!P46 -> 1 | S21: ='Calculation Table'!Q46 -> 1.529411765 | U21: ='Calculation Table'!R46 -> 36 | V21: ='Calculation Table'!S46 -> 1.058823529 | W21: ='Calculation Table'!T46 -> 24 | X21: ='Calculation Table'!U46 -> 12 | AA21: ='Calculation Table'!AP46 -> 15 | AB21: ='Calculation Table'!AQ46 -> 16.4 | AC21: ='Calculation Table'!AR46 -> 17 | AE21: Home wins | AF21: ='Calculation Table'!I119 -> 4 | AH21: ='Calculation Table'!J119 -> 0.4411764706
B22: ='Calculation Table'!C47 -> 17 | C22: ='Calculation Table'!D47 -> 17 | D22: ='Calculation Table'!E47 -> 17 | E22: ='Calculation Table'!F47 -> ↔ | F22: ='Calculation Table'!H47 -> VfB Stuttgart | G22: ='Calculation Table'!I47 -> 34 | H22: ='Calculation Table'!J47 -> 9 | I22: ='Calculation Table'!K47 -> 6 | J22: ='Calculation Table'!L47 -> 19 | L22: ='Calculation Table'!M47 -> 50 | M22: ='Calculation Table'!N47 -> 75 | N22: ='Calculation Table'!O47 -> -25 | P22: ='Calculation Table'!P47 -> 1.470588235 | S22: ='Calculation Table'!Q47 -> 2.205882353 | U22: ='Calculation Table'!R47 -> 33 | V22: ='Calculation Table'!S47 -> 0.9705882353 | W22: ='Calculation Table'!T47 -> 19 | X22: ='Calculation Table'!U47 -> 14 | AA22: ='Calculation Table'!AP47 -> 11 | AB22: ='Calculation Table'!AQ47 -> 13.8 | AC22: ='Calculation Table'!AR47 -> 17 | AE22: Draws | AF22: ='Calculation Table'!I120 -> 2 | AH22: ='Calculation Table'!J120 -> 0.2320261438
B23: ='Calculation Table'!C48 -> 18 | C23: ='Calculation Table'!D48 -> 18 | D23: ='Calculation Table'!E48 -> 18 | E23: ='Calculation Table'!F48 -> ↔ | F23: ='Calculation Table'!H48 -> Hannover 96 | G23: ='Calculation Table'!I48 -> 34 | H23: ='Calculation Table'!J48 -> 7 | I23: ='Calculation Table'!K48 -> 4 | J23: ='Calculation Table'!L48 -> 23 | L23: ='Calculation Table'!M48 -> 31 | M23: ='Calculation Table'!N48 -> 62 | N23: ='Calculation Table'!O48 -> -31 | P23: ='Calculation Table'!P48 -> 0.9117647059 | S23: ='Calculation Table'!Q48 -> 1.823529412 | U23: ='Calculation Table'!R48 -> 25 | V23: ='Calculation Table'!S48 -> 0.7352941176 | W23: ='Calculation Table'!T48 -> 12 | X23: ='Calculation Table'!U48 -> 13 | AA23: ='Calculation Table'!AP48 -> 18 | AB23: ='Calculation Table'!AQ48 -> 18 | AC23: ='Calculation Table'!AR48 -> 18 | AE23: Away wins | AF23: ='Calculation Table'!I121 -> 3 | AH23: ='Calculation Table'!J121 -> 0.3267973856

Sheet Results
B2: Results
B4: Season | C4: Matchday | D4: Home Team | E4: Away Team | F4: Goals Home | G4: Goals Away
B5: 1963/1964 | C5: 1 | D5: 1.FC Saarbrücken | E5: 1.FC Köln | F5: 0 | G5: 2
B6: 1963/1964 | C6: 1 | D6: Eintracht Frankfurt | E6: 1.FC Kaiserslautern | F6: 1 | G6: 1
B7: 1963/1964 | C7: 1 | D7: FC Schalke 04 | E7: VfB Stuttgart | F7: 2 | G7: 0
B8: 1963/1964 | C8: 1 | D8: Hertha BSC Berlin | E8: 1.FC Nürnberg | F8: 1 | G8: 1
B9: 1963/1964 | C9: 1 | D9: Karlsruher SC | E9: MSV Duisburg | F9: 1 | G9: 4
B10: 1963/1964 | C10: 1 | D10: Preußen Münster | E10: Hamburger SV | F10: 1 | G10: 1
B11: 1963/1964 | C11: 1 | D11: TSV 1860 München | E11: Eintracht Braunschweig | F11: 1 | G11: 1
B12: 1963/1964 | C12: 1 | D12: Werder Bremen | E12: Borussia Dortmund | F12: 3 | G12: 2
B13: 1963/1964 | C13: 2 | D13: 1.FC Kaiserslautern | E13: FC Schalke 04 | F13: 2 | G13: 3
B14: 1963/1964 | C14: 2 | D14: 1.FC Köln | E14: Karlsruher SC | F14: 4 | G14: 0
B15: 1963/1964 | C15: 2 | D15: 1.FC Nürnberg | E15: Werder Bremen | F15: 3 | G15: 0
B16: 1963/1964 | C16: 2 | D16: Borussia Dortmund | E16: TSV 1860 München | F16: 3 | G16: 3
B17: 1963/1964 | C17: 2 | D17: Eintracht Braunschweig | E17: Preußen Münster | F17: 1 | G17: 0
B18: 1963/1964 | C18: 2 | D18: Hamburger SV | E18: 1.FC Saarbrücken | F18: 4 | G18: 2
B19: 1963/1964 | C19: 2 | D19: MSV Duisburg | E19: Eintracht Frankfurt | F19: 3 | G19: 1
B20: 1963/1964 | C20: 2 | D20: VfB Stuttgart | E20: Hertha BSC Berlin | F20: 2 | G20: 0
B21: 1963/1964 | C21: 3 | D21: 1.FC Saarbrücken | E21: Eintracht Braunschweig | F21: 2 | G21: 2
B22: 1963/1964 | C22: 3 | D22: Eintracht Frankfurt | E22: 1.FC Nürnberg | F22: 2 | G22: 3
B23: 1963/1964 | C23: 3 | D23: FC Schalke 04 | E23: Borussia Dortmund | F23: 3 | G23: 1
B24: 1963/1964 | C24: 3 | D24: Hertha BSC Berlin | E24: 1.FC Kaiserslautern | F24: 2 | G24: 2
B25: 1963/1964 | C25: 3 | D25: Karlsruher SC | E25: Hamburger SV | F25: 0 | G25: 4
B26: 1963/1964 | C26: 3 | D26: Preußen Münster | E26: MSV Duisburg | F26: 4 | G26: 2
B27: 1963/1964 | C27: 3 | D27: TSV 1860 München | E27: 1.FC Köln | F27: 1 | G27: 3
B28: 1963/1964 | C28: 3 | D28: Werder Bremen | E28: VfB Stuttgart | F28: 2 | G28: 2
B29: 1963/1964 | C29: 4 | D29: 1.FC Kaiserslautern | E29: Werder Bremen | F29: 3 | G29: 0
B30: 1963/1964 | C30: 4 | D30: 1.FC Köln | E30: FC Schalke 04 | F30: 2 | G30: 2
B31: 1963/1964 | C31: 4 | D31: 1.FC Nürnberg | E31: Preußen Münster | F31: 2 | G31: 2
B32: 1963/1964 | C32: 4 | D32: Borussia Dortmund | E32: 1.FC Saarbrücken | F32: 2 | G32: 1
B33: 1963/1964 | C33: 4 | D33: Eintracht Braunschweig | E33: Karlsruher SC | F33: 2 | G33: 0
B34: 1963/1964 | C34: 4 | D34: Hamburger SV | E34: Eintracht Frankfurt | F34: 3 | G34: 0
B35: 1963/1964 | C35: 4 | D35: MSV Duisburg | E35: Hertha BSC Berlin | F35: 1 | G35: 3
B36: 1963/1964 | C36: 4 | D36: VfB Stuttgart | E36: TSV 1860 München | F36: 1 | G36: 1
B37: 1963/1964 | C37: 5 | D37: 1.FC Saarbrücken | E37: 1.FC Nürnberg | F37: 3 | G37: 5
B38: 1963/1964 | C38: 5 | D38: Eintracht Frankfurt | E38: Eintracht Braunschweig | F38: 3 | G38: 0
B39: 1963/1964 | C39: 5 | D39: FC Schalke 04 | E39: Hamburger SV | F39: 1 | G39: 0
B40: 1963/1964 | C40: 5 | D40: Hertha BSC Berlin | E40: 1.FC Köln | F40: 0 | G40: 3
B41: 1963/1964 | C41: 5 | D41: Karlsruher SC | E41: Borussia Dortmund | F41: 1 | G41: 3
B42: 1963/1964 | C42: 5 | D42: Preußen Münster | E42: VfB Stuttgart | F42: 4 | G42: 2
B43: 1963/1964 | C43: 5 | D43: TSV 1860 München | E43: 1.FC Kaiserslautern | F43: 3 | G43: 0
B44: 1963/1964 | C44: 5 | D44: Werder Bremen | E44: MSV Duisburg | F44: 1 | G44: 1
B45: 1963/1964 | C45: 6 | D45: 1.FC Kaiserslautern | E45: Preußen Münster | F45: 0 | G45: 0
B46: 1963/1964 | C46: 6 | D46: 1.FC Köln | E46: Werder Bremen | F46: 4 | G46: 3
B47: 1963/1964 | C47: 6 | D47: 1.FC Nürnberg | E47: Karlsruher SC | F47: 2 | G47: 4
B48: 1963/1964 | C48: 6 | D48: Borussia Dortmund | E48: Eintracht Frankfurt | F48: 3 | G48: 0
B49: 1963/1964 | C49: 6 | D49: Eintracht Braunschweig | E49: FC Schalke 04 | F49: 4 | G49: 3
B50: 1963/1964 | C50: 6 | D50: Hamburger SV | E50: Hertha BSC Berlin | F50: 5 | G50: 1
B51: 1963/1964 | C51: 6 | D51: MSV Duisburg | E51: TSV 1860 München | F51: 3 | G51: 0
B52: 1963/1964 | C52: 6 | D52: VfB Stuttgart | E52: 1.FC Saarbrücken | F52: 3 | G52: 1
B53: 1963/1964 | C53: 7 | D53: 1.FC Saarbrücken | E53: 1.FC Kaiserslautern | F53: 2 | G53: 4
B54: 1963/1964 | C54: 7 | D54: Eintracht Frankfurt | E54: 1.FC Köln | F54: 2 | G54: 1
B55: 1963/1964 | C55: 7 | D55: FC Schalke 04 | E55: MSV Duisburg | F55: 2 | G55: 2
B56: 1963/1964 | C56: 7 | D56: Hertha BSC Berlin | E56: Eintracht Braunschweig | F56: 1 | G56: 2
B57: 1963/1964 | C57: 7 | D57: Karlsruher SC | E57: VfB Stuttgart | F57: 0 | G57: 3
B58: 1963/1964 | C58: 7 | D58: Preußen Münster | E58: Borussia Dortmund | F58: 1 | G58: 2
B59: 1963/1964 | C59: 7 | D59: TSV 1860 München | E59: 1.FC Nürnberg | F59: 5 | G59: 0
B60: 1963/1964 | C60: 7 | D60: Werder Bremen | E60: Hamburger SV | F60: 4 | G60: 2
B61: 1963/1964 | C61: 8 | D61: 1.FC Kaiserslautern | E61: Karlsruher SC | F61: 1 | G61: 0
B62: 1963/1964 | C62: 8 | D62: 1.FC Köln | E62: Preußen Münster | F62: 3 | G62: 0
B63: 1963/1964 | C63: 8 | D63: 1.FC Nürnberg | E63: FC Schalke 04 | F63: 0 | G63: 2
B64: 1963/1964 | C64: 8 | D64: Borussia Dortmund | E64: Hertha BSC Berlin | F64: 7 | G64: 2
B65: 1963/1964 | C65: 8 | D65: Eintracht Braunschweig | E65: Werder Bremen | F65: 1 | G65: 1
B66: 1963/1964 | C66: 8 | D66: Hamburger SV | E66: TSV 1860 München | F66: 5 | G66: 0
B67: 1963/1964 | C67: 8 | D67: MSV Duisburg | E67: 1.FC Saarbrücken | F67: 3 | G67: 1
B68: 1963/1964 | C68: 8 | D68: VfB Stuttgart | E68: Eintracht Frankfurt | F68: 0 | G68: 0
B69: 1963/1964 | C69: 9 | D69: 1.FC Köln | E69: MSV Duisburg | F69: 3 | G69: 3
B70: 1963/1964 | C70: 9 | D70: 1.FC Nürnberg | E70: 1.FC Kaiserslautern | F70: 0 | G70: 5
B71: 1963/1964 | C71: 9 | D71: 1.FC Saarbrücken | E71: Karlsruher SC | F71: 1 | G71: 3
B72: 1963/1964 | C72: 9 | D72: FC Schalke 04 | E72: Werder Bremen | F72: 2 | G72: 3
B73: 1963/1964 | C73: 9 | D73: Hamburger SV | E73: Eintracht Braunschweig | F73: 2 | G73: 1
B74: 1963/1964 | C74: 9 | D74: Hertha BSC Berlin | E74: Eintracht Frankfurt | F74: 1 | G74: 3
B75: 1963/1964 | C75: 9 | D75: Preußen Münster | E75: TSV 1860 München | F75: 0 | G75: 0
B76: 1963/1964 | C76: 9 | D76: VfB Stuttgart | E76: Borussia Dortmund | F76: 2 | G76: 1
B77: 1963/1964 | C77: 10 | D77: 1.FC Kaiserslautern | E77: VfB Stuttgart | F77: 1 | G77: 3
B78: 1963/1964 | C78: 10 | D78: Borussia Dortmund | E78: 1.FC Nürnberg | F78: 3 | G78: 1
B79: 1963/1964 | C79: 10 | D79: Eintracht Braunschweig | E79: 1.FC Köln | F79: 1 | G79: 1
B80: 1963/1964 | C80: 10 | D80: Eintracht Frankfurt | E80: FC Schalke 04 | F80: 4 | G80: 2
B81: 1963/1964 | C81: 10 | D81: Karlsruher SC | E81: Preußen Münster | F81: 4 | G81: 2
B82: 1963/1964 | C82: 10 | D82: MSV Duisburg | E82: Hamburger SV | F82: 4 | G82: 0
B83: 1963/1964 | C83: 10 | D83: TSV 1860 München | E83: 1.FC Saarbrücken | F83: 7 | G83: 1
B84: 1963/1964 | C84: 10 | D84: Werder Bremen | E84: Hertha BSC Berlin | F84: 2 | G84: 2
B85: 1963/1964 | C85: 11 | D85: 1.FC Köln | E85: Hamburger SV | F85: 4 | G85: 1
B86: 1963/1964 | C86: 11 | D86: 1.FC Saarbrücken | E86: Preußen Münster | F86: 1 | G86: 1
B87: 1963/1964 | C87: 11 | D87: Borussia Dortmund | E87: 1.FC Kaiserslautern | F87: 9 | G87: 3
B88: 1963/1964 | C88: 11 | D88: Eintracht Braunschweig | E88: MSV Duisburg | F88: 0 | G88: 0
B89: 1963/1964 | C89: 11 | D89: FC Schalke 04 | E89: Hertha BSC Berlin | F89: 1 | G89: 0
B90: 1963/1964 | C90: 11 | D90: TSV 1860 München | E90: Karlsruher SC | F90: 1 | G90: 0
B91: 1963/1964 | C91: 11 | D91: VfB Stuttgart | E91: 1.FC Nürnberg | F91: 1 | G91: 0
B92: 1963/1964 | C92: 11 | D92: Werder Bremen | E92: Eintracht Frankfurt | F92: 4 | G92: 1
B93: 1963/1964 | C93: 12 | D93: 1.FC Kaiserslautern | E93: Eintracht Braunschweig | F93: 2 | G93: 1
B94: 1963/1964 | C94: 12 | D94: 1.FC Nürnberg | E94: 1.FC Köln | F94: 2 | G94: 2
B95: 1963/1964 | C95: 12 | D95: Eintracht Frankfurt | E95: TSV 1860 München | F95: 5 | G95: 2
B96: 1963/1964 | C96: 12 | D96: Hamburger SV | E96: VfB Stuttgart | F96: 1 | G96: 1
B97: 1963/1964 | C97: 12 | D97: Hertha BSC Berlin | E97: 1.FC Saarbrücken | F97: 3 | G97: 2
B98: 1963/1964 | C98: 12 | D98: Karlsruher SC | E98: Werder Bremen | F98: 1 | G98: 1
B99: 1963/1964 | C99: 12 | D99: MSV Duisburg | E99: Borussia Dortmund | F99: 3 | G99: 3
B100: 1963/1964 | C100: 12 | D100: Preußen Münster | E100: FC Schalke 04 | F100: 2 | G100: 2
B101: 1963/1964 | C101: 13 | D101: 1.FC Kaiserslautern | E101: Hamburger SV | F101: 3 | G101: 2
B102: 1963/1964 | C102: 13 | D102: 1.FC Nürnberg | E102: MSV Duisburg | F102: 2 | G102: 0
B103: 1963/1964 | C103: 13 | D103: Borussia Dortmund | E103: 1.FC Köln | F103: 2 | G103: 3
B104: 1963/1964 | C104: 13 | D104: Eintracht Frankfurt | E104: Preußen Münster | F104: 3 | G104: 0
B105: 1963/1964 | C105: 13 | D105: FC Schalke 04 | E105: TSV 1860 München | F105: 2 | G105: 1
B106: 1963/1964 | C106: 13 | D106: Hertha BSC Berlin | E106: Karlsruher SC | F106: 2 | G106: 3
B107: 1963/1964 | C107: 13 | D107: VfB Stuttgart | E107: Eintracht Braunschweig | F107: 5 | G107: 0
B108: 1963/1964 | C108: 13 | D108: Werder Bremen | E108: 1.FC Saarbrücken | F108: 0 | G108: 3
B109: 1963/1964 | C109: 14 | D109: 1.FC Köln | E109: 1.FC Kaiserslautern | F109: 5 | G109: 1
B110: 1963/1964 | C110: 14 | D110: 1.FC Saarbrücken | E110: Eintracht Frankfurt | F110: 0 | G110: 4
B111: 1963/1964 | C111: 14 | D111: Eintracht Braunschweig | E111: 1.FC Nürnberg | F111: 2 | G111: 0
B112: 1963/1964 | C112: 14 | D112: Hamburger SV | E112: Borussia Dortmund | F112: 2 | G112: 1
B113: 1963/1964 | C113: 14 | D113: Karlsruher SC | E113: FC Schalke 04 | F113: 1 | G113: 1
B114: 1963/1964 | C114: 14 | D114: MSV Duisburg | E114: VfB Stuttgart | F114: 3 | G114: 0
B115: 1963/1964 | C115: 14 | D115: Preußen Münster | E115: Werder Bremen | F115: 1 | G115: 3
B116: 1963/1964 | C116: 14 | D116: TSV 1860 München | E116: Hertha BSC Berlin | F116: 1 | G116: 2
B117: 1963/1964 | C117: 15 | D117: 1.FC Kaiserslautern | E117: MSV Duisburg | F117: 1 | G117: 1
B118: 1963/1964 | C118: 15 | D118: 1.FC Nürnberg | E118: Hamburger SV | F118: 3 | G118: 2
B119: 1963/1964 | C119: 15 | D119: Borussia Dortmund | E119: Eintracht Braunschweig | F119: 3 | G119: 0
B120: 1963/1964 | C120: 15 | D120: Eintracht Frankfurt | E120: Karlsruher SC | F120: 0 | G120: 3
B121: 1963/1964 | C121: 15 | D121: FC Schalke 04 | E121: 1.FC Saarbrücken | F121: 4 | G121: 1
B122: 1963/1964 | C122: 15 | D122: Hertha BSC Berlin | E122: Preußen Münster | F122: 2 | G122: 0
B123: 1963/1964 | C123: 15 | D123: VfB Stuttgart | E123: 1.FC Köln | F123: 0 | G123: 1
B124: 1963/1964 | C124: 15 | D124: Werder Bremen | E124: TSV 1860 München | F124: 4 | G124: 1
B125: 1963/1964 | C125: 16 | D125: 1.FC Kaiserslautern | E125: Eintracht Frankfurt | F125: 1 | G125: 1
B126: 1963/1964 | C126: 16 | D126: 1.FC Köln | E126: 1.FC Saarbrücken | F126: 1 | G126: 3
B127: 1963/1964 | C127: 16 | D127: 1.FC Nürnberg | E127: Hertha BSC Berlin | F127: 2 | G127: 3
B128: 1963/1964 | C128: 16 | D128: Borussia Dortmund | E128: Werder Bremen | F128: 4 | G128: 3
B129: 1963/1964 | C129: 16 | D129: Eintracht Braunschweig | E129: TSV 1860 München | F129: 0 | G129: 1
B130: 1963/1964 | C130: 16 | D130: Hamburger SV | E130: Preußen Münster | F130: 5 | G130: 0
B131: 1963/1964 | C131: 16 | D131: MSV Duisburg | E131: Karlsruher SC | F131: 2 | G131: 0
B132: 1963/1964 | C132: 16 | D132: VfB Stuttgart | E132: FC Schalke 04 | F132: 2 | G132: 0
B133: 1963/1964 | C133: 17 | D133: 1.FC Saarbrücken | E133: Hamburger SV | F133: 1 | G133: 1
B134: 1963/1964 | C134: 17 | D134: Eintracht Frankfurt | E134: MSV Duisburg | F134: 2 | G134: 2
B135: 1963/1964 | C135: 17 | D135: FC Schalke 04 | E135: 1.FC Kaiserslautern | F135: 4 | G135: 0
B136: 1963/1964 | C136: 17 | D136: Hertha BSC Berlin | E136: VfB Stuttgart | F136: 0 | G136: 2
B137: 1963/1964 | C137: 17 | D137: Karlsruher SC | E137: 1.FC Köln | F137: 2 | G137: 2
B138: 1963/1964 | C138: 17 | D138: Preußen Münster | E138: Eintracht Braunschweig | F138: 0 | G138: 2
B139: 1963/1964 | C139: 17 | D139: TSV 1860 München | E139: Borussia Dortmund | F139: 6 | G139: 1
B140: 1963/1964 | C140: 17 | D140: Werder Bremen | E140: 1.FC Nürnberg | F140: 2 | G140: 1
B141: 1963/1964 | C141: 18 | D141: 1.FC Kaiserslautern | E141: Hertha BSC Berlin | F141: 3 | G141: 0
B142: 1963/1964 | C142: 18 | D142: 1.FC Köln | E142: TSV 1860 München | F142: 2 | G142: 2
B143: 1963/1964 | C143: 18 | D143: 1.FC Nürnberg | E143: Eintracht Frankfurt | F143: 1 | G143: 0
B144: 1963/1964 | C144: 18 | D144: Borussia Dortmund | E144: FC Schalke 04 | F144: 3 | G144: 0
B145: 1963/1964 | C145: 18 | D145: Eintracht Braunschweig | E145: 1.FC Saarbrücken | F145: 3 | G145: 1
B146: 1963/1964 | C146: 18 | D146: Hamburger SV | E146: Karlsruher SC | F146: 1 | G146: 1
B147: 1963/1964 | C147: 18 | D147: MSV Duisburg | E147: Preußen Münster | F147: 0 | G147: 0
B148: 1963/1964 | C148: 18 | D148: VfB Stuttgart | E148: Werder Bremen | F148: 2 | G148: 0
B149: 1963/1964 | C149: 19 | D149: 1.FC Saarbrücken | E149: Borussia Dortmund | F149: 2 | G149: 1
B150: 1963/1964 | C150: 19 | D150: Eintracht Frankfurt | E150: Hamburger SV | F150: 2 | G150: 2
B151: 1963/1964 | C151: 19 | D151: FC Schalke 04 | E151: 1.FC Köln | F151: 2 | G151: 3
B152: 1963/1964 | C152: 19 | D152: Hertha BSC Berlin | E152: MSV Duisburg | F152: 5 | G152: 2
B153: 1963/1964 | C153: 19 | D153: Karlsruher SC | E153: Eintracht Braunschweig | F153: 3 | G153: 1
B154: 1963/1964 | C154: 19 | D154: Preußen Münster | E154: 1.FC Nürnberg | F154: 0 | G154: 1
B155: 1963/1964 | C155: 19 | D155: TSV 1860 München | E155: VfB Stuttgart | F155: 1 | G155: 1
B156: 1963/1964 | C156: 19 | D156: Werder Bremen | E156: 1.FC Kaiserslautern | F156: 2 | G156: 0
B157: 1963/1964 | C157: 20 | D157: 1.FC Kaiserslautern | E157: TSV 1860 München | F157: 2 | G157: 1
B158: 1963/1964 | C158: 20 | D158: 1.FC Köln | E158: Hertha BSC Berlin | F158: 3 | G158: 1
B159: 1963/1964 | C159: 20 | D159: 1.FC Nürnberg | E159: 1.FC Saarbrücken | F159: 2 | G159: 0
B160: 1963/1964 | C160: 20 | D160: Borussia Dortmund | E160: Karlsruher SC | F160: 3 | G160: 2
B161: 1963/1964 | C161: 20 | D161: Eintracht Braunschweig | E161: Eintracht Frankfurt | F161: 0 | G161: 3
B162: 1963/1964 | C162: 20 | D162: Hamburger SV | E162: FC Schalke 04 | F162: 3 | G162: 1
B163: 1963/1964 | C163: 20 | D163: MSV Duisburg | E163: Werder Bremen | F163: 1 | G163: 0
B164: 1963/1964 | C164: 20 | D164: VfB Stuttgart | E164: Preußen Münster | F164: 0 | G164: 3
B165: 1963/1964 | C165: 21 | D165: 1.FC Saarbrücken | E165: VfB Stuttgart | F165: 0 | G165: 1
B166: 1963/1964 | C166: 21 | D166: Eintracht Frankfurt | E166: Borussia Dortmund | F166: 2 | G166: 1
B167: 1963/1964 | C167: 21 | D167: FC Schalke 04 | E167: Eintracht Braunschweig | F167: 2 | G167: 0
B168: 1963/1964 | C168: 21 | D168: Hertha BSC Berlin | E168: Hamburger SV | F168: 1 | G168: 2
B169: 1963/1964 | C169: 21 | D169: Karlsruher SC | E169: 1.FC Nürnberg | F169: 1 | G169: 3
B170: 1963/1964 | C170: 21 | D170: Preußen Münster | E170: 1.FC Kaiserslautern | F170: 1 | G170: 0
B171: 1963/1964 | C171: 21 | D171: TSV 1860 München | E171: MSV Duisburg | F171: 0 | G171: 0
B172: 1963/1964 | C172: 21 | D172: Werder Bremen | E172: 1.FC Köln | F172: 1 | G172: 1
B173: 1963/1964 | C173: 22 | D173: 1.FC Kaiserslautern | E173: 1.FC Saarbrücken | F173: 2 | G173: 4
B174: 1963/1964 | C174: 22 | D174: 1.FC Köln | E174: Eintracht Frankfurt | F174: 1 | G174: 1
B175: 1963/1964 | C175: 22 | D175: 1.FC Nürnberg | E175: TSV 1860 München | F175: 2 | G175: 2
B176: 1963/1964 | C176: 22 | D176: Borussia Dortmund | E176: Preußen Münster | F176: 0 | G176: 0
B177: 1963/1964 | C177: 22 | D177: Eintracht Braunschweig | E177: Hertha BSC Berlin | F177: 1 | G177: 1
B178: 1963/1964 | C178: 22 | D178: Hamburger SV | E178: Werder Bremen | F178: 1 | G178: 1
B179: 1963/1964 | C179: 22 | D179: MSV Duisburg | E179: FC Schalke 04 | F179: 3 | G179: 0
B180: 1963/1964 | C180: 22 | D180: VfB Stuttgart | E180: Karlsruher SC | F180: 4 | G180: 1
B181: 1963/1964 | C181: 23 | D181: 1.FC Saarbrücken | E181: MSV Duisburg | F181: 0 | G181: 2
B182: 1963/1964 | C182: 23 | D182: Eintracht Frankfurt | E182: VfB Stuttgart | F182: 3 | G182: 2
B183: 1963/1964 | C183: 23 | D183: FC Schalke 04 | E183: 1.FC Nürnberg | F183: 4 | G183: 1
B184: 1963/1964 | C184: 23 | D184: Hertha BSC Berlin | E184: Borussia Dortmund | F184: 0 | G184: 0
B185: 1963/1964 | C185: 23 | D185: Karlsruher SC | E185: 1.FC Kaiserslautern | F185: 5 | G185: 1
B186: 1963/1964 | C186: 23 | D186: Preußen Münster | E186: 1.FC Köln | F186: 0 | G186: 2
B187: 1963/1964 | C187: 23 | D187: TSV 1860 München | E187: Hamburger SV | F187: 9 | G187: 2
B188: 1963/1964 | C188: 23 | D188: Werder Bremen | E188: Eintracht Braunschweig | F188: 2 | G188: 3
B189: 1963/1964 | C189: 24 | D189: 1.FC Kaiserslautern | E189: 1.FC Nürnberg | F189: 3 | G189: 1
B190: 1963/1964 | C190: 24 | D190: Borussia Dortmund | E190: VfB Stuttgart | F190: 7 | G190: 1
B191: 1963/1964 | C191: 24 | D191: Eintracht Braunschweig | E191: Hamburger SV | F191: 2 | G191: 1
B192: 1963/1964 | C192: 24 | D192: Eintracht Frankfurt | E192: Hertha BSC Berlin | F192: 4 | G192: 0
B193: 1963/1964 | C193: 24 | D193: Karlsruher SC | E193: 1.FC Saarbrücken | F193: 2 | G193: 2
B194: 1963/1964 | C194: 24 | D194: MSV Duisburg | E194: 1.FC Köln | F194: 2 | G194: 2
B195: 1963/1964 | C195: 24 | D195: TSV 1860 München | E195: Preußen Münster | F195: 3 | G195: 1
B196: 1963/1964 | C196: 24 | D196: Werder Bremen | E196: FC Schalke 04 | F196: 1 | G196: 0
B197: 1963/1964 | C197: 25 | D197: 1.FC Köln | E197: Eintracht Braunschweig | F197: 4 | G197: 1
B198: 1963/1964 | C198: 25 | D198: 1.FC Nürnberg | E198: Borussia Dortmund | F198: 4 | G198: 0
B199: 1963/1964 | C199: 25 | D199: 1.FC Saarbrücken | E199: TSV 1860 München | F199: 1 | G199: 2
B200: 1963/1964 | C200: 25 | D200: FC Schalke 04 | E200: Eintracht Frankfurt | F200: 1 | G200: 2
B201: 1963/1964 | C201: 25 | D201: Hamburger SV | E201: MSV Duisburg | F201: 3 | G201: 3
B202: 1963/1964 | C202: 25 | D202: Hertha BSC Berlin | E202: Werder Bremen | F202: 5 | G202: 2
... 4298 more rows

Sheet Calculation Table
B2: Calculations I: consolidation of table and match day results and statstics
B4: Part 1: consolidate all metrics in one unsorted table and do the sorting algorithm
V6: Last 10 matches | AF6: Last 10 positions | AX6: Sort Algorithm
I7: M | J7: W | K7: D | L7: L | M7: GF | N7: GA | O7: Diff | P7: Avg. GF | Q7: Avg. GA | R7: Pts | S7: PpM | T7: PtH | U7: PtA | V7: =MAX(W7-1,0) -> 25 | W7: 26 | X7: 27 | Y7: 28 | Z7: 29 | AA7: 30 | AB7: 31 | AC7: 32 | AD7: 33 | AE7: =myMatchDay -> 34 | AF7: =MAX(AG7-1,0) -> 25 | AG7: 26 | AH7: 27 | AI7: 28 | AJ7: 29 | AK7: 30 | AL7: 31 | AM7: 32 | AN7: 33 | AO7: =myMatchDay -> 34 | AP7: B | AQ7: Avg. | AR7: W | AX7: Sort Dummy | AY7: Sort Order | AZ7: Sorted | BA7: Pos.
F8: 1 | G8: =F8<=Control!$C$15 -> TRUE | H8: =IF($G8,'Calculation Results'!E7,"") -> FC Bayern München | I8: =IF($G8,SUM((myMatchDay>=myMatchDayRange)*(($H8=myHomeTeams)+($H8=myAwayTeams))),"") -> 34 | J8: =IF($G8,SUM((myMatchDay>=myMatchDayRange)*(($H8=myHomeTeams)*(myPointsHome=Control!$C$14)+($H8=myAwayTeams)*(myPointsAway=Control!$C$14))),"") -> 28 | K8: =IF($G8,SUM((myMatchDay>=myMatchDayRange)*(($H8=myHomeTeams)*(myPointsHome=1)+($H8=myAwayTeams)*(myPointsAway=1))),"") -> 4 | L8: =IF($G8,SUM((myMatchDay>=myMatchDayRange)*(($H8=myHomeTeams)*(myPointsHome=0)+($H8=myAwayTeams)*(myPointsAway=0))),"") -> 2 | M8: =IF($G8,SUM((myMatchDay>=myMatchDayRange)*((($H8=myHomeTeams)*myGoalsHome)+(($H8=myAwayTeams)*myGoalsAway))),"") -> 80 | N8: =IF($G8,SUM((myMatchDay>=myMatchDayRange)*((($H8=myHomeTeams)*myGoalsAway)+(($H8=myAwayTeams)*myGoalsHome))),"") -> 17 | O8: =IF($G8,M8-N8,"") -> 63 | P8: =IF($G8,M8/$I8,"") -> 2.352941176 | Q8: =IF($G8,N8/$I8,"") -> 0.5 | R8: =IF($G8,T8+U8,"") -> 88 | S8: =IF($G8,R8/$I8,"") -> 2.588235294 | T8: =IF($G8,SUM((myMatchDay>=myMatchDayRange)*($H8=myHomeTeams)*myPointsHome),"") -> 46 | U8: =IF($G8,SUM((myMatchDay>=myMatchDayRange)*($H8=myAwayTeams)*myPointsAway),"") -> 42 | V8: =IF($G8,IF(V$7=0,-1,SUM((V$7=myMatchDayRange)*((($H8=myHomeTeams)*myPointsHome)+($H8=myAwayTeams)*myPointsAway))),"") -> 1 | W8: =IF($G8,IF(W$7=0,-1,SUM((W$7=myMatchDayRange)*((($H8=myHomeTeams)*myPointsHome)+($H8=myAwayTeams)*myPointsAway))),"") -> 3 | X8: =IF($G8,IF(X$7=0,-1,SUM((X$7=myMatchDayRange)*((($H8=myHomeTeams)*myPointsHome)+($H8=myAwayTeams)*myPointsAway))),"") -> 3 | Y8: =IF($G8,IF(Y$7=0,-1,SUM((Y$7=myMatchDayRange)*((($H8=myHomeTeams)*myPointsHome)+($H8=myAwayTeams)*myPointsAway))),"") -> 3 | Z8: =IF($G8,IF(Z$7=0,-1,SUM((Z$7=myMatchDayRange)*((($H8=myHomeTeams)*myPointsHome)+($H8=myAwayTeams)*myPointsAway))),"") -> 3 | AA8: =IF($G8,IF(AA$7=0,-1,SUM((AA$7=myMatchDayRange)*((($H8=myHomeTeams)*myPointsHome)+($H8=myAwayTeams)*myPointsAway))),"") -> 3 | AB8: =IF($G8,IF(AB$7=0,-1,SUM((AB$7=myMatchDayRange)*((($H8=myHomeTeams)*myPointsHome)+($H8=myAwayTeams)*myPointsAway))),"") -> 3 | AC8: =IF($G8,IF(AC$7=0,-1,SUM((AC$7=myMatchDayRange)*((($H8=myHomeTeams)*myPointsHome)+($H8=myAwayTeams)*myPointsAway))),"") -> 1 | AD8: =IF($G8,IF(AD$7=0,-1,SUM((AD$7=myMatchDayRange)*((($H8=myHomeTeams)*myPointsHome)+($H8=myAwayTeams)*myPointsAway))),"") -> 3 | AE8: =IF($G8,IF(AE$7=0,-1,SUM((AE$7=myMatchDayRange)*((($H8=myHomeTeams)*myPointsHome)+($H8=myAwayTeams)*myPointsAway))),"") -> 3 | AF8: =IF(AF$7=0,NA(),INDEX(myTableDevRange,$F8,AF$7)) -> 1 | AG8: 1 | AH8: 1 | AI8: 1 | AJ8: 1 | AK8: 1 | AL8: 1 | AM8: 1 | AN8: 1 | AO8: 1 | AP8: =MIN(OFFSET($AO8,0,0,1,-MIN(myMatchDay,10))) -> 1 | AQ8: =AVERAGE(OFFSET($AO8,0,0,1,-MIN(myMatchDay,10))) -> 1 | AR8: =MAX(OFFSET($AO8,0,0,1,-MIN(myMatchDay,10))) -> 1 | AX8: =IF(G8,CHOOSE(mySortCriterion,J8,K8,L8,M8,N8,O8,R8*1000000+O8*10000+M8*100,T8,U8,AP8,AQ8,AR8)+F8/1000000,-999999999-F8/100) -> 88638000 | AY8: =CHOOSE(mySortCriterion,1,1,2,1,2,1,1,1,1,2,2,2) -> 1 | AZ8: =IF(AY8=1,LARGE($AX$8:$AX$25,$F8),SMALL($AX$8:$AX$25,$F8)) -> 88638000 | BA8: =MATCH(AX8,$AZ$8:$AZ$25,0) -> 1
F9: 2 | G9: =F9<=Control!$C$15 -> TRUE | H9: =IF($G9,'Calculation Results'!E8,"") -> FC Augsburg | I9: =IF($G9,SUM((myMatchDay>=myMatchDayRange)*(($H9=myHomeTeams)+($H9=myAwayTeams))),"") -> 34 | J9: =IF($G9,SUM((myMatchDay>=myMatchDayRange)*(($H9=myHomeTeams)*(myPointsHome=Control!$C$14)+($H9=myAwayTeams)*(myPointsAway=Control!$C$14))),"") -> 9 | K9: =IF($G9,SUM((myMatchDay>=myMatchDayRange)*(($H9=myHomeTeams)*(myPointsHome=1)+($H9=myAwayTeams)*(myPointsAway=1))),"") -> 11 | L9: =IF($G9,SUM((myMatchDay>=myMatchDayRange)*(($H9=myHomeTeams)*(myPointsHome=0)+($H9=myAwayTeams)*(myPointsAway=0))),"") -> 14 | M9: =IF($G9,SUM((myMatchDay>=myMatchDayRange)*((($H9=myHomeTeams)*myGoalsHome)+(($H9=myAwayTeams)*myGoalsAway))),"") -> 42 | N9: =IF($G9,SUM((myMatchDay>=myMatchDayRange)*((($H9=myHomeTeams)*myGoalsAway)+(($H9=myAwayTeams)*myGoalsHome))),"") -> 52 | O9: =IF($G9,M9-N9,"") -> -10 | P9: =IF($G9,M9/$I9,"") -> 1.235294118 | Q9: =IF($G9,N9/$I9,"") -> 1.529411765 | R9: =IF($G9,T9+U9,"") -> 38 | S9: =IF($G9,R9/$I9,"") -> 1.117647059 | T9: =IF($G9,SUM((myMatchDay>=myMatchDayRange)*($H9=myHomeTeams)*myPointsHome),"") -> 15 | U9: =IF($G9,SUM((myMatchDay>=myMatchDayRange)*($H9=myAwayTeams)*myPointsAway),"") -> 23 | V9: =IF($G9,IF(V$7=0,-1,SUM((V$7=myMatchDayRange)*((($H9=myHomeTeams)*myPointsHome)+($H9=myAwayTeams)*myPointsAway))),"") -> 1 | W9: =IF($G9,IF(W$7=0,-1,SUM((W$7=myMatchDayRange)*((($H9=myHomeTeams)*myPointsHome)+($H9=myAwayTeams)*myPointsAway))),"") -> 1 | X9: =IF($G9,IF(X$7=0,-1,SUM((X$7=myMatchDayRange)*((($H9=myHomeTeams)*myPointsHome)+($H9=myAwayTeams)*myPointsAway))),"") -> 0 | Y9: =IF($G9,IF(Y$7=0,-1,SUM((Y$7=myMatchDayRange)*((($H9=myHomeTeams)*myPointsHome)+($H9=myAwayTeams)*myPointsAway))),"") -> 0 | Z9: =IF($G9,IF(Z$7=0,-1,SUM((Z$7=myMatchDayRange)*((($H9=myHomeTeams)*myPointsHome)+($H9=myAwayTeams)*myPointsAway))),"") -> 3 | AA9: =IF($G9,IF(AA$7=0,-1,SUM((AA$7=myMatchDayRange)*((($H9=myHomeTeams)*myPointsHome)+($H9=myAwayTeams)*myPointsAway))),"") -> 3 | AB9: =IF($G9,IF(AB$7=0,-1,SUM((AB$7=myMatchDayRange)*((($H9=myHomeTeams)*myPointsHome)+($H9=myAwayTeams)*myPointsAway))),"") -> 3 | AC9: =IF($G9,IF(AC$7=0,-1,SUM((AC$7=myMatchDayRange)*((($H9=myHomeTeams)*myPointsHome)+($H9=myAwayTeams)*myPointsAway))),"") -> 1 | AD9: =IF($G9,IF(AD$7=0,-1,SUM((AD$7=myMatchDayRange)*((($H9=myHomeTeams)*myPointsHome)+($H9=myAwayTeams)*myPointsAway))),"") -> 1 | AE9: =IF($G9,IF(AE$7=0,-1,SUM((AE$7=myMatchDayRange)*((($H9=myHomeTeams)*myPointsHome)+($H9=myAwayTeams)*myPointsAway))),"") -> 0 | AF9: 14 | AG9: 13 | AH9: 15 | AI9: 16 | AJ9: 15 | AK9: 14 | AL9: 12 | AM9: 12 | AN9: 11 | AO9: 12 | AP9: 11 | AQ9: 13.4 | AR9: 16 | AX9: 37904200 | AY9: 1 | AZ9: 78488200 | BA9: 12
F10: 3 | G10: =F10<=Control!$C$15 -> TRUE | H10: =IF($G10,'Calculation Results'!E9,"") -> Darmstadt 98 | I10: =IF($G10,SUM((myMatchDay>=myMatchDayRange)*(($H10=myHomeTeams)+($H10=myAwayTeams))),"") -> 34 | J10: =IF($G10,SUM((myMatchDay>=myMatchDayRange)*(($H10=myHomeTeams)*(myPointsHome=Control!$C$14)+($H10=myAwayTeams)*(myPointsAway=Control!$C$14))),"") -> 9 | K10: =IF($G10,SUM((myMatchDay>=myMatchDayRange)*(($H10=myHomeTeams)*(myPointsHome=1)+($H10=myAwayTeams)*(myPointsAway=1))),"") -> 11 | L10: =IF($G10,SUM((myMatchDay>=myMatchDayRange)*(($H10=myHomeTeams)*(myPointsHome=0)+($H10=myAwayTeams)*(myPointsAway=0))),"") -> 14 | M10: =IF($G10,SUM((myMatchDay>=myMatchDayRange)*((($H10=myHomeTeams)*myGoalsHome)+(($H10=myAwayTeams)*myGoalsAway))),"") -> 38 | N10: =IF($G10,SUM((myMatchDay>=myMatchDayRange)*((($H10=myHomeTeams)*myGoalsAway)+(($H10=myAwayTeams)*myGoalsHome))),"") -> 53 | O10: -15 | P10: 1.117647059 | Q10: 1.558823529 | R10: 38 | S10: 1.117647059 | T10: =IF($G10,SUM((myMatchDay>=myMatchDayRange)*($H10=myHomeTeams)*myPointsHome),"") -> 12 | U10: =IF($G10,SUM((myMatchDay>=myMatchDayRange)*($H10=myAwayTeams)*myPointsAway),"") -> 26 | V10: =IF($G10,IF(V$7=0,-1,SUM((V$7=myMatchDayRange)*((($H10=myHomeTeams)*myPointsHome)+($H10=myAwayTeams)*myPointsAway))),"") -> 1 | W10: =IF($G10,IF(W$7=0,-1,SUM((W$7=myMatchDayRange)*((($H10=myHomeTeams)*myPointsHome)+($H10=myAwayTeams)*myPointsAway))),"") -> 1 | X10: =IF($G10,IF(X$7=0,-1,SUM((X$7=myMatchDayRange)*((($H10=myHomeTeams)*myPointsHome)+($H10=myAwayTeams)*myPointsAway))),"") -> 1 | Y10: =IF($G10,IF(Y$7=0,-1,SUM((Y$7=myMatchDayRange)*((($H10=myHomeTeams)*myPointsHome)+($H10=myAwayTeams)*myPointsAway))),"") -> 1 | Z10: =IF($G10,IF(Z$7=0,-1,SUM((Z$7=myMatchDayRange)*((($H10=myHomeTeams)*myPointsHome)+($H10=myAwayTeams)*myPointsAway))),"") -> 3 | AA10: =IF($G10,IF(AA$7=0,-1,SUM((AA$7=myMatchDayRange)*((($H10=myHomeTeams)*myPointsHome)+($H10=myAwayTeams)*myPointsAway))),"") -> 3 | AB10: =IF($G10,IF(AB$7=0,-1,SUM((AB$7=myMatchDayRange)*((($H10=myHomeTeams)*myPointsHome)+($H10=myAwayTeams)*myPointsAway))),"") -> 0 | AC10: =IF($G10,IF(AC$7=0,-1,SUM((AC$7=myMatchDayRange)*((($H10=myHomeTeams)*myPointsHome)+($H10=myAwayTeams)*myPointsAway))),"") -> 0 | AD10: =IF($G10,IF(AD$7=0,-1,SUM((AD$7=myMatchDayRange)*((($H10=myHomeTeams)*myPointsHome)+($H10=myAwayTeams)*myPointsAway))),"") -> 3 | AE10: =IF($G10,IF(AE$7=0,-1,SUM((AE$7=myMatchDayRange)*((($H10=myHomeTeams)*myPointsHome)+($H10=myAwayTeams)*myPointsAway))),"") -> 0 | AF10: 15 | AG10: 14 | AH10: 13 | AI10: 13 | AJ10: 13 | AK10: 11 | AL10: 13 | AM10: 14 | AN10: 13 | AO10: 14 | AP10: 11 | AQ10: 13.3 | AR10: 15 | AX10: 37853800 | AY10: 1 | AZ10: 60165600 | BA10: 14
F11: 4 | G11: =F11<=Control!$C$15 -> TRUE | H11: =IF($G11,'Calculation Results'!E10,"") -> Borussia Dortmund | I11: =IF($G11,SUM((myMatchDay>=myMatchDayRange)*(($H11=myHomeTeams)+($H11=myAwayTeams))),"") -> 34 | J11: =IF($G11,SUM((myMatchDay>=myMatchDayRange)*(($H11=myHomeTeams)*(myPointsHome=Control!$C$14)+($H11=myAwayTeams)*(myPointsAway=Control!$C$14))),"") -> 24 | K11: =IF($G11,SUM((myMatchDay>=myMatchDayRange)*(($H11=myHomeTeams)*(myPointsHome=1)+($H11=myAwayTeams)*(myPointsAway=1))),"") -> 6 | L11: =IF($G11,SUM((myMatchDay>=myMatchDayRange)*(($H11=myHomeTeams)*(myPointsHome=0)+($H11=myAwayTeams)*(myPointsAway=0))),"") -> 4 | M11: =IF($G11,SUM((myMatchDay>=myMatchDayRange)*((($H11=myHomeTeams)*myGoalsHome)+(($H11=myAwayTeams)*myGoalsAway))),"") -> 82 | N11: =IF($G11,SUM((myMatchDay>=myMatchDayRange)*((($H11=myHomeTeams)*myGoalsAway)+(($H11=myAwayTeams)*myGoalsHome))),"") -> 34 | O11: 48 | P11: 2.411764706 | Q11: 1 | R11: 78 | S11: 2.294117647 | T11: =IF($G11,SUM((myMatchDay>=myMatchDayRange)*($H11=myHomeTeams)*myPointsHome),"") -> 45 | U11: =IF($G11,SUM((myMatchDay>=myMatchDayRange)*($H11=myAwayTeams)*myPointsAway),"") -> 33 | V11: =IF($G11,IF(V$7=0,-1,SUM((V$7=myMatchDayRange)*((($H11=myHomeTeams)*myPointsHome)+($H11=myAwayTeams)*myPointsAway))),"") -> 1 | W11: =IF($G11,IF(W$7=0,-1,SUM((W$7=myMatchDayRange)*((($H11=myHomeTeams)*myPointsHome)+($H11=myAwayTeams)*myPointsAway))),"") -> 3 | X11: =IF($G11,IF(X$7=0,-1,SUM((X$7=myMatchDayRange)*((($H11=myHomeTeams)*myPointsHome)+($H11=myAwayTeams)*myPointsAway))),"") -> 3 | Y11: =IF($G11,IF(Y$7=0,-1,SUM((Y$7=myMatchDayRange)*((($H11=myHomeTeams)*myPointsHome)+($H11=myAwayTeams)*myPointsAway))),"") -> 3 | Z11: =IF($G11,IF(Z$7=0,-1,SUM((Z$7=myMatchDayRange)*((($H11=myHomeTeams)*myPointsHome)+($H11=myAwayTeams)*myPointsAway))),"") -> 1 | AA11: =IF($G11,IF(AA$7=0,-1,SUM((AA$7=myMatchDayRange)*((($H11=myHomeTeams)*myPointsHome)+($H11=myAwayTeams)*myPointsAway))),"") -> 3 | AB11: =IF($G11,IF(AB$7=0,-1,SUM((AB$7=myMatchDayRange)*((($H11=myHomeTeams)*myPointsHome)+($H11=myAwayTeams)*myPointsAway))),"") -> 3 | AC11: =IF($G11,IF(AC$7=0,-1,SUM((AC$7=myMatchDayRange)*((($H11=myHomeTeams)*myPointsHome)+($H11=myAwayTeams)*myPointsAway))),"") -> 3 | AD11: =IF($G11,IF(AD$7=0,-1,SUM((AD$7=myMatchDayRange)*((($H11=myHomeTeams)*myPointsHome)+($H11=myAwayTeams)*myPointsAway))),"") -> 0 | AE11: =IF($G11,IF(AE$7=0,-1,SUM((AE$7=myMatchDayRange)*((($H11=myHomeTeams)*myPointsHome)+($H11=myAwayTeams)*myPointsAway))),"") -> 1 | AF11: 2 | AG11: 2 | AH11: 2 | AI11: 2 | AJ11: 2 | AK11: 2 | AL11: 2 | AM11: 2 | AN11: 2 | AO11: 2 | AP11: 2 | AQ11: 2 | AR11: 2 | AX11: 78488200 | AY11: 1 | AZ11: 55176700 | BA11: 2
F12: 5 | G12: =F12<=Control!$C$15 -> TRUE | H12: =IF($G12,'Calculation Results'!E11,"") -> Bayer Leverkusen | I12: =IF($G12,SUM((myMatchDay>=myMatchDayRange)*(($H12=myHomeTeams)+($H12=myAwayTeams))),"") -> 34 | J12: =IF($G12,SUM((myMatchDay>=myMatchDayRange)*(($H12=myHomeTeams)*(myPointsHome=Control!$C$14)+($H12=myAwayTeams)*(myPointsAway=Control!$C$14))),"") -> 18 | K12: =IF($G12,SUM((myMatchDay>=myMatchDayRange)*(($H12=myHomeTeams)*(myPointsHome=1)+($H12=myAwayTeams)*(myPointsAway=1))),"") -> 6 | L12: =IF($G12,SUM((myMatchDay>=myMatchDayRange)*(($H12=myHomeTeams)*(myPointsHome=0)+($H12=myAwayTeams)*(myPointsAway=0))),"") -> 10 | M12: =IF($G12,SUM((myMatchDay>=myMatchDayRange)*((($H12=myHomeTeams)*myGoalsHome)+(($H12=myAwayTeams)*myGoalsAway))),"") -> 56 | N12: =IF($G12,SUM((myMatchDay>=myMatchDayRange)*((($H12=myHomeTeams)*myGoalsAway)+(($H12=myAwayTeams)*myGoalsHome))),"") -> 40 | O12: 16 | P12: 1.647058824 | Q12: 1.176470588 | R12: 60 | S12: 1.764705882 | T12: =IF($G12,SUM((myMatchDay>=myMatchDayRange)*($H12=myHomeTeams)*myPointsHome),"") -> 33 | U12: =IF($G12,SUM((myMatchDay>=myMatchDayRange)*($H12=myAwayTeams)*myPointsAway),"") -> 27 | V12: =IF($G12,IF(V$7=0,-1,SUM((V$7=myMatchDayRange)*((($H12=myHomeTeams)*myPointsHome)+($H12=myAwayTeams)*myPointsAway))),"") -> 1 | W12: =IF($G12,IF(W$7=0,-1,SUM((W$7=myMatchDayRange)*((($H12=myHomeTeams)*myPointsHome)+($H12=myAwayTeams)*myPointsAway))),"") -> 3 | X12: =IF($G12,IF(X$7=0,-1,SUM((X$7=myMatchDayRange)*((($H12=myHomeTeams)*myPointsHome)+($H12=myAwayTeams)*myPointsAway))),"") -> 3 | Y12: =IF($G12,IF(Y$7=0,-1,SUM((Y$7=myMatchDayRange)*((($H12=myHomeTeams)*myPointsHome)+($H12=myAwayTeams)*myPointsAway))),"") -> 3 | Z12: =IF($G12,IF(Z$7=0,-1,SUM((Z$7=myMatchDayRange)*((($H12=myHomeTeams)*myPointsHome)+($H12=myAwayTeams)*myPointsAway))),"") -> 3 | AA12: =IF($G12,IF(AA$7=0,-1,SUM((AA$7=myMatchDayRange)*((($H12=myHomeTeams)*myPointsHome)+($H12=myAwayTeams)*myPointsAway))),"") -> 3 | AB12: =IF($G12,IF(AB$7=0,-1,SUM((AB$7=myMatchDayRange)*((($H12=myHomeTeams)*myPointsHome)+($H12=myAwayTeams)*myPointsAway))),"") -> 3 | AC12: =IF($G12,IF(AC$7=0,-1,SUM((AC$7=myMatchDayRange)*((($H12=myHomeTeams)*myPointsHome)+($H12=myAwayTeams)*myPointsAway))),"") -> 3 | AD12: =IF($G12,IF(AD$7=0,-1,SUM((AD$7=myMatchDayRange)*((($H12=myHomeTeams)*myPointsHome)+($H12=myAwayTeams)*myPointsAway))),"") -> 0 | AE12: =IF($G12,IF(AE$7=0,-1,SUM((AE$7=myMatchDayRange)*((($H12=myHomeTeams)*myPointsHome)+($H12=myAwayTeams)*myPointsAway))),"") -> 3 | AF12: 8 | AG12: 7 | AH12: 6 | AI12: 5 | AJ12: 4 | AK12: 3 | AL12: 3 | AM12: 3 | AN12: 3 | AO12: 3 | AP12: 3 | AQ12: 4.5 | AR12: 8 | AX12: 60165600 | AY12: 1 | AZ12: 52025100 | BA12: 3
F13: 6 | G13: =F13<=Control!$C$15 -> TRUE | H13: =IF($G13,'Calculation Results'!E12,"") -> FSV Mainz 05 | I13: =IF($G13,SUM((myMatchDay>=myMatchDayRange)*(($H13=myHomeTeams)+($H13=myAwayTeams))),"") -> 34 | J13: =IF($G13,SUM((myMatchDay>=myMatchDayRange)*(($H13=myHomeTeams)*(myPointsHome=Control!$C$14)+($H13=myAwayTeams)*(myPointsAway=Control!$C$14))),"") -> 14 | K13: =IF($G13,SUM((myMatchDay>=myMatchDayRange)*(($H13=myHomeTeams)*(myPointsHome=1)+($H13=myAwayTeams)*(myPointsAway=1))),"") -> 8 | L13: =IF($G13,SUM((myMatchDay>=myMatchDayRange)*(($H13=myHomeTeams)*(myPointsHome=0)+($H13=myAwayTeams)*(myPointsAway=0))),"") -> 12 | M13: =IF($G13,SUM((myMatchDay>=myMatchDayRange)*((($H13=myHomeTeams)*myGoalsHome)+(($H13=myAwayTeams)*myGoalsAway))),"") -> 46 | N13: =IF($G13,SUM((myMatchDay>=myMatchDayRange)*((($H13=myHomeTeams)*myGoalsAway)+(($H13=myAwayTeams)*myGoalsHome))),"") -> 42 | O13: 4 | P13: 1.352941176 | Q13: 1.235294118 | R13: 50 | S13: 1.470588235 | T13: =IF($G13,SUM((myMatchDay>=myMatchDayRange)*($H13=myHomeTeams)*myPointsHome),"") -> 28 | U13: =IF($G13,SUM((myMatchDay>=myMatchDayRange)*($H13=myAwayTeams)*myPointsAway),"") -> 22 | V13: =IF($G13,IF(V$7=0,-1,SUM((V$7=myMatchDayRange)*((($H13=myHomeTeams)*myPointsHome)+($H13=myAwayTeams)*myPointsAway))),"") -> 1 | W13: =IF($G13,IF(W$7=0,-1,SUM((W$7=myMatchDayRange)*((($H13=myHomeTeams)*myPointsHome)+($H13=myAwayTeams)*myPointsAway))),"") -> 0 | X13: =IF($G13,IF(X$7=0,-1,SUM((X$7=myMatchDayRange)*((($H13=myHomeTeams)*myPointsHome)+($H13=myAwayTeams)*myPointsAway))),"") -> 1 | Y13: =IF($G13,IF(Y$7=0,-1,SUM((Y$7=myMatchDayRange)*((($H13=myHomeTeams)*myPointsHome)+($H13=myAwayTeams)*myPointsAway))),"") -> 3 | Z13: =IF($G13,IF(Z$7=0,-1,SUM((Z$7=myMatchDayRange)*((($H13=myHomeTeams)*myPointsHome)+($H13=myAwayTeams)*myPointsAway))),"") -> 1 | AA13: =IF($G13,IF(AA$7=0,-1,SUM((AA$7=myMatchDayRange)*((($H13=myHomeTeams)*myPointsHome)+($H13=myAwayTeams)*myPointsAway))),"") -> 0 | AB13: =IF($G13,IF(AB$7=0,-1,SUM((AB$7=myMatchDayRange)*((($H13=myHomeTeams)*myPointsHome)+($H13=myAwayTeams)*myPointsAway))),"") -> 0 | AC13: =IF($G13,IF(AC$7=0,-1,SUM((AC$7=myMatchDayRange)*((($H13=myHomeTeams)*myPointsHome)+($H13=myAwayTeams)*myPointsAway))),"") -> 1 | AD13: =IF($G13,IF(AD$7=0,-1,SUM((AD$7=myMatchDayRange)*((($H13=myHomeTeams)*myPointsHome)+($H13=myAwayTeams)*myPointsAway))),"") -> 3 | AE13: =IF($G13,IF(AE$7=0,-1,SUM((AE$7=myMatchDayRange)*((($H13=myHomeTeams)*myPointsHome)+($H13=myAwayTeams)*myPointsAway))),"") -> 1 | AF13: 5 | AG13: 6 | AH13: 7 | AI13: 6 | AJ13: 6 | AK13: 6 | AL13: 6 | AM13: 7 | AN13: 5 | AO13: 6 | AP13: 5 | AQ13: 6 | AR13: 7 | AX13: 50044600 | AY13: 1 | AZ13: 50044600 | BA13: 6
F14: 7 | G14: =F14<=Control!$C$15 -> TRUE | H14: =IF($G14,'Calculation Results'!E13,"") -> Werder Bremen | I14: =IF($G14,SUM((myMatchDay>=myMatchDayRange)*(($H14=myHomeTeams)+($H14=myAwayTeams))),"") -> 34 | J14: =IF($G14,SUM((myMatchDay>=myMatchDayRange)*(($H14=myHomeTeams)*(myPointsHome=Control!$C$14)+($H14=myAwayTeams)*(myPointsAway=Control!$C$14))),"") -> 10 | K14: =IF($G14,SUM((myMatchDay>=myMatchDayRange)*(($H14=myHomeTeams)*(myPointsHome=1)+($H14=myAwayTeams)*(myPointsAway=1))),"") -> 8 | L14: =IF($G14,SUM((myMatchDay>=myMatchDayRange)*(($H14=myHomeTeams)*(myPointsHome=0)+($H14=myAwayTeams)*(myPointsAway=0))),"") -> 16 | M14: =IF($G14,SUM((myMatchDay>=myMatchDayRange)*((($H14=myHomeTeams)*myGoalsHome)+(($H14=myAwayTeams)*myGoalsAway))),"") -> 50 | N14: =IF($G14,SUM((myMatchDay>=myMatchDayRange)*((($H14=myHomeTeams)*myGoalsAway)+(($H14=myAwayTeams)*myGoalsHome))),"") -> 65 | O14: -15 | P14: 1.470588235 | Q14: 1.911764706 | R14: 38 | S14: 1.117647059 | T14: =IF($G14,SUM((myMatchDay>=myMatchDayRange)*($H14=myHomeTeams)*myPointsHome),"") -> 20 | U14: =IF($G14,SUM((myMatchDay>=myMatchDayRange)*($H14=myAwayTeams)*myPointsAway),"") -> 18 | V14: =IF($G14,IF(V$7=0,-1,SUM((V$7=myMatchDayRange)*((($H14=myHomeTeams)*myPointsHome)+($H14=myAwayTeams)*myPointsAway))),"") -> 3 | W14: =IF($G14,IF(W$7=0,-1,SUM((W$7=myMatchDayRange)*((($H14=myHomeTeams)*myPointsHome)+($H14=myAwayTeams)*myPointsAway))),"") -> 0 | X14: =IF($G14,IF(X$7=0,-1,SUM((X$7=myMatchDayRange)*((($H14=myHomeTeams)*myPointsHome)+($H14=myAwayTeams)*myPointsAway))),"") -> 1 | Y14: =IF($G14,IF(Y$7=0,-1,SUM((Y$7=myMatchDayRange)*((($H14=myHomeTeams)*myPointsHome)+($H14=myAwayTeams)*myPointsAway))),"") -> 0 | Z14: =IF($G14,IF(Z$7=0,-1,SUM((Z$7=myMatchDayRange)*((($H14=myHomeTeams)*myPointsHome)+($H14=myAwayTeams)*myPointsAway))),"") -> 0 | AA14: =IF($G14,IF(AA$7=0,-1,SUM((AA$7=myMatchDayRange)*((($H14=myHomeTeams)*myPointsHome)+($H14=myAwayTeams)*myPointsAway))),"") -> 3 | AB14: =IF($G14,IF(AB$7=0,-1,SUM((AB$7=myMatchDayRange)*((($H14=myHomeTeams)*myPointsHome)+($H14=myAwayTeams)*myPointsAway))),"") -> 0 | AC14: =IF($G14,IF(AC$7=0,-1,SUM((AC$7=myMatchDayRange)*((($H14=myHomeTeams)*myPointsHome)+($H14=myAwayTeams)*myPointsAway))),"") -> 3 | AD14: =IF($G14,IF(AD$7=0,-1,SUM((AD$7=myMatchDayRange)*((($H14=myHomeTeams)*myPointsHome)+($H14=myAwayTeams)*myPointsAway))),"") -> 1 | AE14: =IF($G14,IF(AE$7=0,-1,SUM((AE$7=myMatchDayRange)*((($H14=myHomeTeams)*myPointsHome)+($H14=myAwayTeams)*myPointsAway))),"") -> 3 | AF14: 13 | AG14: 15 | AH14: 14 | AI14: 15 | AJ14: 16 | AK14: 16 | AL14: 16 | AM14: 15 | AN14: 16 | AO14: 13 | AP14: 13 | AQ14: 14.9 | AR14: 16 | AX14: 37855000 | AY14: 1 | AZ14: 50004200 | BA14: 13
F15: 8 | G15: =F15<=Control!$C$15 -> TRUE | H15: =IF($G15,'Calculation Results'!E14,"") -> VfB Stuttgart | I15: =IF($G15,SUM((myMatchDay>=myMatchDayRange)*(($H15=myHomeTeams)+($H15=myAwayTeams))),"") -> 34 | J15: =IF($G15,SUM((myMatchDay>=myMatchDayRange)*(($H15=myHomeTeams)*(myPointsHome=Control!$C$14)+($H15=myAwayTeams)*(myPointsAway=Control!$C$14))),"") -> 9 | K15: =IF($G15,SUM((myMatchDay>=myMatchDayRange)*(($H15=myHomeTeams)*(myPointsHome=1)+($H15=myAwayTeams)*(myPointsAway=1))),"") -> 6 | L15: =IF($G15,SUM((myMatchDay>=myMatchDayRange)*(($H15=myHomeTeams)*(myPointsHome=0)+($H15=myAwayTeams)*(myPointsAway=0))),"") -> 19 | M15: =IF($G15,SUM((myMatchDay>=myMatchDayRange)*((($H15=myHomeTeams)*myGoalsHome)+(($H15=myAwayTeams)*myGoalsAway))),"") -> 50 | N15: =IF($G15,SUM((myMatchDay>=myMatchDayRange)*((($H15=myHomeTeams)*myGoalsAway)+(($H15=myAwayTeams)*myGoalsHome))),"") -> 75 | O15: -25 | P15: 1.470588235 | Q15: 2.205882353 | R15: 33 | S15: 0.9705882353 | T15: =IF($G15,SUM((myMatchDay>=myMatchDayRange)*($H15=myHomeTeams)*myPointsHome),"") -> 19 | U15: =IF($G15,SUM((myMatchDay>=myMatchDayRange)*($H15=myAwayTeams)*myPointsAway),"") -> 14 | V15: =IF($G15,IF(V$7=0,-1,SUM((V$7=myMatchDayRange)*((($H15=myHomeTeams)*myPointsHome)+($H15=myAwayTeams)*myPointsAway))),"") -> 3 | W15: =IF($G15,IF(W$7=0,-1,SUM((W$7=myMatchDayRange)*((($H15=myHomeTeams)*myPointsHome)+($H15=myAwayTeams)*myPointsAway))),"") -> 1 | X15: =IF($G15,IF(X$7=0,-1,SUM((X$7=myMatchDayRange)*((($H15=myHomeTeams)*myPointsHome)+($H15=myAwayTeams)*myPointsAway))),"") -> 0 | Y15: =IF($G15,IF(Y$7=0,-1,SUM((Y$7=myMatchDayRange)*((($H15=myHomeTeams)*myPointsHome)+($H15=myAwayTeams)*myPointsAway))),"") -> 1 | Z15: =IF($G15,IF(Z$7=0,-1,SUM((Z$7=myMatchDayRange)*((($H15=myHomeTeams)*myPointsHome)+($H15=myAwayTeams)*myPointsAway))),"") -> 0 | AA15: =IF($G15,IF(AA$7=0,-1,SUM((AA$7=myMatchDayRange)*((($H15=myHomeTeams)*myPointsHome)+($H15=myAwayTeams)*myPointsAway))),"") -> 0 | AB15: =IF($G15,IF(AB$7=0,-1,SUM((AB$7=myMatchDayRange)*((($H15=myHomeTeams)*myPointsHome)+($H15=myAwayTeams)*myPointsAway))),"") -> 0 | AC15: =IF($G15,IF(AC$7=0,-1,SUM((AC$7=myMatchDayRange)*((($H15=myHomeTeams)*myPointsHome)+($H15=myAwayTeams)*myPointsAway))),"") -> 0 | AD15: =IF($G15,IF(AD$7=0,-1,SUM((AD$7=myMatchDayRange)*((($H15=myHomeTeams)*myPointsHome)+($H15=myAwayTeams)*myPointsAway))),"") -> 0 | AE15: =IF($G15,IF(AE$7=0,-1,SUM((AE$7=myMatchDayRange)*((($H15=myHomeTeams)*myPointsHome)+($H15=myAwayTeams)*myPointsAway))),"") -> 0 | AF15: 11 | AG15: 11 | AH15: 11 | AI15: 12 | AJ15: 12 | AK15: 15 | AL15: 15 | AM15: 17 | AN15: 17 | AO15: 17 | AP15: 11 | AQ15: 13.8 | AR15: 17 | AX15: 32755000 | AY15: 1 | AZ15: 44984700 | BA15: 17
F16: 9 | G16: =F16<=Control!$C$15 -> TRUE | H16: =IF($G16,'Calculation Results'!E15,"") -> VfL Wolfsburg | I16: =IF($G16,SUM((myMatchDay>=myMatchDayRange)*(($H16=myHomeTeams)+($H16=myAwayTeams))),"") -> 34 | J16: =IF($G16,SUM((myMatchDay>=myMatchDayRange)*(($H16=myHomeTeams)*(myPointsHome=Control!$C$14)+($H16=myAwayTeams)*(myPointsAway=Control!$C$14))),"") -> 12 | K16: =IF($G16,SUM((myMatchDay>=myMatchDayRange)*(($H16=myHomeTeams)*(myPointsHome=1)+($H16=myAwayTeams)*(myPointsAway=1))),"") -> 9 | L16: =IF($G16,SUM((myMatchDay>=myMatchDayRange)*(($H16=myHomeTeams)*(myPointsHome=0)+($H16=myAwayTeams)*(myPointsAway=0))),"") -> 13 | M16: =IF($G16,SUM((myMatchDay>=myMatchDayRange)*((($H16=myHomeTeams)*myGoalsHome)+(($H16=myAwayTeams)*myGoalsAway))),"") -> 47 | N16: =IF($G16,SUM((myMatchDay>=myMatchDayRange)*((($H16=myHomeTeams)*myGoalsAway)+(($H16=myAwayTeams)*myGoalsHome))),"") -> 49 | O16: -2 | P16: 1.382352941 | Q16: 1.441176471 | R16: 45 | S16: 1.323529412 | T16: =IF($G16,SUM((myMatchDay>=myMatchDayRange)*($H16=myHomeTeams)*myPointsHome),"") -> 32 | U16: =IF($G16,SUM((myMatchDay>=myMatchDayRange)*($H16=myAwayTeams)*myPointsAway),"") -> 13 | V16: =IF($G16,IF(V$7=0,-1,SUM((V$7=myMatchDayRange)*((($H16=myHomeTeams)*myPointsHome)+($H16=myAwayTeams)*myPointsAway))),"") -> 3 | W16: =IF($G16,IF(W$7=0,-1,SUM((W$7=myMatchDayRange)*((($H16=myHomeTeams)*myPointsHome)+($H16=myAwayTeams)*myPointsAway))),"") -> 0 | X16: =IF($G16,IF(X$7=0,-1,SUM((X$7=myMatchDayRange)*((($H16=myHomeTeams)*myPointsHome)+($H16=myAwayTeams)*myPointsAway))),"") -> 1 | Y16: =IF($G16,IF(Y$7=0,-1,SUM((Y$7=myMatchDayRange)*((($H16=myHomeTeams)*myPointsHome)+($H16=myAwayTeams)*myPointsAway))),"") -> 0 | Z16: =IF($G16,IF(Z$7=0,-1,SUM((Z$7=myMatchDayRange)*((($H16=myHomeTeams)*myPointsHome)+($H16=myAwayTeams)*myPointsAway))),"") -> 1 | AA16: =IF($G16,IF(AA$7=0,-1,SUM((AA$7=myMatchDayRange)*((($H16=myHomeTeams)*myPointsHome)+($H16=myAwayTeams)*myPointsAway))),"") -> 0 | AB16: =IF($G16,IF(AB$7=0,-1,SUM((AB$7=myMatchDayRange)*((($H16=myHomeTeams)*myPointsHome)+($H16=myAwayTeams)*myPointsAway))),"") -> 0 | AC16: =IF($G16,IF(AC$7=0,-1,SUM((AC$7=myMatchDayRange)*((($H16=myHomeTeams)*myPointsHome)+($H16=myAwayTeams)*myPointsAway))),"") -> 0 | AD16: =IF($G16,IF(AD$7=0,-1,SUM((AD$7=myMatchDayRange)*((($H16=myHomeTeams)*myPointsHome)+($H16=myAwayTeams)*myPointsAway))),"") -> 3 | AE16: =IF($G16,IF(AE$7=0,-1,SUM((AE$7=myMatchDayRange)*((($H16=myHomeTeams)*myPointsHome)+($H16=myAwayTeams)*myPointsAway))),"") -> 3 | AF16: 7 | AG16: 8 | AH16: 8 | AI16: 8 | AJ16: 8 | AK16: 8 | AL16: 10 | AM16: 10 | AN16: 8 | AO16: 8 | AP16: 7 | AQ16: 8.3 | AR16: 10 | AX16: 44984700 | AY16: 1 | AZ16: 42963800 | BA16: 8
F17: 10 | G17: =F17<=Control!$C$15 -> TRUE | H17: =IF($G17,'Calculation Results'!E16,"") -> Hertha BSC Berlin | I17: =IF($G17,SUM((myMatchDay>=myMatchDayRange)*(($H17=myHomeTeams)+($H17=myAwayTeams))),"") -> 34 | J17: =IF($G17,SUM((myMatchDay>=myMatchDayRange)*(($H17=myHomeTeams)*(myPointsHome=Control!$C$14)+($H17=myAwayTeams)*(myPointsAway=Control!$C$14))),"") -> 14 | K17: =IF($G17,SUM((myMatchDay>=myMatchDayRange)*(($H17=myHomeTeams)*(myPointsHome=1)+($H17=myAwayTeams)*(myPointsAway=1))),"") -> 8 | L17: =IF($G17,SUM((myMatchDay>=myMatchDayRange)*(($H17=myHomeTeams)*(myPointsHome=0)+($H17=myAwayTeams)*(myPointsAway=0))),"") -> 12 | M17: =IF($G17,SUM((myMatchDay>=myMatchDayRange)*((($H17=myHomeTeams)*myGoalsHome)+(($H17=myAwayTeams)*myGoalsAway))),"") -> 42 | N17: =IF($G17,SUM((myMatchDay>=myMatchDayRange)*((($H17=myHomeTeams)*myGoalsAway)+(($H17=myAwayTeams)*myGoalsHome))),"") -> 42 | O17: 0 | P17: 1.235294118 | Q17: 1.235294118 | R17: 50 | S17: 1.470588235 | T17: =IF($G17,SUM((myMatchDay>=myMatchDayRange)*($H17=myHomeTeams)*myPointsHome),"") -> 32 | U17: =IF($G17,SUM((myMatchDay>=myMatchDayRange)*($H17=myAwayTeams)*myPointsAway),"") -> 18 | V17: =IF($G17,IF(V$7=0,-1,SUM((V$7=myMatchDayRange)*((($H17=myHomeTeams)*myPointsHome)+($H17=myAwayTeams)*myPointsAway))),"") -> 0 | W17: =IF($G17,IF(W$7=0,-1,SUM((W$7=myMatchDayRange)*((($H17=myHomeTeams)*myPointsHome)+($H17=myAwayTeams)*myPointsAway))),"") -> 3 | X17: =IF($G17,IF(X$7=0,-1,SUM((X$7=myMatchDayRange)*((($H17=myHomeTeams)*myPointsHome)+($H17=myAwayTeams)*myPointsAway))),"") -> 3 | Y17: =IF($G17,IF(Y$7=0,-1,SUM((Y$7=myMatchDayRange)*((($H17=myHomeTeams)*myPointsHome)+($H17=myAwayTeams)*myPointsAway))),"") -> 0 | Z17: =IF($G17,IF(Z$7=0,-1,SUM((Z$7=myMatchDayRange)*((($H17=myHomeTeams)*myPointsHome)+($H17=myAwayTeams)*myPointsAway))),"") -> 1 | AA17: =IF($G17,IF(AA$7=0,-1,SUM((AA$7=myMatchDayRange)*((($H17=myHomeTeams)*myPointsHome)+($H17=myAwayTeams)*myPointsAway))),"") -> 0 | AB17: =IF($G17,IF(AB$7=0,-1,SUM((AB$7=myMatchDayRange)*((($H17=myHomeTeams)*myPointsHome)+($H17=myAwayTeams)*myPointsAway))),"") -> 0 | AC17: =IF($G17,IF(AC$7=0,-1,SUM((AC$7=myMatchDayRange)*((($H17=myHomeTeams)*myPointsHome)+($H17=myAwayTeams)*myPointsAway))),"") -> 0 | AD17: =IF($G17,IF(AD$7=0,-1,SUM((AD$7=myMatchDayRange)*((($H17=myHomeTeams)*myPointsHome)+($H17=myAwayTeams)*myPointsAway))),"") -> 0 | AE17: =IF($G17,IF(AE$7=0,-1,SUM((AE$7=myMatchDayRange)*((($H17=myHomeTeams)*myPointsHome)+($H17=myAwayTeams)*myPointsAway))),"") -> 1 | AF17: 3 | AG17: 3 | AH17: 3 | AI17: 3 | AJ17: 3 | AK17: 4 | AL17: 4 | AM17: 5 | AN17: 6 | AO17: 7 | AP17: 3 | AQ17: 4.1 | AR17: 7 | AX17: 50004200 | AY17: 1 | AZ17: 40944000 | BA17: 7
F18: 11 | G18: =F18<=Control!$C$15 -> TRUE | H18: =IF($G18,'Calculation Results'!E17,"") -> Eintracht Frankfurt | I18: =IF($G18,SUM((myMatchDay>=myMatchDayRange)*(($H18=myHomeTeams)+($H18=myAwayTeams))),"") -> 34 | J18: =IF($G18,SUM((myMatchDay>=myMatchDayRange)*(($H18=myHomeTeams)*(myPointsHome=Control!$C$14)+($H18=myAwayTeams)*(myPointsAway=Control!$C$14))),"") -> 9 | K18: =IF($G18,SUM((myMatchDay>=myMatchDayRange)*(($H18=myHomeTeams)*(myPointsHome=1)+($H18=myAwayTeams)*(myPointsAway=1))),"") -> 9 | L18: =IF($G18,SUM((myMatchDay>=myMatchDayRange)*(($H18=myHomeTeams)*(myPointsHome=0)+($H18=myAwayTeams)*(myPointsAway=0))),"") -> 16 | M18: =IF($G18,SUM((myMatchDay>=myMatchDayRange)*((($H18=myHomeTeams)*myGoalsHome)+(($H18=myAwayTeams)*myGoalsAway))),"") -> 34 | N18: =IF($G18,SUM((myMatchDay>=myMatchDayRange)*((($H18=myHomeTeams)*myGoalsAway)+(($H18=myAwayTeams)*myGoalsHome))),"") -> 52 | O18: -18 | P18: 1 | Q18: 1.529411765 | R18: 36 | S18: 1.058823529 | T18: =IF($G18,SUM((myMatchDay>=myMatchDayRange)*($H18=myHomeTeams)*myPointsHome),"") -> 24 | U18: =IF($G18,SUM((myMatchDay>=myMatchDayRange)*($H18=myAwayTeams)*myPointsAway),"") -> 12 | V18: =IF($G18,IF(V$7=0,-1,SUM((V$7=myMatchDayRange)*((($H18=myHomeTeams)*myPointsHome)+($H18=myAwayTeams)*myPointsAway))),"") -> 1 | W18: =IF($G18,IF(W$7=0,-1,SUM((W$7=myMatchDayRange)*((($H18=myHomeTeams)*myPointsHome)+($H18=myAwayTeams)*myPointsAway))),"") -> 0 | X18: =IF($G18,IF(X$7=0,-1,SUM((X$7=myMatchDayRange)*((($H18=myHomeTeams)*myPointsHome)+($H18=myAwayTeams)*myPointsAway))),"") -> 3 | Y18: =IF($G18,IF(Y$7=0,-1,SUM((Y$7=myMatchDayRange)*((($H18=myHomeTeams)*myPointsHome)+($H18=myAwayTeams)*myPointsAway))),"") -> 0 | Z18: =IF($G18,IF(Z$7=0,-1,SUM((Z$7=myMatchDayRange)*((($H18=myHomeTeams)*myPointsHome)+($H18=myAwayTeams)*myPointsAway))),"") -> 0 | AA18: =IF($G18,IF(AA$7=0,-1,SUM((AA$7=myMatchDayRange)*((($H18=myHomeTeams)*myPointsHome)+($H18=myAwayTeams)*myPointsAway))),"") -> 0 | AB18: =IF($G18,IF(AB$7=0,-1,SUM((AB$7=myMatchDayRange)*((($H18=myHomeTeams)*myPointsHome)+($H18=myAwayTeams)*myPointsAway))),"") -> 3 | AC18: =IF($G18,IF(AC$7=0,-1,SUM((AC$7=myMatchDayRange)*((($H18=myHomeTeams)*myPointsHome)+($H18=myAwayTeams)*myPointsAway))),"") -> 3 | AD18: =IF($G18,IF(AD$7=0,-1,SUM((AD$7=myMatchDayRange)*((($H18=myHomeTeams)*myPointsHome)+($H18=myAwayTeams)*myPointsAway))),"") -> 3 | AE18: =IF($G18,IF(AE$7=0,-1,SUM((AE$7=myMatchDayRange)*((($H18=myHomeTeams)*myPointsHome)+($H18=myAwayTeams)*myPointsAway))),"") -> 0 | AF18: =IF(AF$7=0,NA(),INDEX(myTableDevRange,$F18,AF$7)) -> 16 | AG18: 16 | AH18: 17 | AI18: 17 | AJ18: 17 | AK18: 17 | AL18: 17 | AM18: 16 | AN18: 15 | AO18: 16 | AP18: 15 | AQ18: 16.4 | AR18: 17 | AX18: 35823400 | AY18: 1 | AZ18: 39913300 | BA18: 16
F19: 12 | G19: =F19<=Control!$C$15 -> TRUE | H19: =IF($G19,'Calculation Results'!E18,"") -> 1.FC Köln | I19: =IF($G19,SUM((myMatchDay>=myMatchDayRange)*(($H19=myHomeTeams)+($H19=myAwayTeams))),"") -> 34 | J19: =IF($G19,SUM((myMatchDay>=myMatchDayRange)*(($H19=myHomeTeams)*(myPointsHome=Control!$C$14)+($H19=myAwayTeams)*(myPointsAway=Control!$C$14))),"") -> 10 | K19: =IF($G19,SUM((myMatchDay>=myMatchDayRange)*(($H19=myHomeTeams)*(myPointsHome=1)+($H19=myAwayTeams)*(myPointsAway=1))),"") -> 13 | L19: =IF($G19,SUM((myMatchDay>=myMatchDayRange)*(($H19=myHomeTeams)*(myPointsHome=0)+($H19=myAwayTeams)*(myPointsAway=0))),"") -> 11 | M19: =IF($G19,SUM((myMatchDay>=myMatchDayRange)*((($H19=myHomeTeams)*myGoalsHome)+(($H19=myAwayTeams)*myGoalsAway))),"") -> 38 | N19: =IF($G19,SUM((myMatchDay>=myMatchDayRange)*((($H19=myHomeTeams)*myGoalsAway)+(($H19=myAwayTeams)*myGoalsHome))),"") -> 42 | O19: -4 | P19: 1.117647059 | Q19: 1.235294118 | R19: 43 | S19: 1.264705882 | T19: =IF($G19,SUM((myMatchDay>=myMatchDayRange)*($H19=myHomeTeams)*myPointsHome),"") -> 20 | U19: =IF($G19,SUM((myMatchDay>=myMatchDayRange)*($H19=myAwayTeams)*myPointsAway),"") -> 23 | V19: =IF($G19,IF(V$7=0,-1,SUM((V$7=myMatchDayRange)*((($H19=myHomeTeams)*myPointsHome)+($H19=myAwayTeams)*myPointsAway))),"") -> 0 | W19: =IF($G19,IF(W$7=0,-1,SUM((W$7=myMatchDayRange)*((($H19=myHomeTeams)*myPointsHome)+($H19=myAwayTeams)*myPointsAway))),"") -> 3 | X19: =IF($G19,IF(X$7=0,-1,SUM((X$7=myMatchDayRange)*((($H19=myHomeTeams)*myPointsHome)+($H19=myAwayTeams)*myPointsAway))),"") -> 0 | Y19: =IF($G19,IF(Y$7=0,-1,SUM((Y$7=myMatchDayRange)*((($H19=myHomeTeams)*myPointsHome)+($H19=myAwayTeams)*myPointsAway))),"") -> 1 | Z19: =IF($G19,IF(Z$7=0,-1,SUM((Z$7=myMatchDayRange)*((($H19=myHomeTeams)*myPointsHome)+($H19=myAwayTeams)*myPointsAway))),"") -> 0 | AA19: =IF($G19,IF(AA$7=0,-1,SUM((AA$7=myMatchDayRange)*((($H19=myHomeTeams)*myPointsHome)+($H19=myAwayTeams)*myPointsAway))),"") -> 3 | AB19: =IF($G19,IF(AB$7=0,-1,SUM((AB$7=myMatchDayRange)*((($H19=myHomeTeams)*myPointsHome)+($H19=myAwayTeams)*myPointsAway))),"") -> 3 | AC19: =IF($G19,IF(AC$7=0,-1,SUM((AC$7=myMatchDayRange)*((($H19=myHomeTeams)*myPointsHome)+($H19=myAwayTeams)*myPointsAway))),"") -> 1 | AD19: =IF($G19,IF(AD$7=0,-1,SUM((AD$7=myMatchDayRange)*((($H19=myHomeTeams)*myPointsHome)+($H19=myAwayTeams)*myPointsAway))),"") -> 1 | AE19: =IF($G19,IF(AE$7=0,-1,SUM((AE$7=myMatchDayRange)*((($H19=myHomeTeams)*myPointsHome)+($H19=myAwayTeams)*myPointsAway))),"") -> 1 | AF19: 12 | AG19: 9 | AH19: 9 | AI19: 11 | AJ19: 11 | AK19: 10 | AL19: 8 | AM19: 8 | AN19: 9 | AO19: 9 | AP19: 8 | AQ19: 9.6 | AR19: 12 | AX19: 42963800 | AY19: 1 | AZ19: 37904200 | BA19: 9
F20: 13 | G20: =F20<=Control!$C$15 -> TRUE | H20: =IF($G20,'Calculation Results'!E19,"") -> Hamburger SV | I20: =IF($G20,SUM((myMatchDay>=myMatchDayRange)*(($H20=myHomeTeams)+($H20=myAwayTeams))),"") -> 34 | J20: =IF($G20,SUM((myMatchDay>=myMatchDayRange)*(($H20=myHomeTeams)*(myPointsHome=Control!$C$14)+($H20=myAwayTeams)*(myPointsAway=Control!$C$14))),"") -> 11 | K20: =IF($G20,SUM((myMatchDay>=myMatchDayRange)*(($H20=myHomeTeams)*(myPointsHome=1)+($H20=myAwayTeams)*(myPointsAway=1))),"") -> 8 | L20: =IF($G20,SUM((myMatchDay>=myMatchDayRange)*(($H20=myHomeTeams)*(myPointsHome=0)+($H20=myAwayTeams)*(myPointsAway=0))),"") -> 15 | M20: =IF($G20,SUM((myMatchDay>=myMatchDayRange)*((($H20=myHomeTeams)*myGoalsHome)+(($H20=myAwayTeams)*myGoalsAway))),"") -> 40 | N20: =IF($G20,SUM((myMatchDay>=myMatchDayRange)*((($H20=myHomeTeams)*myGoalsAway)+(($H20=myAwayTeams)*myGoalsHome))),"") -> 46 | O20: -6 | P20: 1.176470588 | Q20: 1.352941176 | R20: 41 | S20: 1.205882353 | T20: =IF($G20,SUM((myMatchDay>=myMatchDayRange)*($H20=myHomeTeams)*myPointsHome),"") -> 19 | U20: =IF($G20,SUM((myMatchDay>=myMatchDayRange)*($H20=myAwayTeams)*myPointsAway),"") -> 22 | V20: =IF($G20,IF(V$7=0,-1,SUM((V$7=myMatchDayRange)*((($H20=myHomeTeams)*myPointsHome)+($H20=myAwayTeams)*myPointsAway))),"") -> 3 | W20: =IF($G20,IF(W$7=0,-1,SUM((W$7=myMatchDayRange)*((($H20=myHomeTeams)*myPointsHome)+($H20=myAwayTeams)*myPointsAway))),"") -> 0 | X20: =IF($G20,IF(X$7=0,-1,SUM((X$7=myMatchDayRange)*((($H20=myHomeTeams)*myPointsHome)+($H20=myAwayTeams)*myPointsAway))),"") -> 0 | Y20: =IF($G20,IF(Y$7=0,-1,SUM((Y$7=myMatchDayRange)*((($H20=myHomeTeams)*myPointsHome)+($H20=myAwayTeams)*myPointsAway))),"") -> 3 | Z20: =IF($G20,IF(Z$7=0,-1,SUM((Z$7=myMatchDayRange)*((($H20=myHomeTeams)*myPointsHome)+($H20=myAwayTeams)*myPointsAway))),"") -> 0 | AA20: =IF($G20,IF(AA$7=0,-1,SUM((AA$7=myMatchDayRange)*((($H20=myHomeTeams)*myPointsHome)+($H20=myAwayTeams)*myPointsAway))),"") -> 0 | AB20: =IF($G20,IF(AB$7=0,-1,SUM((AB$7=myMatchDayRange)*((($H20=myHomeTeams)*myPointsHome)+($H20=myAwayTeams)*myPointsAway))),"") -> 3 | AC20: =IF($G20,IF(AC$7=0,-1,SUM((AC$7=myMatchDayRange)*((($H20=myHomeTeams)*myPointsHome)+($H20=myAwayTeams)*myPointsAway))),"") -> 1 | AD20: =IF($G20,IF(AD$7=0,-1,SUM((AD$7=myMatchDayRange)*((($H20=myHomeTeams)*myPointsHome)+($H20=myAwayTeams)*myPointsAway))),"") -> 0 | AE20: =IF($G20,IF(AE$7=0,-1,SUM((AE$7=myMatchDayRange)*((($H20=myHomeTeams)*myPointsHome)+($H20=myAwayTeams)*myPointsAway))),"") -> 3 | AF20: 10 | AG20: 12 | AH20: 12 | AI20: 10 | AJ20: 10 | AK20: 12 | AL20: 11 | AM20: 11 | AN20: 12 | AO20: 10 | AP20: 10 | AQ20: 11 | AR20: 12 | AX20: 40944000 | AY20: 1 | AZ20: 37855000 | BA20: 10
F21: 14 | G21: =F21<=Control!$C$15 -> TRUE | H21: =IF($G21,'Calculation Results'!E20,"") -> Hannover 96 | I21: =IF($G21,SUM((myMatchDay>=myMatchDayRange)*(($H21=myHomeTeams)+($H21=myAwayTeams))),"") -> 34 | J21: =IF($G21,SUM((myMatchDay>=myMatchDayRange)*(($H21=myHomeTeams)*(myPointsHome=Control!$C$14)+($H21=myAwayTeams)*(myPointsAway=Control!$C$14))),"") -> 7 | K21: =IF($G21,SUM((myMatchDay>=myMatchDayRange)*(($H21=myHomeTeams)*(myPointsHome=1)+($H21=myAwayTeams)*(myPointsAway=1))),"") -> 4 | L21: =IF($G21,SUM((myMatchDay>=myMatchDayRange)*(($H21=myHomeTeams)*(myPointsHome=0)+($H21=myAwayTeams)*(myPointsAway=0))),"") -> 23 | M21: =IF($G21,SUM((myMatchDay>=myMatchDayRange)*((($H21=myHomeTeams)*myGoalsHome)+(($H21=myAwayTeams)*myGoalsAway))),"") -> 31 | N21: =IF($G21,SUM((myMatchDay>=myMatchDayRange)*((($H21=myHomeTeams)*myGoalsAway)+(($H21=myAwayTeams)*myGoalsHome))),"") -> 62 | O21: -31 | P21: 0.9117647059 | Q21: 1.823529412 | R21: 25 | S21: 0.7352941176 | T21: =IF($G21,SUM((myMatchDay>=myMatchDayRange)*($H21=myHomeTeams)*myPointsHome),"") -> 12 | U21: =IF($G21,SUM((myMatchDay>=myMatchDayRange)*($H21=myAwayTeams)*myPointsAway),"") -> 13 | V21: =IF($G21,IF(V$7=0,-1,SUM((V$7=myMatchDayRange)*((($H21=myHomeTeams)*myPointsHome)+($H21=myAwayTeams)*myPointsAway))),"") -> 0 | W21: =IF($G21,IF(W$7=0,-1,SUM((W$7=myMatchDayRange)*((($H21=myHomeTeams)*myPointsHome)+($H21=myAwayTeams)*myPointsAway))),"") -> 0 | X21: =IF($G21,IF(X$7=0,-1,SUM((X$7=myMatchDayRange)*((($H21=myHomeTeams)*myPointsHome)+($H21=myAwayTeams)*myPointsAway))),"") -> 0 | Y21: =IF($G21,IF(Y$7=0,-1,SUM((Y$7=myMatchDayRange)*((($H21=myHomeTeams)*myPointsHome)+($H21=myAwayTeams)*myPointsAway))),"") -> 0 | Z21: =IF($G21,IF(Z$7=0,-1,SUM((Z$7=myMatchDayRange)*((($H21=myHomeTeams)*myPointsHome)+($H21=myAwayTeams)*myPointsAway))),"") -> 1 | AA21: =IF($G21,IF(AA$7=0,-1,SUM((AA$7=myMatchDayRange)*((($H21=myHomeTeams)*myPointsHome)+($H21=myAwayTeams)*myPointsAway))),"") -> 3 | AB21: =IF($G21,IF(AB$7=0,-1,SUM((AB$7=myMatchDayRange)*((($H21=myHomeTeams)*myPointsHome)+($H21=myAwayTeams)*myPointsAway))),"") -> 1 | AC21: =IF($G21,IF(AC$7=0,-1,SUM((AC$7=myMatchDayRange)*((($H21=myHomeTeams)*myPointsHome)+($H21=myAwayTeams)*myPointsAway))),"") -> 0 | AD21: =IF($G21,IF(AD$7=0,-1,SUM((AD$7=myMatchDayRange)*((($H21=myHomeTeams)*myPointsHome)+($H21=myAwayTeams)*myPointsAway))),"") -> 3 | AE21: =IF($G21,IF(AE$7=0,-1,SUM((AE$7=myMatchDayRange)*((($H21=myHomeTeams)*myPointsHome)+($H21=myAwayTeams)*myPointsAway))),"") -> 0 | AF21: 18 | AG21: 18 | AH21: 18 | AI21: 18 | AJ21: 18 | AK21: 18 | AL21: 18 | AM21: 18 | AN21: 18 | AO21: 18 | AP21: 18 | AQ21: 18 | AR21: 18 | AX21: 24693100 | AY21: 1 | AZ21: 37853800 | BA21: 18
F22: 15 | G22: =F22<=Control!$C$15 -> TRUE | H22: =IF($G22,'Calculation Results'!E21,"") -> TSG 1899 Hoffenheim | I22: =IF($G22,SUM((myMatchDay>=myMatchDayRange)*(($H22=myHomeTeams)+($H22=myAwayTeams))),"") -> 34 | J22: =IF($G22,SUM((myMatchDay>=myMatchDayRange)*(($H22=myHomeTeams)*(myPointsHome=Control!$C$14)+($H22=myAwayTeams)*(myPointsAway=Control!$C$14))),"") -> 9 | K22: =IF($G22,SUM((myMatchDay>=myMatchDayRange)*(($H22=myHomeTeams)*(myPointsHome=1)+($H22=myAwayTeams)*(myPointsAway=1))),"") -> 10 | L22: =IF($G22,SUM((myMatchDay>=myMatchDayRange)*(($H22=myHomeTeams)*(myPointsHome=0)+($H22=myAwayTeams)*(myPointsAway=0))),"") -> 15 | M22: =IF($G22,SUM((myMatchDay>=myMatchDayRange)*((($H22=myHomeTeams)*myGoalsHome)+(($H22=myAwayTeams)*myGoalsAway))),"") -> 39 | N22: =IF($G22,SUM((myMatchDay>=myMatchDayRange)*((($H22=myHomeTeams)*myGoalsAway)+(($H22=myAwayTeams)*myGoalsHome))),"") -> 54 | O22: -15 | P22: 1.147058824 | Q22: 1.588235294 | R22: 37 | S22: 1.088235294 | T22: =IF($G22,SUM((myMatchDay>=myMatchDayRange)*($H22=myHomeTeams)*myPointsHome),"") -> 24 | U22: =IF($G22,SUM((myMatchDay>=myMatchDayRange)*($H22=myAwayTeams)*myPointsAway),"") -> 13 | V22: =IF($G22,IF(V$7=0,-1,SUM((V$7=myMatchDayRange)*((($H22=myHomeTeams)*myPointsHome)+($H22=myAwayTeams)*myPointsAway))),"") -> 0 | W22: =IF($G22,IF(W$7=0,-1,SUM((W$7=myMatchDayRange)*((($H22=myHomeTeams)*myPointsHome)+($H22=myAwayTeams)*myPointsAway))),"") -> 3 | X22: =IF($G22,IF(X$7=0,-1,SUM((X$7=myMatchDayRange)*((($H22=myHomeTeams)*myPointsHome)+($H22=myAwayTeams)*myPointsAway))),"") -> 3 | Y22: =IF($G22,IF(Y$7=0,-1,SUM((Y$7=myMatchDayRange)*((($H22=myHomeTeams)*myPointsHome)+($H22=myAwayTeams)*myPointsAway))),"") -> 1 | Z22: =IF($G22,IF(Z$7=0,-1,SUM((Z$7=myMatchDayRange)*((($H22=myHomeTeams)*myPointsHome)+($H22=myAwayTeams)*myPointsAway))),"") -> 3 | AA22: =IF($G22,IF(AA$7=0,-1,SUM((AA$7=myMatchDayRange)*((($H22=myHomeTeams)*myPointsHome)+($H22=myAwayTeams)*myPointsAway))),"") -> 3 | AB22: =IF($G22,IF(AB$7=0,-1,SUM((AB$7=myMatchDayRange)*((($H22=myHomeTeams)*myPointsHome)+($H22=myAwayTeams)*myPointsAway))),"") -> 0 | AC22: =IF($G22,IF(AC$7=0,-1,SUM((AC$7=myMatchDayRange)*((($H22=myHomeTeams)*myPointsHome)+($H22=myAwayTeams)*myPointsAway))),"") -> 3 | AD22: =IF($G22,IF(AD$7=0,-1,SUM((AD$7=myMatchDayRange)*((($H22=myHomeTeams)*myPointsHome)+($H22=myAwayTeams)*myPointsAway))),"") -> 0 | AE22: =IF($G22,IF(AE$7=0,-1,SUM((AE$7=myMatchDayRange)*((($H22=myHomeTeams)*myPointsHome)+($H22=myAwayTeams)*myPointsAway))),"") -> 0 | AF22: 17 | AG22: 17 | AH22: 16 | AI22: 14 | AJ22: 14 | AK22: 13 | AL22: 14 | AM22: 13 | AN22: 14 | AO22: 15 | AP22: 13 | AQ22: 14.7 | AR22: 17 | AX22: 36853900 | AY22: 1 | AZ22: 36853900 | BA22: 15
F23: 16 | G23: =F23<=Control!$C$15 -> TRUE | H23: =IF($G23,'Calculation Results'!E22,"") -> FC Schalke 04 | I23: =IF($G23,SUM((myMatchDay>=myMatchDayRange)*(($H23=myHomeTeams)+($H23=myAwayTeams))),"") -> 34 | J23: =IF($G23,SUM((myMatchDay>=myMatchDayRange)*(($H23=myHomeTeams)*(myPointsHome=Control!$C$14)+($H23=myAwayTeams)*(myPointsAway=Control!$C$14))),"") -> 15 | K23: =IF($G23,SUM((myMatchDay>=myMatchDayRange)*(($H23=myHomeTeams)*(myPointsHome=1)+($H23=myAwayTeams)*(myPointsAway=1))),"") -> 7 | L23: =IF($G23,SUM((myMatchDay>=myMatchDayRange)*(($H23=myHomeTeams)*(myPointsHome=0)+($H23=myAwayTeams)*(myPointsAway=0))),"") -> 12 | M23: =IF($G23,SUM((myMatchDay>=myMatchDayRange)*((($H23=myHomeTeams)*myGoalsHome)+(($H23=myAwayTeams)*myGoalsAway))),"") -> 51 | N23: =IF($G23,SUM((myMatchDay>=myMatchDayRange)*((($H23=myHomeTeams)*myGoalsAway)+(($H23=myAwayTeams)*myGoalsHome))),"") -> 49 | O23: 2 | P23: 1.5 | Q23: 1.441176471 | R23: 52 | S23: 1.529411765 | T23: =IF($G23,SUM((myMatchDay>=myMatchDayRange)*($H23=myHomeTeams)*myPointsHome),"") -> 29 | U23: =IF($G23,SUM((myMatchDay>=myMatchDayRange)*($H23=myAwayTeams)*myPointsAway),"") -> 23 | V23: =IF($G23,IF(V$7=0,-1,SUM((V$7=myMatchDayRange)*((($H23=myHomeTeams)*myPointsHome)+($H23=myAwayTeams)*myPointsAway))),"") -> 3 | W23: =IF($G23,IF(W$7=0,-1,SUM((W$7=myMatchDayRange)*((($H23=myHomeTeams)*myPointsHome)+($H23=myAwayTeams)*myPointsAway))),"") -> 0 | X23: =IF($G23,IF(X$7=0,-1,SUM((X$7=myMatchDayRange)*((($H23=myHomeTeams)*myPointsHome)+($H23=myAwayTeams)*myPointsAway))),"") -> 3 | Y23: =IF($G23,IF(Y$7=0,-1,SUM((Y$7=myMatchDayRange)*((($H23=myHomeTeams)*myPointsHome)+($H23=myAwayTeams)*myPointsAway))),"") -> 0 | Z23: =IF($G23,IF(Z$7=0,-1,SUM((Z$7=myMatchDayRange)*((($H23=myHomeTeams)*myPointsHome)+($H23=myAwayTeams)*myPointsAway))),"") -> 1 | AA23: =IF($G23,IF(AA$7=0,-1,SUM((AA$7=myMatchDayRange)*((($H23=myHomeTeams)*myPointsHome)+($H23=myAwayTeams)*myPointsAway))),"") -> 0 | AB23: =IF($G23,IF(AB$7=0,-1,SUM((AB$7=myMatchDayRange)*((($H23=myHomeTeams)*myPointsHome)+($H23=myAwayTeams)*myPointsAway))),"") -> 0 | AC23: =IF($G23,IF(AC$7=0,-1,SUM((AC$7=myMatchDayRange)*((($H23=myHomeTeams)*myPointsHome)+($H23=myAwayTeams)*myPointsAway))),"") -> 3 | AD23: =IF($G23,IF(AD$7=0,-1,SUM((AD$7=myMatchDayRange)*((($H23=myHomeTeams)*myPointsHome)+($H23=myAwayTeams)*myPointsAway))),"") -> 1 | AE23: =IF($G23,IF(AE$7=0,-1,SUM((AE$7=myMatchDayRange)*((($H23=myHomeTeams)*myPointsHome)+($H23=myAwayTeams)*myPointsAway))),"") -> 3 | AF23: 4 | AG23: 5 | AH23: 4 | AI23: 7 | AJ23: 7 | AK23: 7 | AL23: 7 | AM23: 6 | AN23: 7 | AO23: 5 | AP23: 4 | AQ23: 5.9 | AR23: 7 | AX23: 52025100 | AY23: 1 | AZ23: 35823400 | BA23: 5
F24: 17 | G24: =F24<=Control!$C$15 -> TRUE | H24: =IF($G24,'Calculation Results'!E23,"") -> FC Ingolstadt | I24: =IF($G24,SUM((myMatchDay>=myMatchDayRange)*(($H24=myHomeTeams)+($H24=myAwayTeams))),0) -> 34 | J24: =IF($G24,SUM((myMatchDay>=myMatchDayRange)*(($H24=myHomeTeams)*(myPointsHome=Control!$C$14)+($H24=myAwayTeams)*(myPointsAway=Control!$C$14))),0) -> 10 | K24: =IF($G24,SUM((myMatchDay>=myMatchDayRange)*(($H24=myHomeTeams)*(myPointsHome=1)+($H24=myAwayTeams)*(myPointsAway=1))),0) -> 10 | L24: =IF($G24,SUM((myMatchDay>=myMatchDayRange)*(($H24=myHomeTeams)*(myPointsHome=0)+($H24=myAwayTeams)*(myPointsAway=0))),0) -> 14 | M24: =IF($G24,SUM((myMatchDay>=myMatchDayRange)*((($H24=myHomeTeams)*myGoalsHome)+(($H24=myAwayTeams)*myGoalsAway))),0) -> 33 | N24: =IF($G24,SUM((myMatchDay>=myMatchDayRange)*((($H24=myHomeTeams)*myGoalsAway)+(($H24=myAwayTeams)*myGoalsHome))),0) -> 42 | O24: =IF($G24,M24-N24,0) -> -9 | P24: =IF($G24,M24/$I24,0) -> 0.9705882353 | Q24: =IF($G24,N24/$I24,0) -> 1.235294118 | R24: =IF($G24,T24+U24,0) -> 40 | S24: =IF($G24,R24/$I24,0) -> 1.176470588 | T24: =IF($G24,SUM((myMatchDay>=myMatchDayRange)*($H24=myHomeTeams)*myPointsHome),0) -> 26 | U24: =IF($G24,SUM((myMatchDay>=myMatchDayRange)*($H24=myAwayTeams)*myPointsAway),0) -> 14 | V24: =IF($G24,IF(V$7=0,-1,SUM((V$7=myMatchDayRange)*((($H24=myHomeTeams)*myPointsHome)+($H24=myAwayTeams)*myPointsAway))),0) -> 1 | W24: =IF($G24,IF(W$7=0,-1,SUM((W$7=myMatchDayRange)*((($H24=myHomeTeams)*myPointsHome)+($H24=myAwayTeams)*myPointsAway))),0) -> 1 | X24: =IF($G24,IF(X$7=0,-1,SUM((X$7=myMatchDayRange)*((($H24=myHomeTeams)*myPointsHome)+($H24=myAwayTeams)*myPointsAway))),0) -> 0 | Y24: =IF($G24,IF(Y$7=0,-1,SUM((Y$7=myMatchDayRange)*((($H24=myHomeTeams)*myPointsHome)+($H24=myAwayTeams)*myPointsAway))),0) -> 3 | Z24: =IF($G24,IF(Z$7=0,-1,SUM((Z$7=myMatchDayRange)*((($H24=myHomeTeams)*myPointsHome)+($H24=myAwayTeams)*myPointsAway))),0) -> 3 | AA24: =IF($G24,IF(AA$7=0,-1,SUM((AA$7=myMatchDayRange)*((($H24=myHomeTeams)*myPointsHome)+($H24=myAwayTeams)*myPointsAway))),0) -> 0 | AB24: =IF($G24,IF(AB$7=0,-1,SUM((AB$7=myMatchDayRange)*((($H24=myHomeTeams)*myPointsHome)+($H24=myAwayTeams)*myPointsAway))),0) -> 1 | AC24: =IF($G24,IF(AC$7=0,-1,SUM((AC$7=myMatchDayRange)*((($H24=myHomeTeams)*myPointsHome)+($H24=myAwayTeams)*myPointsAway))),0) -> 0 | AD24: =IF($G24,IF(AD$7=0,-1,SUM((AD$7=myMatchDayRange)*((($H24=myHomeTeams)*myPointsHome)+($H24=myAwayTeams)*myPointsAway))),0) -> 0 | AE24: =IF($G24,IF(AE$7=0,-1,SUM((AE$7=myMatchDayRange)*((($H24=myHomeTeams)*myPointsHome)+($H24=myAwayTeams)*myPointsAway))),0) -> 0 | AF24: 9 | AG24: 10 | AH24: 10 | AI24: 9 | AJ24: 9 | AK24: 9 | AL24: 9 | AM24: 9 | AN24: 10 | AO24: 11 | AP24: 9 | AQ24: 9.5 | AR24: 11 | AX24: 39913300 | AY24: 1 | AZ24: 32755000 | BA24: 11
F25: 18 | G25: =F25<=Control!$C$15 -> TRUE | H25: =IF($G25,'Calculation Results'!E24,"") -> Borussia M'gladbach | I25: =IF($G25,SUM((myMatchDay>=myMatchDayRange)*(($H25=myHomeTeams)+($H25=myAwayTeams))),0) -> 34 | J25: =IF($G25,SUM((myMatchDay>=myMatchDayRange)*(($H25=myHomeTeams)*(myPointsHome=Control!$C$14)+($H25=myAwayTeams)*(myPointsAway=Control!$C$14))),0) -> 17 | K25: =IF($G25,SUM((myMatchDay>=myMatchDayRange)*(($H25=myHomeTeams)*(myPointsHome=1)+($H25=myAwayTeams)*(myPointsAway=1))),0) -> 4 | L25: =IF($G25,SUM((myMatchDay>=myMatchDayRange)*(($H25=myHomeTeams)*(myPointsHome=0)+($H25=myAwayTeams)*(myPointsAway=0))),0) -> 13 | M25: =IF($G25,SUM((myMatchDay>=myMatchDayRange)*((($H25=myHomeTeams)*myGoalsHome)+(($H25=myAwayTeams)*myGoalsAway))),0) -> 67 | N25: =IF($G25,SUM((myMatchDay>=myMatchDayRange)*((($H25=myHomeTeams)*myGoalsAway)+(($H25=myAwayTeams)*myGoalsHome))),0) -> 50 | O25: =IF($G25,M25-N25,0) -> 17 | P25: =IF($G25,M25/$I25,0) -> 1.970588235 | Q25: =IF($G25,N25/$I25,0) -> 1.470588235 | R25: =IF($G25,T25+U25,0) -> 55 | S25: =IF($G25,R25/$I25,0) -> 1.617647059 | T25: =IF($G25,SUM((myMatchDay>=myMatchDayRange)*($H25=myHomeTeams)*myPointsHome),0) -> 40 | U25: =IF($G25,SUM((myMatchDay>=myMatchDayRange)*($H25=myAwayTeams)*myPointsAway),0) -> 15 | V25: =IF($G25,IF(V$7=0,-1,SUM((V$7=myMatchDayRange)*((($H25=myHomeTeams)*myPointsHome)+($H25=myAwayTeams)*myPointsAway))),0) -> 0 | W25: =IF($G25,IF(W$7=0,-1,SUM((W$7=myMatchDayRange)*((($H25=myHomeTeams)*myPointsHome)+($H25=myAwayTeams)*myPointsAway))),0) -> 3 | X25: =IF($G25,IF(X$7=0,-1,SUM((X$7=myMatchDayRange)*((($H25=myHomeTeams)*myPointsHome)+($H25=myAwayTeams)*myPointsAway))),0) -> 0 | Y25: =IF($G25,IF(Y$7=0,-1,SUM((Y$7=myMatchDayRange)*((($H25=myHomeTeams)*myPointsHome)+($H25=myAwayTeams)*myPointsAway))),0) -> 3 | Z25: =IF($G25,IF(Z$7=0,-1,SUM((Z$7=myMatchDayRange)*((($H25=myHomeTeams)*myPointsHome)+($H25=myAwayTeams)*myPointsAway))),0) -> 0 | AA25: =IF($G25,IF(AA$7=0,-1,SUM((AA$7=myMatchDayRange)*((($H25=myHomeTeams)*myPointsHome)+($H25=myAwayTeams)*myPointsAway))),0) -> 0 | AB25: =IF($G25,IF(AB$7=0,-1,SUM((AB$7=myMatchDayRange)*((($H25=myHomeTeams)*myPointsHome)+($H25=myAwayTeams)*myPointsAway))),0) -> 3 | AC25: =IF($G25,IF(AC$7=0,-1,SUM((AC$7=myMatchDayRange)*((($H25=myHomeTeams)*myPointsHome)+($H25=myAwayTeams)*myPointsAway))),0) -> 1 | AD25: =IF($G25,IF(AD$7=0,-1,SUM((AD$7=myMatchDayRange)*((($H25=myHomeTeams)*myPointsHome)+($H25=myAwayTeams)*myPointsAway))),0) -> 3 | AE25: =IF($G25,IF(AE$7=0,-1,SUM((AE$7=myMatchDayRange)*((($H25=myHomeTeams)*myPointsHome)+($H25=myAwayTeams)*myPointsAway))),0) -> 3 | AF25: 6 | AG25: 4 | AH25: 5 | AI25: 4 | AJ25: 5 | AK25: 5 | AL25: 5 | AM25: 4 | AN25: 4 | AO25: 4 | AP25: 4 | AQ25: 4.6 | AR25: 6 | AX25: 55176700 | AY25: 1 | AZ25: 24693100 | BA25: 4
B27: Part 2: consolidate sorted table and add prevoius week position / trend
V29: Last 10 matches | AF29: Last 10 positions
I30: M | J30: W | K30: D | L30: L | M30: GF | N30: GA | O30: Diff | P30: Avg. GF | Q30: Avg. GA | R30: Pts | S30: PpM | T30: PtH | U30: PtA | V30: =MAX(W30-1,0) -> 25 | W30: 26 | X30: 27 | Y30: 28 | Z30: 29 | AA30: 30 | AB30: 31 | AC30: 32 | AD30: 33 | AE30: =myMatchDay -> 34 | AF30: =MAX(AG30-1,0) -> 25 | AG30: 26 | AH30: 27 | AI30: 28 | AJ30: 29 | AK30: 30 | AL30: 31 | AM30: 32 | AN30: 33 | AO30: =myMatchDay -> 34 | AP30: B | AQ30: Avg. | AR30: W
B31: 1 | C31: =IF(G31,B31,"") -> 1 | D31: =IF(G31,AO31,"") -> 1 | E31: =IF(AND(myMatchDay>1,G31),AN31,"") -> 1 | F31: =IF(E31="","",IF(B31<E31,"▲",IF(B31>E31,"▼","↔"))) -> ↔ | G31: =INDEX(G$8:G$25,MATCH($B31,$BA$8:$BA$25,0),1) -> TRUE | H31: FC Bayern München | I31: =IF($G31,INDEX(I$8:I$25,MATCH($B31,$BA$8:$BA$25,0),1),"") -> 34 | J31: 28 | K31: 4 | L31: 2 | M31: 80 | N31: 17 | O31: 63 | P31: 2.352941176 | Q31: 0.5 | R31: 88 | S31: 2.588235294 | T31: 46 | U31: 42 | V31: =IF($G31,INDEX(V$8:V$25,MATCH($B31,$BA$8:$BA$25,0),1),NA()) -> 1 | W31: 3 | X31: 3 | Y31: 3 | Z31: 3 | AA31: 3 | AB31: 3 | AC31: 1 | AD31: 3 | AE31: 3 | AF31: =IF($G31,INDEX(AF$8:AF$25,MATCH($B31,$BA$8:$BA$25,0),1),NA()) -> 1 | AG31: 1 | AH31: 1 | AI31: 1 | AJ31: 1 | AK31: 1 | AL31: 1 | AM31: 1 | AN31: 1 | AO31: 1 | AP31: =IF($G31,INDEX(AP$8:AP$25,MATCH($B31,$BA$8:$BA$25,0),1),"") -> 1 | AQ31: 1 | AR31: 1
B32: 2 | C32: =IF(G32,B32,"") -> 2 | D32: 2 | E32: 2 | F32: ↔ | G32: TRUE | H32: Borussia Dortmund | I32: 34 | J32: 24 | K32: 6 | L32: 4 | M32: 82 | N32: 34 | O32: 48 | P32: 2.411764706 | Q32: 1 | R32: 78 | S32: 2.294117647 | T32: 45 | U32: 33 | V32: 1 | W32: 3 | X32: 3 | Y32: 3 | Z32: 1 | AA32: 3 | AB32: 3 | AC32: 3 | AD32: 0 | AE32: 1 | AF32: 2 | AG32: 2 | AH32: 2 | AI32: 2 | AJ32: 2 | AK32: 2 | AL32: 2 | AM32: 2 | AN32: 2 | AO32: 2 | AP32: 2 | AQ32: 2 | AR32: 2
B33: 3 | C33: 3 | D33: 3 | E33: 3 | F33: ↔ | G33: TRUE | H33: Bayer Leverkusen | I33: 34 | J33: 18 | K33: 6 | L33: 10 | M33: 56 | N33: 40 | O33: 16 | P33: 1.647058824 | Q33: 1.176470588 | R33: 60 | S33: 1.764705882 | T33: 33 | U33: 27 | V33: 1 | W33: 3 | X33: 3 | Y33: 3 | Z33: 3 | AA33: 3 | AB33: 3 | AC33: 3 | AD33: 0 | AE33: 3 | AF33: 8 | AG33: 7 | AH33: 6 | AI33: 5 | AJ33: 4 | AK33: 3 | AL33: 3 | AM33: 3 | AN33: 3 | AO33: 3 | AP33: 3 | AQ33: 4.5 | AR33: 8
B34: 4 | C34: 4 | D34: 4 | E34: 4 | F34: ↔ | G34: TRUE | H34: Borussia M'gladbach | I34: 34 | J34: 17 | K34: 4 | L34: 13 | M34: 67 | N34: 50 | O34: 17 | P34: 1.970588235 | Q34: 1.470588235 | R34: 55 | S34: 1.617647059 | T34: 40 | U34: 15 | V34: 0 | W34: 3 | X34: 0 | Y34: 3 | Z34: 0 | AA34: 0 | AB34: 3 | AC34: 1 | AD34: 3 | AE34: 3 | AF34: 6 | AG34: 4 | AH34: 5 | AI34: 4 | AJ34: 5 | AK34: 5 | AL34: 5 | AM34: 4 | AN34: 4 | AO34: 4 | AP34: 4 | AQ34: 4.6 | AR34: 6
B35: 5 | C35: 5 | D35: 5 | E35: 7 | F35: ▲ | G35: TRUE | H35: FC Schalke 04 | I35: 34 | J35: 15 | K35: 7 | L35: 12 | M35: 51 | N35: 49 | O35: 2 | P35: 1.5 | Q35: 1.441176471 | R35: 52 | S35: 1.529411765 | T35: 29 | U35: 23 | V35: 3 | W35: 0 | X35: 3 | Y35: 0 | Z35: 1 | AA35: 0 | AB35: 0 | AC35: 3 | AD35: 1 | AE35: 3 | AF35: 4 | AG35: 5 | AH35: 4 | AI35: 7 | AJ35: 7 | AK35: 7 | AL35: 7 | AM35: 6 | AN35: 7 | AO35: 5 | AP35: 4 | AQ35: 5.9 | AR35: 7
B36: 6 | C36: 6 | D36: 6 | E36: 5 | F36: ▼ | G36: TRUE | H36: FSV Mainz 05 | I36: 34 | J36: 14 | K36: 8 | L36: 12 | M36: 46 | N36: 42 | O36: 4 | P36: 1.352941176 | Q36: 1.235294118 | R36: 50 | S36: 1.470588235 | T36: 28 | U36: 22 | V36: 1 | W36: 0 | X36: 1 | Y36: 3 | Z36: 1 | AA36: 0 | AB36: 0 | AC36: 1 | AD36: 3 | AE36: 1 | AF36: 5 | AG36: 6 | AH36: 7 | AI36: 6 | AJ36: 6 | AK36: 6 | AL36: 6 | AM36: 7 | AN36: 5 | AO36: 6 | AP36: 5 | AQ36: 6 | AR36: 7
B37: 7 | C37: 7 | D37: 7 | E37: 6 | F37: ▼ | G37: TRUE | H37: Hertha BSC Berlin | I37: 34 | J37: 14 | K37: 8 | L37: 12 | M37: 42 | N37: 42 | O37: 0 | P37: 1.235294118 | Q37: 1.235294118 | R37: 50 | S37: 1.470588235 | T37: 32 | U37: 18 | V37: 0 | W37: 3 | X37: 3 | Y37: 0 | Z37: 1 | AA37: 0 | AB37: 0 | AC37: 0 | AD37: 0 | AE37: 1 | AF37: 3 | AG37: 3 | AH37: 3 | AI37: 3 | AJ37: 3 | AK37: 4 | AL37: 4 | AM37: 5 | AN37: 6 | AO37: 7 | AP37: 3 | AQ37: 4.1 | AR37: 7
B38: 8 | C38: 8 | D38: 8 | E38: 8 | F38: ↔ | G38: TRUE | H38: VfL Wolfsburg | I38: 34 | J38: 12 | K38: 9 | L38: 13 | M38: 47 | N38: 49 | O38: -2 | P38: 1.382352941 | Q38: 1.441176471 | R38: 45 | S38: 1.323529412 | T38: 32 | U38: 13 | V38: 3 | W38: 0 | X38: 1 | Y38: 0 | Z38: 1 | AA38: 0 | AB38: 0 | AC38: 0 | AD38: 3 | AE38: 3 | AF38: 7 | AG38: 8 | AH38: 8 | AI38: 8 | AJ38: 8 | AK38: 8 | AL38: 10 | AM38: 10 | AN38: 8 | AO38: 8 | AP38: 7 | AQ38: 8.3 | AR38: 10
B39: 9 | C39: 9 | D39: 9 | E39: 9 | F39: ↔ | G39: TRUE | H39: 1.FC Köln | I39: 34 | J39: 10 | K39: 13 | L39: 11 | M39: 38 | N39: 42 | O39: -4 | P39: 1.117647059 | Q39: 1.235294118 | R39: 43 | S39: 1.264705882 | T39: 20 | U39: 23 | V39: 0 | W39: 3 | X39: 0 | Y39: 1 | Z39: 0 | AA39: 3 | AB39: 3 | AC39: 1 | AD39: 1 | AE39: 1 | AF39: 12 | AG39: 9 | AH39: 9 | AI39: 11 | AJ39: 11 | AK39: 10 | AL39: 8 | AM39: 8 | AN39: 9 | AO39: 9 | AP39: 8 | AQ39: 9.6 | AR39: 12
B40: 10 | C40: 10 | D40: 10 | E40: 12 | F40: ▲ | G40: TRUE | H40: Hamburger SV | I40: 34 | J40: 11 | K40: 8 | L40: 15 | M40: 40 | N40: 46 | O40: -6 | P40: 1.176470588 | Q40: 1.352941176 | R40: 41 | S40: 1.205882353 | T40: 19 | U40: 22 | V40: 3 | W40: 0 | X40: 0 | Y40: 3 | Z40: 0 | AA40: 0 | AB40: 3 | AC40: 1 | AD40: 0 | AE40: 3 | AF40: 10 | AG40: 12 | AH40: 12 | AI40: 10 | AJ40: 10 | AK40: 12 | AL40: 11 | AM40: 11 | AN40: 12 | AO40: 10 | AP40: 10 | AQ40: 11 | AR40: 12
B41: 11 | C41: 11 | D41: 11 | E41: 10 | F41: ▼ | G41: TRUE | H41: FC Ingolstadt | I41: =IF($G41,INDEX(I$8:I$25,MATCH($B41,$BA$8:$BA$25,0),1),"") -> 34 | J41: 10 | K41: 10 | L41: 14 | M41: 33 | N41: 42 | O41: -9 | P41: 0.9705882353 | Q41: 1.235294118 | R41: 40 | S41: 1.176470588 | T41: 26 | U41: 14 | V41: =IF($G41,INDEX(V$8:V$25,MATCH($B41,$BA$8:$BA$25,0),1),NA()) -> 1 | W41: 1 | X41: 0 | Y41: 3 | Z41: 3 | AA41: 0 | AB41: 1 | AC41: 0 | AD41: 0 | AE41: 0 | AF41: =IF($G41,INDEX(AF$8:AF$25,MATCH($B41,$BA$8:$BA$25,0),1),NA()) -> 9 | AG41: 10 | AH41: 10 | AI41: 9 | AJ41: 9 | AK41: 9 | AL41: 9 | AM41: 9 | AN41: 10 | AO41: 11 | AP41: 9 | AQ41: 9.5 | AR41: 11
B42: 12 | C42: 12 | D42: 12 | E42: 11 | F42: ▼ | G42: TRUE | H42: FC Augsburg | I42: 34 | J42: 9 | K42: 11 | L42: 14 | M42: 42 | N42: 52 | O42: -10 | P42: 1.235294118 | Q42: 1.529411765 | R42: 38 | S42: 1.117647059 | T42: 15 | U42: 23 | V42: 1 | W42: 1 | X42: 0 | Y42: 0 | Z42: 3 | AA42: 3 | AB42: 3 | AC42: 1 | AD42: 1 | AE42: 0 | AF42: 14 | AG42: 13 | AH42: 15 | AI42: 16 | AJ42: 15 | AK42: 14 | AL42: 12 | AM42: 12 | AN42: 11 | AO42: 12 | AP42: 11 | AQ42: 13.4 | AR42: 16
B43: 13 | C43: 13 | D43: 13 | E43: 16 | F43: ▲ | G43: TRUE | H43: Werder Bremen | I43: 34 | J43: 10 | K43: 8 | L43: 16 | M43: 50 | N43: 65 | O43: -15 | P43: 1.470588235 | Q43: 1.911764706 | R43: 38 | S43: 1.117647059 | T43: 20 | U43: 18 | V43: 3 | W43: 0 | X43: 1 | Y43: 0 | Z43: 0 | AA43: 3 | AB43: 0 | AC43: 3 | AD43: 1 | AE43: 3 | AF43: 13 | AG43: 15 | AH43: 14 | AI43: 15 | AJ43: 16 | AK43: 16 | AL43: 16 | AM43: 15 | AN43: 16 | AO43: 13 | AP43: 13 | AQ43: 14.9 | AR43: 16
B44: 14 | C44: 14 | D44: 14 | E44: 13 | F44: ▼ | G44: TRUE | H44: Darmstadt 98 | I44: 34 | J44: 9 | K44: 11 | L44: 14 | M44: 38 | N44: 53 | O44: -15 | P44: 1.117647059 | Q44: 1.558823529 | R44: 38 | S44: 1.117647059 | T44: 12 | U44: 26 | V44: 1 | W44: 1 | X44: 1 | Y44: 1 | Z44: 3 | AA44: 3 | AB44: 0 | AC44: 0 | AD44: 3 | AE44: 0 | AF44: 15 | AG44: 14 | AH44: 13 | AI44: 13 | AJ44: 13 | AK44: 11 | AL44: 13 | AM44: 14 | AN44: 13 | AO44: 14 | AP44: 11 | AQ44: 13.3 | AR44: 15
B45: 15 | C45: 15 | D45: 15 | E45: 14 | F45: ▼ | G45: TRUE | H45: TSG 1899 Hoffenheim | I45: 34 | J45: 9 | K45: 10 | L45: 15 | M45: 39 | N45: 54 | O45: -15 | P45: 1.147058824 | Q45: 1.588235294 | R45: 37 | S45: 1.088235294 | T45: 24 | U45: 13 | V45: 0 | W45: 3 | X45: 3 | Y45: 1 | Z45: 3 | AA45: 3 | AB45: 0 | AC45: 3 | AD45: 0 | AE45: 0 | AF45: 17 | AG45: 17 | AH45: 16 | AI45: 14 | AJ45: 14 | AK45: 13 | AL45: 14 | AM45: 13 | AN45: 14 | AO45: 15 | AP45: 13 | AQ45: 14.7 | AR45: 17
B46: 16 | C46: 16 | D46: 16 | E46: 15 | F46: ▼ | G46: TRUE | H46: Eintracht Frankfurt | I46: 34 | J46: 9 | K46: 9 | L46: 16 | M46: 34 | N46: 52 | O46: -18 | P46: 1 | Q46: 1.529411765 | R46: 36 | S46: 1.058823529 | T46: 24 | U46: 12 | V46: 1 | W46: 0 | X46: 3 | Y46: 0 | Z46: 0 | AA46: 0 | AB46: 3 | AC46: 3 | AD46: 3 | AE46: 0 | AF46: 16 | AG46: 16 | AH46: 17 | AI46: 17 | AJ46: 17 | AK46: 17 | AL46: 17 | AM46: 16 | AN46: 15 | AO46: 16 | AP46: 15 | AQ46: 16.4 | AR46: 17
B47: 17 | C47: 17 | D47: =IF(G47,AO47,"") -> 17 | E47: 17 | F47: ↔ | G47: TRUE | H47: VfB Stuttgart | I47: 34 | J47: 9 | K47: 6 | L47: 19 | M47: 50 | N47: 75 | O47: -25 | P47: 1.470588235 | Q47: 2.205882353 | R47: 33 | S47: 0.9705882353 | T47: 19 | U47: 14 | V47: 3 | W47: 1 | X47: 0 | Y47: 1 | Z47: 0 | AA47: 0 | AB47: 0 | AC47: 0 | AD47: 0 | AE47: 0 | AF47: 11 | AG47: 11 | AH47: 11 | AI47: 12 | AJ47: 12 | AK47: 15 | AL47: 15 | AM47: 17 | AN47: 17 | AO47: 17 | AP47: 11 | AQ47: 13.8 | AR47: 17
B48: 18 | C48: 18 | D48: =IF(G48,AO48,"") -> 18 | E48: 18 | F48: ↔ | G48: TRUE | H48: Hannover 96 | I48: 34 | J48: 7 | K48: 4 | L48: 23 | M48: 31 | N48: 62 | O48: -31 | P48: 0.9117647059 | Q48: 1.823529412 | R48: 25 | S48: 0.7352941176 | T48: 12 | U48: 13 | V48: 0 | W48: 0 | X48: 0 | Y48: 0 | Z48: 1 | AA48: 3 | AB48: 1 | AC48: 0 | AD48: 3 | AE48: 0 | AF48: 18 | AG48: 18 | AH48: 18 | AI48: 18 | AJ48: 18 | AK48: 18 | AL48: 18 | AM48: 18 | AN48: 18 | AO48: 18 | AP48: 18 | AQ48: 18 | AR48: 18
B50: Part 3: calculate help columns for win/draw/loss charts on dashboard
H52: =H31 -> FC Bayern München | I52: =IF(V31=Control!$C$14,1,NA()) ->  | J52: =IF(W31=Control!$C$14,1,NA()) -> 1 | K52: =IF(X31=Control!$C$14,1,NA()) -> 1 | L52: =IF(Y31=Control!$C$14,1,NA()) -> 1 | M52: =IF(Z31=Control!$C$14,1,NA()) -> 1 | N52: =IF(AA31=Control!$C$14,1,NA()) -> 1 | O52: =IF(AB31=Control!$C$14,1,NA()) -> 1 | P52: =IF(AC31=Control!$C$14,1,NA()) ->  | Q52: =IF(AD31=Control!$C$14,1,NA()) -> 1 | R52: =IF(AE31=Control!$C$14,1,NA()) -> 1 | S52: =IF(V31=0,-1,NA()) ->  | T52: =IF(W31=0,-1,NA()) ->  | U52: =IF(X31=0,-1,NA()) ->  | V52: =IF(Y31=0,-1,NA()) ->  | W52: =IF(Z31=0,-1,NA()) ->  | X52: =IF(AA31=0,-1,NA()) ->  | Y52: =IF(AB31=0,-1,NA()) ->  | Z52: =IF(AC31=0,-1,NA()) ->  | AA52: =IF(AD31=0,-1,NA()) ->  | AB52: =IF(AE31=0,-1,NA()) ->  | AC52: =IF(V31=1,0.25,NA()) -> 0.25 | AD52: =IF(W31=1,0.25,NA()) ->  | AE52: =IF(X31=1,0.25,NA()) ->  | AF52: =IF(Y31=1,0.25,NA()) ->  | AG52: =IF(Z31=1,0.25,NA()) ->  | AH52: =IF(AA31=1,0.25,NA()) ->  | AI52: =IF(AB31=1,0.25,NA()) ->  | AJ52: =IF(AC31=1,0.25,NA()) -> 0.25 | AK52: =IF(AD31=1,0.25,NA()) ->  | AL52: =IF(AE31=1,0.25,NA()) ->  | AM52: =IF(V31=1,-0.25,NA()) -> -0.25 | AN52: =IF(W31=1,-0.25,NA()) ->  | AO52: =IF(X31=1,-0.25,NA()) ->  | AP52: =IF(Y31=1,-0.25,NA()) ->  | AQ52: =IF(Z31=1,-0.25,NA()) ->  | AR52: =IF(AA31=1,-0.25,NA()) ->  | AS52: =IF(AB31=1,-0.25,NA()) ->  | AT52: =IF(AC31=1,-0.25,NA()) -> -0.25 | AU52: =IF(AD31=1,-0.25,NA()) ->  | AV52: =IF(AE31=1,-0.25,NA()) -> 
H53: =H32 -> Borussia Dortmund | I53: =IF(V32=Control!$C$14,1,NA()) ->  | J53: =IF(W32=Control!$C$14,1,NA()) -> 1 | K53: =IF(X32=Control!$C$14,1,NA()) -> 1 | L53: =IF(Y32=Control!$C$14,1,NA()) -> 1 | M53: =IF(Z32=Control!$C$14,1,NA()) ->  | N53: =IF(AA32=Control!$C$14,1,NA()) -> 1 | O53: =IF(AB32=Control!$C$14,1,NA()) -> 1 | P53: =IF(AC32=Control!$C$14,1,NA()) -> 1 | Q53: =IF(AD32=Control!$C$14,1,NA()) ->  | R53: =IF(AE32=Control!$C$14,1,NA()) ->  | AA53: -1 | AC53: 0.25 | AG53: 0.25 | AL53: 0.25 | AM53: -0.25 | AQ53: -0.25 | AV53: -0.25
H54: Bayer Leverkusen | I54: =IF(V33=Control!$C$14,1,NA()) ->  | J54: =IF(W33=Control!$C$14,1,NA()) -> 1 | K54: =IF(X33=Control!$C$14,1,NA()) -> 1 | L54: =IF(Y33=Control!$C$14,1,NA()) -> 1 | M54: =IF(Z33=Control!$C$14,1,NA()) -> 1 | N54: =IF(AA33=Control!$C$14,1,NA()) -> 1 | O54: =IF(AB33=Control!$C$14,1,NA()) -> 1 | P54: =IF(AC33=Control!$C$14,1,NA()) -> 1 | Q54: =IF(AD33=Control!$C$14,1,NA()) ->  | R54: =IF(AE33=Control!$C$14,1,NA()) -> 1 | AA54: -1 | AC54: 0.25 | AM54: -0.25
H55: Borussia M'gladbach | I55: =IF(V34=Control!$C$14,1,NA()) ->  | J55: =IF(W34=Control!$C$14,1,NA()) -> 1 | K55: =IF(X34=Control!$C$14,1,NA()) ->  | L55: =IF(Y34=Control!$C$14,1,NA()) -> 1 | M55: =IF(Z34=Control!$C$14,1,NA()) ->  | N55: =IF(AA34=Control!$C$14,1,NA()) ->  | O55: =IF(AB34=Control!$C$14,1,NA()) -> 1 | P55: =IF(AC34=Control!$C$14,1,NA()) ->  | Q55: =IF(AD34=Control!$C$14,1,NA()) -> 1 | R55: =IF(AE34=Control!$C$14,1,NA()) -> 1 | S55: -1 | U55: -1 | W55: -1 | X55: -1 | AJ55: 0.25 | AT55: -0.25
H56: FC Schalke 04 | I56: =IF(V35=Control!$C$14,1,NA()) -> 1 | J56: =IF(W35=Control!$C$14,1,NA()) ->  | K56: =IF(X35=Control!$C$14,1,NA()) -> 1 | L56: =IF(Y35=Control!$C$14,1,NA()) ->  | M56: =IF(Z35=Control!$C$14,1,NA()) ->  | N56: =IF(AA35=Control!$C$14,1,NA()) ->  | O56: =IF(AB35=Control!$C$14,1,NA()) ->  | P56: =IF(AC35=Control!$C$14,1,NA()) -> 1 | Q56: =IF(AD35=Control!$C$14,1,NA()) ->  | R56: =IF(AE35=Control!$C$14,1,NA()) -> 1 | T56: -1 | V56: -1 | X56: -1 | Y56: -1 | AG56: 0.25 | AK56: 0.25 | AQ56: -0.25 | AU56: -0.25
H57: FSV Mainz 05 | I57: =IF(V36=Control!$C$14,1,NA()) ->  | J57: =IF(W36=Control!$C$14,1,NA()) ->  | K57: =IF(X36=Control!$C$14,1,NA()) ->  | L57: =IF(Y36=Control!$C$14,1,NA()) -> 1 | M57: =IF(Z36=Control!$C$14,1,NA()) ->  | N57: =IF(AA36=Control!$C$14,1,NA()) ->  | O57: =IF(AB36=Control!$C$14,1,NA()) ->  | P57: =IF(AC36=Control!$C$14,1,NA()) ->  | Q57: =IF(AD36=Control!$C$14,1,NA()) -> 1 | R57: =IF(AE36=Control!$C$14,1,NA()) ->  | T57: -1 | X57: -1 | Y57: -1 | AC57: 0.25 | AE57: 0.25 | AG57: 0.25 | AJ57: 0.25 | AL57: 0.25 | AM57: -0.25 | AO57: -0.25 | AQ57: -0.25 | AT57: -0.25 | AV57: -0.25
H58: Hertha BSC Berlin | I58: =IF(V37=Control!$C$14,1,NA()) ->  | J58: =IF(W37=Control!$C$14,1,NA()) -> 1 | K58: =IF(X37=Control!$C$14,1,NA()) -> 1 | L58: =IF(Y37=Control!$C$14,1,NA()) ->  | M58: =IF(Z37=Control!$C$14,1,NA()) ->  | N58: =IF(AA37=Control!$C$14,1,NA()) ->  | O58: =IF(AB37=Control!$C$14,1,NA()) ->  | P58: =IF(AC37=Control!$C$14,1,NA()) ->  | Q58: =IF(AD37=Control!$C$14,1,NA()) ->  | R58: =IF(AE37=Control!$C$14,1,NA()) ->  | S58: -1 | V58: -1 | X58: -1 | Y58: -1 | Z58: -1 | AA58: -1 | AG58: 0.25 | AL58: 0.25 | AQ58: -0.25 | AV58: -0.25
H59: VfL Wolfsburg | I59: =IF(V38=Control!$C$14,1,NA()) -> 1 | J59: =IF(W38=Control!$C$14,1,NA()) ->  | K59: =IF(X38=Control!$C$14,1,NA()) ->  | L59: =IF(Y38=Control!$C$14,1,NA()) ->  | M59: =IF(Z38=Control!$C$14,1,NA()) ->  | N59: =IF(AA38=Control!$C$14,1,NA()) ->  | O59: =IF(AB38=Control!$C$14,1,NA()) ->  | P59: =IF(AC38=Control!$C$14,1,NA()) ->  | Q59: =IF(AD38=Control!$C$14,1,NA()) -> 1 | R59: =IF(AE38=Control!$C$14,1,NA()) -> 1 | T59: -1 | V59: -1 | X59: -1 | Y59: -1 | Z59: -1 | AE59: 0.25 | AG59: 0.25 | AO59: -0.25 | AQ59: -0.25
H60: 1.FC Köln | I60: =IF(V39=Control!$C$14,1,NA()) ->  | J60: =IF(W39=Control!$C$14,1,NA()) -> 1 | K60: =IF(X39=Control!$C$14,1,NA()) ->  | L60: =IF(Y39=Control!$C$14,1,NA()) ->  | M60: =IF(Z39=Control!$C$14,1,NA()) ->  | N60: =IF(AA39=Control!$C$14,1,NA()) -> 1 | O60: =IF(AB39=Control!$C$14,1,NA()) -> 1 | P60: =IF(AC39=Control!$C$14,1,NA()) ->  | Q60: =IF(AD39=Control!$C$14,1,NA()) ->  | R60: =IF(AE39=Control!$C$14,1,NA()) ->  | S60: -1 | U60: -1 | W60: -1 | AF60: 0.25 | AJ60: 0.25 | AK60: 0.25 | AL60: 0.25 | AP60: -0.25 | AT60: -0.25 | AU60: -0.25 | AV60: -0.25
H61: Hamburger SV | I61: =IF(V40=Control!$C$14,1,NA()) -> 1 | J61: =IF(W40=Control!$C$14,1,NA()) ->  | K61: =IF(X40=Control!$C$14,1,NA()) ->  | L61: =IF(Y40=Control!$C$14,1,NA()) -> 1 | M61: =IF(Z40=Control!$C$14,1,NA()) ->  | N61: =IF(AA40=Control!$C$14,1,NA()) ->  | O61: =IF(AB40=Control!$C$14,1,NA()) -> 1 | P61: =IF(AC40=Control!$C$14,1,NA()) ->  | Q61: =IF(AD40=Control!$C$14,1,NA()) ->  | R61: =IF(AE40=Control!$C$14,1,NA()) -> 1 | T61: -1 | U61: -1 | W61: -1 | X61: -1 | AA61: -1 | AJ61: 0.25 | AT61: -0.25
H62: FC Ingolstadt | I62: =IF(V41=Control!$C$14,1,NA()) ->  | J62: =IF(W41=Control!$C$14,1,NA()) ->  | K62: =IF(X41=Control!$C$14,1,NA()) ->  | L62: =IF(Y41=Control!$C$14,1,NA()) -> 1 | M62: =IF(Z41=Control!$C$14,1,NA()) -> 1 | N62: =IF(AA41=Control!$C$14,1,NA()) ->  | O62: =IF(AB41=Control!$C$14,1,NA()) ->  | P62: =IF(AC41=Control!$C$14,1,NA()) ->  | Q62: =IF(AD41=Control!$C$14,1,NA()) ->  | R62: =IF(AE41=Control!$C$14,1,NA()) ->  | U62: -1 | X62: -1 | Z62: -1 | AA62: -1 | AB62: -1 | AC62: 0.25 | AD62: 0.25 | AI62: 0.25 | AM62: -0.25 | AN62: -0.25 | AS62: -0.25
H63: FC Augsburg | I63: =IF(V42=Control!$C$14,1,NA()) ->  | J63: =IF(W42=Control!$C$14,1,NA()) ->  | K63: =IF(X42=Control!$C$14,1,NA()) ->  | L63: =IF(Y42=Control!$C$14,1,NA()) ->  | M63: =IF(Z42=Control!$C$14,1,NA()) -> 1 | N63: =IF(AA42=Control!$C$14,1,NA()) -> 1 | O63: =IF(AB42=Control!$C$14,1,NA()) -> 1 | P63: =IF(AC42=Control!$C$14,1,NA()) ->  | Q63: =IF(AD42=Control!$C$14,1,NA()) ->  | R63: =IF(AE42=Control!$C$14,1,NA()) ->  | U63: -1 | V63: -1 | AB63: -1 | AC63: 0.25 | AD63: 0.25 | AJ63: 0.25 | AK63: 0.25 | AM63: -0.25 | AN63: -0.25 | AT63: -0.25 | AU63: -0.25
H64: Werder Bremen | I64: =IF(V43=Control!$C$14,1,NA()) -> 1 | J64: =IF(W43=Control!$C$14,1,NA()) ->  | K64: =IF(X43=Control!$C$14,1,NA()) ->  | L64: =IF(Y43=Control!$C$14,1,NA()) ->  | M64: =IF(Z43=Control!$C$14,1,NA()) ->  | N64: =IF(AA43=Control!$C$14,1,NA()) -> 1 | O64: =IF(AB43=Control!$C$14,1,NA()) ->  | P64: =IF(AC43=Control!$C$14,1,NA()) -> 1 | Q64: =IF(AD43=Control!$C$14,1,NA()) ->  | R64: =IF(AE43=Control!$C$14,1,NA()) -> 1 | T64: -1 | V64: -1 | W64: -1 | Y64: -1 | AE64: 0.25 | AK64: 0.25 | AO64: -0.25 | AU64: -0.25
H65: Darmstadt 98 | I65: =IF(V44=Control!$C$14,1,NA()) ->  | J65: =IF(W44=Control!$C$14,1,NA()) ->  | K65: =IF(X44=Control!$C$14,1,NA()) ->  | L65: =IF(Y44=Control!$C$14,1,NA()) ->  | M65: =IF(Z44=Control!$C$14,1,NA()) -> 1 | N65: =IF(AA44=Control!$C$14,1,NA()) -> 1 | O65: =IF(AB44=Control!$C$14,1,NA()) ->  | P65: =IF(AC44=Control!$C$14,1,NA()) ->  | Q65: =IF(AD44=Control!$C$14,1,NA()) -> 1 | R65: =IF(AE44=Control!$C$14,1,NA()) ->  | Y65: -1 | Z65: -1 | AB65: -1 | AC65: 0.25 | AD65: 0.25 | AE65: 0.25 | AF65: 0.25 | AM65: -0.25 | AN65: -0.25 | AO65: -0.25 | AP65: -0.25
H66: TSG 1899 Hoffenheim | I66: =IF(V45=Control!$C$14,1,NA()) ->  | J66: =IF(W45=Control!$C$14,1,NA()) -> 1 | K66: =IF(X45=Control!$C$14,1,NA()) -> 1 | L66: =IF(Y45=Control!$C$14,1,NA()) ->  | M66: =IF(Z45=Control!$C$14,1,NA()) -> 1 | N66: =IF(AA45=Control!$C$14,1,NA()) -> 1 | O66: =IF(AB45=Control!$C$14,1,NA()) ->  | P66: =IF(AC45=Control!$C$14,1,NA()) -> 1 | Q66: =IF(AD45=Control!$C$14,1,NA()) ->  | R66: =IF(AE45=Control!$C$14,1,NA()) ->  | S66: -1 | Y66: -1 | AA66: -1 | AB66: -1 | AF66: 0.25 | AP66: -0.25
H67: Eintracht Frankfurt | I67: =IF(V46=Control!$C$14,1,NA()) ->  | J67: =IF(W46=Control!$C$14,1,NA()) ->  | K67: =IF(X46=Control!$C$14,1,NA()) -> 1 | L67: =IF(Y46=Control!$C$14,1,NA()) ->  | M67: =IF(Z46=Control!$C$14,1,NA()) ->  | N67: =IF(AA46=Control!$C$14,1,NA()) ->  | O67: =IF(AB46=Control!$C$14,1,NA()) -> 1 | P67: =IF(AC46=Control!$C$14,1,NA()) -> 1 | Q67: =IF(AD46=Control!$C$14,1,NA()) -> 1 | R67: =IF(AE46=Control!$C$14,1,NA()) ->  | T67: -1 | V67: -1 | W67: -1 | X67: -1 | AB67: -1 | AC67: 0.25 | AM67: -0.25
H68: VfB Stuttgart | I68: =IF(V47=Control!$C$14,1,NA()) -> 1 | J68: =IF(W47=Control!$C$14,1,NA()) ->  | K68: =IF(X47=Control!$C$14,1,NA()) ->  | L68: =IF(Y47=Control!$C$14,1,NA()) ->  | M68: =IF(Z47=Control!$C$14,1,NA()) ->  | N68: =IF(AA47=Control!$C$14,1,NA()) ->  | O68: =IF(AB47=Control!$C$14,1,NA()) ->  | P68: =IF(AC47=Control!$C$14,1,NA()) ->  | Q68: =IF(AD47=Control!$C$14,1,NA()) ->  | R68: =IF(AE47=Control!$C$14,1,NA()) ->  | U68: -1 | W68: -1 | X68: -1 | Y68: -1 | Z68: -1 | AA68: -1 | AB68: -1 | AD68: 0.25 | AF68: 0.25 | AN68: -0.25 | AP68: -0.25
H69: Hannover 96 | I69: =IF(V48=Control!$C$14,1,NA()) ->  | J69: =IF(W48=Control!$C$14,1,NA()) ->  | K69: =IF(X48=Control!$C$14,1,NA()) ->  | L69: =IF(Y48=Control!$C$14,1,NA()) ->  | M69: =IF(Z48=Control!$C$14,1,NA()) ->  | N69: =IF(AA48=Control!$C$14,1,NA()) -> 1 | O69: =IF(AB48=Control!$C$14,1,NA()) ->  | P69: =IF(AC48=Control!$C$14,1,NA()) ->  | Q69: =IF(AD48=Control!$C$14,1,NA()) -> 1 | R69: =IF(AE48=Control!$C$14,1,NA()) ->  | S69: -1 | T69: -1 | U69: -1 | V69: -1 | Z69: -1 | AB69: -1 | AG69: 0.25 | AI69: 0.25 | AQ69: -0.25 | AS69: -0.25
B71: Part 4: calculate help columns for goal difference tornado chart
H73: Maximum Transparency | I73: 0.7
H74: Min Goal Difference | I74: =MIN($K$78:$K$95) -> -31
H75: Max Goal Difference | I75: =MAX($K$78:$K$95) -> 63
I77: GF | J77: GA | K77: Diff | M77: GF pos | N77: GA pos | O77: GF neg | P77: GA neg | Q77: Transp pos | R77: Transp neg
G78: =G31 -> TRUE | H78: =H31 -> FC Bayern München | I78: =M31 -> 80 | J78: =N31 -> 17 | K78: 63 | M78: =IF($K78>=0,I78,NA()) -> 80 | N78: =IF($K78>=0,-J78,NA()) -> -17 | O78: =IF($K78<0,I78,NA()) ->  | P78: =IF($K78<0,-J78,NA()) ->  | Q78: =IF(AND($G78,$K78>=0),(1-$K78/$I$75)*$I$73,0) -> 0 | R78: =IF(AND($G78,$K78<0),(1-$K78/$I$74)*$I$73,0) -> 0
G79: =G32 -> TRUE | H79: =H32 -> Borussia Dortmund | I79: =M32 -> 82 | J79: =N32 -> 34 | K79: =O32 -> 48 | M79: =IF($K79>=0,I79,NA()) -> 82 | N79: =IF($K79>=0,-J79,NA()) -> -34 | O79: =IF($K79<0,I79,NA()) ->  | P79: =IF($K79<0,-J79,NA()) ->  | Q79: 0.1666666667 | R79: 0
G80: TRUE | H80: Bayer Leverkusen | I80: 56 | J80: 40 | K80: 16 | M80: 56 | N80: -40 | Q80: 0.5222222222 | R80: 0
G81: TRUE | H81: Borussia M'gladbach | I81: 67 | J81: 50 | K81: 17 | M81: 67 | N81: -50 | Q81: 0.5111111111 | R81: 0
G82: TRUE | H82: FC Schalke 04 | I82: 51 | J82: 49 | K82: 2 | M82: 51 | N82: -49 | Q82: 0.6777777778 | R82: 0
G83: TRUE | H83: FSV Mainz 05 | I83: 46 | J83: 42 | K83: 4 | M83: 46 | N83: -42 | Q83: 0.6555555556 | R83: 0
G84: TRUE | H84: Hertha BSC Berlin | I84: 42 | J84: 42 | K84: 0 | M84: 42 | N84: -42 | Q84: 0.7 | R84: 0
G85: TRUE | H85: VfL Wolfsburg | I85: 47 | J85: 49 | K85: -2 | O85: 47 | P85: -49 | Q85: 0 | R85: 0.6548387097
G86: TRUE | H86: 1.FC Köln | I86: 38 | J86: 42 | K86: -4 | O86: 38 | P86: -42 | Q86: 0 | R86: 0.6096774194
G87: TRUE | H87: Hamburger SV | I87: 40 | J87: 46 | K87: -6 | O87: 40 | P87: -46 | Q87: 0 | R87: 0.564516129
G88: TRUE | H88: FC Ingolstadt | I88: 33 | J88: 42 | K88: -9 | O88: 33 | P88: -42 | Q88: 0 | R88: 0.4967741935
G89: TRUE | H89: FC Augsburg | I89: 42 | J89: 52 | K89: -10 | O89: 42 | P89: -52 | Q89: 0 | R89: 0.4741935484
G90: TRUE | H90: Werder Bremen | I90: 50 | J90: 65 | K90: -15 | O90: 50 | P90: -65 | Q90: 0 | R90: 0.3612903226
G91: TRUE | H91: Darmstadt 98 | I91: 38 | J91: 53 | K91: -15 | O91: 38 | P91: -53 | Q91: 0 | R91: 0.3612903226
G92: TRUE | H92: TSG 1899 Hoffenheim | I92: 39 | J92: 54 | K92: -15 | O92: 39 | P92: -54 | Q92: 0 | R92: 0.3612903226
G93: TRUE | H93: Eintracht Frankfurt | I93: 34 | J93: 52 | K93: -18 | O93: 34 | P93: -52 | Q93: 0 | R93: 0.2935483871
G94: TRUE | H94: VfB Stuttgart | I94: 50 | J94: 75 | K94: -25 | O94: 50 | P94: -75 | Q94: =IF(AND($G94,$K94>=0),(1-$K94/$I$75)*$I$73,0) -> 0 | R94: =IF(AND($G94,$K94<0),(1-$K94/$I$74)*$I$73,0) -> 0.135483871
G95: TRUE | H95: Hannover 96 | I95: 31 | J95: 62 | K95: -31 | O95: 31 | P95: -62 | Q95: =IF(AND($G95,$K95>=0),(1-$K95/$I$75)*$I$73,0) -> 0 | R95: =IF(AND($G95,$K95<0),(1-$K95/$I$74)*$I$73,0) -> 0
B97: Part 5: match day results
G99: # | H99: Home Team | K99: Away Team | L99: =OFFSET('Calculation Results'!I$7,(myMatchDay-1)*9,0) -> 0 | M99: =OFFSET('Calculation Results'!J$7,(myMatchDay-1)*9,0) -> 3 | N99: =OFFSET('Calculation Results'!K$7,(myMatchDay-1)*9,0) -> 0 | O99: PtH | P99: PtA
G100: 1 | H100: =IF($G100<=Control!$C$18,INDEX(myHomeTeams,$G100+(myMatchDay-1)*Control!$C$18,1),"") -> FC Augsburg | I100: =IF($G100<=Control!$C$18,INDEX(myGoalsHome,$G100+(myMatchDay-1)*Control!$C$18,1),"") -> 1 | J100: =IF($G100<=Control!$C$18,INDEX(myGoalsAway,$G100+(myMatchDay-1)*Control!$C$18,1),"") -> 3 | K100: =IF($G100<=Control!$C$18,INDEX(myAwayTeams,$G100+(myMatchDay-1)*Control!$C$18,1),"") -> Hamburger SV | L100: =IF($G100<=Control!$C$18,INDEX(myHomeTeams,$G100+(myMatchDay-1)*Control!$C$18,1),"") -> FC Augsburg | M100: =IF($G100<=Control!$C$18,INDEX(myHomeTeams,$G100+(myMatchDay-1)*Control!$C$18,1),"") -> FC Augsburg | N100: =IF($G100<=Control!$C$18,INDEX(myHomeTeams,$G100+(myMatchDay-1)*Control!$C$18,1),"") -> FC Augsburg | O100: =IF($G100<=Control!$C$18,INDEX(myPointsHome,$G100+(myMatchDay-1)*Control!$C$18,1),"") -> 0 | P100: =IF($G100<=Control!$C$18,INDEX(myPointsAway,$G100+(myMatchDay-1)*Control!$C$18,1),"") -> 3
G101: 2 | H101: =IF($G101<=Control!$C$18,INDEX(myHomeTeams,$G101+(myMatchDay-1)*Control!$C$18,1),"") -> FC Bayern München | I101: =IF($G101<=Control!$C$18,INDEX(myGoalsHome,$G101+(myMatchDay-1)*Control!$C$18,1),"") -> 3 | J101: =IF($G101<=Control!$C$18,INDEX(myGoalsAway,$G101+(myMatchDay-1)*Control!$C$18,1),"") -> 1 | K101: =IF($G101<=Control!$C$18,INDEX(myAwayTeams,$G101+(myMatchDay-1)*Control!$C$18,1),"") -> Hannover 96 | L101: =IF($G101<=Control!$C$18,INDEX(myHomeTeams,$G101+(myMatchDay-1)*Control!$C$18,1),"") -> FC Bayern München | M101: =IF($G101<=Control!$C$18,INDEX(myHomeTeams,$G101+(myMatchDay-1)*Control!$C$18,1),"") -> FC Bayern München | N101: =IF($G101<=Control!$C$18,INDEX(myHomeTeams,$G101+(myMatchDay-1)*Control!$C$18,1),"") -> FC Bayern München | O101: =IF($G101<=Control!$C$18,INDEX(myPointsHome,$G101+(myMatchDay-1)*Control!$C$18,1),"") -> 3 | P101: =IF($G101<=Control!$C$18,INDEX(myPointsAway,$G101+(myMatchDay-1)*Control!$C$18,1),"") -> 0
G102: 3 | H102: =IF($G102<=Control!$C$18,INDEX(myHomeTeams,$G102+(myMatchDay-1)*Control!$C$18,1),"") -> Darmstadt 98 | I102: =IF($G102<=Control!$C$18,INDEX(myGoalsHome,$G102+(myMatchDay-1)*Control!$C$18,1),"") -> 0 | J102: =IF($G102<=Control!$C$18,INDEX(myGoalsAway,$G102+(myMatchDay-1)*Control!$C$18,1),"") -> 2 | K102: =IF($G102<=Control!$C$18,INDEX(myAwayTeams,$G102+(myMatchDay-1)*Control!$C$18,1),"") -> Borussia M'gladbach | L102: =IF($G102<=Control!$C$18,INDEX(myHomeTeams,$G102+(myMatchDay-1)*Control!$C$18,1),"") -> Darmstadt 98 | M102: =IF($G102<=Control!$C$18,INDEX(myHomeTeams,$G102+(myMatchDay-1)*Control!$C$18,1),"") -> Darmstadt 98 | N102: =IF($G102<=Control!$C$18,INDEX(myHomeTeams,$G102+(myMatchDay-1)*Control!$C$18,1),"") -> Darmstadt 98 | O102: =IF($G102<=Control!$C$18,INDEX(myPointsHome,$G102+(myMatchDay-1)*Control!$C$18,1),"") -> 0 | P102: =IF($G102<=Control!$C$18,INDEX(myPointsAway,$G102+(myMatchDay-1)*Control!$C$18,1),"") -> 3
G103: 4 | H103: =IF($G103<=Control!$C$18,INDEX(myHomeTeams,$G103+(myMatchDay-1)*Control!$C$18,1),"") -> Borussia Dortmund | I103: =IF($G103<=Control!$C$18,INDEX(myGoalsHome,$G103+(myMatchDay-1)*Control!$C$18,1),"") -> 2 | J103: =IF($G103<=Control!$C$18,INDEX(myGoalsAway,$G103+(myMatchDay-1)*Control!$C$18,1),"") -> 2 | K103: =IF($G103<=Control!$C$18,INDEX(myAwayTeams,$G103+(myMatchDay-1)*Control!$C$18,1),"") -> 1.FC Köln | L103: =IF($G103<=Control!$C$18,INDEX(myHomeTeams,$G103+(myMatchDay-1)*Control!$C$18,1),"") -> Borussia Dortmund | M103: =IF($G103<=Control!$C$18,INDEX(myHomeTeams,$G103+(myMatchDay-1)*Control!$C$18,1),"") -> Borussia Dortmund | N103: =IF($G103<=Control!$C$18,INDEX(myHomeTeams,$G103+(myMatchDay-1)*Control!$C$18,1),"") -> Borussia Dortmund | O103: =IF($G103<=Control!$C$18,INDEX(myPointsHome,$G103+(myMatchDay-1)*Control!$C$18,1),"") -> 1 | P103: =IF($G103<=Control!$C$18,INDEX(myPointsAway,$G103+(myMatchDay-1)*Control!$C$18,1),"") -> 1
G104: 5 | H104: =IF($G104<=Control!$C$18,INDEX(myHomeTeams,$G104+(myMatchDay-1)*Control!$C$18,1),"") -> TSG 1899 Hoffenheim | I104: =IF($G104<=Control!$C$18,INDEX(myGoalsHome,$G104+(myMatchDay-1)*Control!$C$18,1),"") -> 1 | J104: =IF($G104<=Control!$C$18,INDEX(myGoalsAway,$G104+(myMatchDay-1)*Control!$C$18,1),"") -> 4 | K104: =IF($G104<=Control!$C$18,INDEX(myAwayTeams,$G104+(myMatchDay-1)*Control!$C$18,1),"") -> FC Schalke 04 | L104: =IF($G104<=Control!$C$18,INDEX(myHomeTeams,$G104+(myMatchDay-1)*Control!$C$18,1),"") -> TSG 1899 Hoffenheim | M104: =IF($G104<=Control!$C$18,INDEX(myHomeTeams,$G104+(myMatchDay-1)*Control!$C$18,1),"") -> TSG 1899 Hoffenheim | N104: =IF($G104<=Control!$C$18,INDEX(myHomeTeams,$G104+(myMatchDay-1)*Control!$C$18,1),"") -> TSG 1899 Hoffenheim | O104: =IF($G104<=Control!$C$18,INDEX(myPointsHome,$G104+(myMatchDay-1)*Control!$C$18,1),"") -> 0 | P104: =IF($G104<=Control!$C$18,INDEX(myPointsAway,$G104+(myMatchDay-1)*Control!$C$18,1),"") -> 3
G105: 6 | H105: =IF($G105<=Control!$C$18,INDEX(myHomeTeams,$G105+(myMatchDay-1)*Control!$C$18,1),"") -> Bayer Leverkusen | I105: =IF($G105<=Control!$C$18,INDEX(myGoalsHome,$G105+(myMatchDay-1)*Control!$C$18,1),"") -> 3 | J105: =IF($G105<=Control!$C$18,INDEX(myGoalsAway,$G105+(myMatchDay-1)*Control!$C$18,1),"") -> 2 | K105: =IF($G105<=Control!$C$18,INDEX(myAwayTeams,$G105+(myMatchDay-1)*Control!$C$18,1),"") -> FC Ingolstadt | L105: =IF($G105<=Control!$C$18,INDEX(myHomeTeams,$G105+(myMatchDay-1)*Control!$C$18,1),"") -> Bayer Leverkusen | M105: =IF($G105<=Control!$C$18,INDEX(myHomeTeams,$G105+(myMatchDay-1)*Control!$C$18,1),"") -> Bayer Leverkusen | N105: =IF($G105<=Control!$C$18,INDEX(myHomeTeams,$G105+(myMatchDay-1)*Control!$C$18,1),"") -> Bayer Leverkusen | O105: =IF($G105<=Control!$C$18,INDEX(myPointsHome,$G105+(myMatchDay-1)*Control!$C$18,1),"") -> 3 | P105: =IF($G105<=Control!$C$18,INDEX(myPointsAway,$G105+(myMatchDay-1)*Control!$C$18,1),"") -> 0
G106: 7 | H106: =IF($G106<=Control!$C$18,INDEX(myHomeTeams,$G106+(myMatchDay-1)*Control!$C$18,1),"") -> FSV Mainz 05 | I106: =IF($G106<=Control!$C$18,INDEX(myGoalsHome,$G106+(myMatchDay-1)*Control!$C$18,1),"") -> 0 | J106: =IF($G106<=Control!$C$18,INDEX(myGoalsAway,$G106+(myMatchDay-1)*Control!$C$18,1),"") -> 0 | K106: =IF($G106<=Control!$C$18,INDEX(myAwayTeams,$G106+(myMatchDay-1)*Control!$C$18,1),"") -> Hertha BSC Berlin | L106: =IF($G106<=Control!$C$18,INDEX(myHomeTeams,$G106+(myMatchDay-1)*Control!$C$18,1),"") -> FSV Mainz 05 | M106: =IF($G106<=Control!$C$18,INDEX(myHomeTeams,$G106+(myMatchDay-1)*Control!$C$18,1),"") -> FSV Mainz 05 | N106: =IF($G106<=Control!$C$18,INDEX(myHomeTeams,$G106+(myMatchDay-1)*Control!$C$18,1),"") -> FSV Mainz 05 | O106: =IF($G106<=Control!$C$18,INDEX(myPointsHome,$G106+(myMatchDay-1)*Control!$C$18,1),"") -> 1 | P106: =IF($G106<=Control!$C$18,INDEX(myPointsAway,$G106+(myMatchDay-1)*Control!$C$18,1),"") -> 1
G107: 8 | H107: =IF($G107<=Control!$C$18,INDEX(myHomeTeams,$G107+(myMatchDay-1)*Control!$C$18,1),"") -> Werder Bremen | I107: =IF($G107<=Control!$C$18,INDEX(myGoalsHome,$G107+(myMatchDay-1)*Control!$C$18,1),"") -> 1 | J107: =IF($G107<=Control!$C$18,INDEX(myGoalsAway,$G107+(myMatchDay-1)*Control!$C$18,1),"") -> 0 | K107: =IF($G107<=Control!$C$18,INDEX(myAwayTeams,$G107+(myMatchDay-1)*Control!$C$18,1),"") -> Eintracht Frankfurt | L107: =IF($G107<=Control!$C$18,INDEX(myHomeTeams,$G107+(myMatchDay-1)*Control!$C$18,1),"") -> Werder Bremen | M107: =IF($G107<=Control!$C$18,INDEX(myHomeTeams,$G107+(myMatchDay-1)*Control!$C$18,1),"") -> Werder Bremen | N107: =IF($G107<=Control!$C$18,INDEX(myHomeTeams,$G107+(myMatchDay-1)*Control!$C$18,1),"") -> Werder Bremen | O107: =IF($G107<=Control!$C$18,INDEX(myPointsHome,$G107+(myMatchDay-1)*Control!$C$18,1),"") -> 3 | P107: =IF($G107<=Control!$C$18,INDEX(myPointsAway,$G107+(myMatchDay-1)*Control!$C$18,1),"") -> 0
G108: 9 | H108: =IF($G108<=Control!$C$18,INDEX(myHomeTeams,$G108+(myMatchDay-1)*Control!$C$18,1),"") -> VfL Wolfsburg | I108: =IF($G108<=Control!$C$18,INDEX(myGoalsHome,$G108+(myMatchDay-1)*Control!$C$18,1),"") -> 3 | J108: =IF($G108<=Control!$C$18,INDEX(myGoalsAway,$G108+(myMatchDay-1)*Control!$C$18,1),"") -> 1 | K108: =IF($G108<=Control!$C$18,INDEX(myAwayTeams,$G108+(myMatchDay-1)*Control!$C$18,1),"") -> VfB Stuttgart | L108: =IF($G108<=Control!$C$18,INDEX(myHomeTeams,$G108+(myMatchDay-1)*Control!$C$18,1),"") -> VfL Wolfsburg | M108: =IF($G108<=Control!$C$18,INDEX(myHomeTeams,$G108+(myMatchDay-1)*Control!$C$18,1),"") -> VfL Wolfsburg | N108: =IF($G108<=Control!$C$18,INDEX(myHomeTeams,$G108+(myMatchDay-1)*Control!$C$18,1),"") -> VfL Wolfsburg | O108: =IF($G108<=Control!$C$18,INDEX(myPointsHome,$G108+(myMatchDay-1)*Control!$C$18,1),"") -> 3 | P108: =IF($G108<=Control!$C$18,INDEX(myPointsAway,$G108+(myMatchDay-1)*Control!$C$18,1),"") -> 0
B110: Part 6: match day and overall statistics
H112: Number of matches so far | I112: =SUM($I$31:$I$48)/2 -> 306
I114: Match day | J114: Total
H115: Total goals | I115: =SUM(I100:J108) -> 29 | J115: =SUM($M$31:$M$48) -> 866
H116: Goals per match | I116: =I115/Control!$C$18 -> 3.222222222 | J116: =J115/$I$112 -> 2.830065359
H117: Goals per match (home) | I117: =SUM(I100:I108)/Control!$C$18 -> 1.555555556 | J117: =SUM(OFFSET('Calculation Results'!$G$7,0,0,myMatchDay*Control!$C$18,1))/$I$112 -> 1.565359477
H118: Goals per match (away) | I118: =SUM($J$100:$J$108)/Control!$C$18 -> 1.666666667 | J118: =SUM(OFFSET('Calculation Results'!$H$7,0,0,myMatchDay*Control!$C$18,1))/$I$112 -> 1.264705882
H119: Home wins | I119: =COUNTIF($O$100:$O$108,myPoints) -> 4 | J119: =COUNTIF(OFFSET('Calculation Results'!$I$7,0,0,myMatchDay*Control!$C$18,1),myPoints)/$I$112 -> 0.4411764706
H120: Draws | I120: =COUNTIF($O$100:$O$108,1) -> 2 | J120: =COUNTIF(OFFSET('Calculation Results'!$I$7,0,0,myMatchDay*Control!$C$18,1),1)/$I$112 -> 0.2320261438
H121: Away wins | I121: =COUNTIF($O$100:$O$108,0) -> 3 | J121: =1-SUM(J119:J120) -> 0.3267973856

Sheet Calculation Results
B2: Calculations II: results of selected season
B4: Offset | C4: =MATCH(Control!$D$5,Results!$B$5:$B$15784,0)-1 -> 15474
B6: Index | C6: Relevant? | D6: Matchday | E6: Home Team | F6: Away Team | G6: Goals Home | H6: Goals Away | I6: Points Home | J6: Points Away
B7: 1 | C7: =B7<=Control!$C$17 -> TRUE | D7: =IF($C7,INDEX(Results!C$5:C$15784,$C$4+$B7),"") -> 1 | E7: =IF($C7,INDEX(Results!D$5:D$15784,$C$4+$B7),"") -> FC Bayern München | F7: =IF($C7,INDEX(Results!E$5:E$15784,$C$4+$B7),"") -> Hamburger SV | G7: =IF($C7,INDEX(Results!F$5:F$15784,$C$4+$B7),"") -> 5 | H7: =IF($C7,INDEX(Results!G$5:G$15784,$C$4+$B7),"") -> 0 | I7: =$C7*IF($G7>$H7,myPoints,IF($G7<$H7,0,1)) -> 3 | J7: =$C7*IF($G7>$H7,0,IF($G7<$H7,myPoints,1)) -> 0
B8: 2 | C8: =B8<=Control!$C$17 -> TRUE | D8: =IF($C8,INDEX(Results!C$5:C$15784,$C$4+$B8),"") -> 1 | E8: =IF($C8,INDEX(Results!D$5:D$15784,$C$4+$B8),"") -> FC Augsburg | F8: =IF($C8,INDEX(Results!E$5:E$15784,$C$4+$B8),"") -> Hertha BSC Berlin | G8: =IF($C8,INDEX(Results!F$5:F$15784,$C$4+$B8),"") -> 0 | H8: =IF($C8,INDEX(Results!G$5:G$15784,$C$4+$B8),"") -> 1 | I8: 0 | J8: 3
B9: 3 | C9: =B9<=Control!$C$17 -> TRUE | D9: =IF($C9,INDEX(Results!C$5:C$15784,$C$4+$B9),"") -> 1 | E9: =IF($C9,INDEX(Results!D$5:D$15784,$C$4+$B9),"") -> Darmstadt 98 | F9: =IF($C9,INDEX(Results!E$5:E$15784,$C$4+$B9),"") -> Hannover 96 | G9: =IF($C9,INDEX(Results!F$5:F$15784,$C$4+$B9),"") -> 2 | H9: =IF($C9,INDEX(Results!G$5:G$15784,$C$4+$B9),"") -> 2 | I9: 1 | J9: 1
B10: 4 | C10: =B10<=Control!$C$17 -> TRUE | D10: =IF($C10,INDEX(Results!C$5:C$15784,$C$4+$B10),"") -> 1 | E10: =IF($C10,INDEX(Results!D$5:D$15784,$C$4+$B10),"") -> Borussia Dortmund | F10: =IF($C10,INDEX(Results!E$5:E$15784,$C$4+$B10),"") -> Borussia M'gladbach | G10: =IF($C10,INDEX(Results!F$5:F$15784,$C$4+$B10),"") -> 4 | H10: =IF($C10,INDEX(Results!G$5:G$15784,$C$4+$B10),"") -> 0 | I10: 3 | J10: 0
B11: 5 | C11: =B11<=Control!$C$17 -> TRUE | D11: =IF($C11,INDEX(Results!C$5:C$15784,$C$4+$B11),"") -> 1 | E11: =IF($C11,INDEX(Results!D$5:D$15784,$C$4+$B11),"") -> Bayer Leverkusen | F11: =IF($C11,INDEX(Results!E$5:E$15784,$C$4+$B11),"") -> TSG 1899 Hoffenheim | G11: =IF($C11,INDEX(Results!F$5:F$15784,$C$4+$B11),"") -> 2 | H11: =IF($C11,INDEX(Results!G$5:G$15784,$C$4+$B11),"") -> 1 | I11: 3 | J11: 0
B12: 6 | C12: =B12<=Control!$C$17 -> TRUE | D12: =IF($C12,INDEX(Results!C$5:C$15784,$C$4+$B12),"") -> 1 | E12: =IF($C12,INDEX(Results!D$5:D$15784,$C$4+$B12),"") -> FSV Mainz 05 | F12: =IF($C12,INDEX(Results!E$5:E$15784,$C$4+$B12),"") -> FC Ingolstadt | G12: =IF($C12,INDEX(Results!F$5:F$15784,$C$4+$B12),"") -> 0 | H12: =IF($C12,INDEX(Results!G$5:G$15784,$C$4+$B12),"") -> 1 | I12: 0 | J12: 3
B13: 7 | C13: =B13<=Control!$C$17 -> TRUE | D13: =IF($C13,INDEX(Results!C$5:C$15784,$C$4+$B13),"") -> 1 | E13: =IF($C13,INDEX(Results!D$5:D$15784,$C$4+$B13),"") -> Werder Bremen | F13: =IF($C13,INDEX(Results!E$5:E$15784,$C$4+$B13),"") -> FC Schalke 04 | G13: =IF($C13,INDEX(Results!F$5:F$15784,$C$4+$B13),"") -> 0 | H13: =IF($C13,INDEX(Results!G$5:G$15784,$C$4+$B13),"") -> 3 | I13: 0 | J13: 3
B14: 8 | C14: =B14<=Control!$C$17 -> TRUE | D14: =IF($C14,INDEX(Results!C$5:C$15784,$C$4+$B14),"") -> 1 | E14: =IF($C14,INDEX(Results!D$5:D$15784,$C$4+$B14),"") -> VfB Stuttgart | F14: =IF($C14,INDEX(Results!E$5:E$15784,$C$4+$B14),"") -> 1.FC Köln | G14: =IF($C14,INDEX(Results!F$5:F$15784,$C$4+$B14),"") -> 1 | H14: =IF($C14,INDEX(Results!G$5:G$15784,$C$4+$B14),"") -> 3 | I14: 0 | J14: 3
B15: 9 | C15: =B15<=Control!$C$17 -> TRUE | D15: =IF($C15,INDEX(Results!C$5:C$15784,$C$4+$B15),"") -> 1 | E15: =IF($C15,INDEX(Results!D$5:D$15784,$C$4+$B15),"") -> VfL Wolfsburg | F15: =IF($C15,INDEX(Results!E$5:E$15784,$C$4+$B15),"") -> Eintracht Frankfurt | G15: =IF($C15,INDEX(Results!F$5:F$15784,$C$4+$B15),"") -> 2 | H15: =IF($C15,INDEX(Results!G$5:G$15784,$C$4+$B15),"") -> 1 | I15: 3 | J15: 0
B16: 10 | C16: =B16<=Control!$C$17 -> TRUE | D16: =IF($C16,INDEX(Results!C$5:C$15784,$C$4+$B16),"") -> 2 | E16: =IF($C16,INDEX(Results!D$5:D$15784,$C$4+$B16),"") -> Hertha BSC Berlin | F16: =IF($C16,INDEX(Results!E$5:E$15784,$C$4+$B16),"") -> Werder Bremen | G16: =IF($C16,INDEX(Results!F$5:F$15784,$C$4+$B16),"") -> 1 | H16: =IF($C16,INDEX(Results!G$5:G$15784,$C$4+$B16),"") -> 1 | I16: 1 | J16: 1
B17: 11 | C17: =B17<=Control!$C$17 -> TRUE | D17: =IF($C17,INDEX(Results!C$5:C$15784,$C$4+$B17),"") -> 2 | E17: =IF($C17,INDEX(Results!D$5:D$15784,$C$4+$B17),"") -> Eintracht Frankfurt | F17: =IF($C17,INDEX(Results!E$5:E$15784,$C$4+$B17),"") -> FC Augsburg | G17: =IF($C17,INDEX(Results!F$5:F$15784,$C$4+$B17),"") -> 1 | H17: =IF($C17,INDEX(Results!G$5:G$15784,$C$4+$B17),"") -> 1 | I17: 1 | J17: 1
B18: 12 | C18: =B18<=Control!$C$17 -> TRUE | D18: =IF($C18,INDEX(Results!C$5:C$15784,$C$4+$B18),"") -> 2 | E18: =IF($C18,INDEX(Results!D$5:D$15784,$C$4+$B18),"") -> 1.FC Köln | F18: =IF($C18,INDEX(Results!E$5:E$15784,$C$4+$B18),"") -> VfL Wolfsburg | G18: =IF($C18,INDEX(Results!F$5:F$15784,$C$4+$B18),"") -> 1 | H18: =IF($C18,INDEX(Results!G$5:G$15784,$C$4+$B18),"") -> 1 | I18: 1 | J18: 1
B19: 13 | C19: =B19<=Control!$C$17 -> TRUE | D19: =IF($C19,INDEX(Results!C$5:C$15784,$C$4+$B19),"") -> 2 | E19: =IF($C19,INDEX(Results!D$5:D$15784,$C$4+$B19),"") -> Hamburger SV | F19: =IF($C19,INDEX(Results!E$5:E$15784,$C$4+$B19),"") -> VfB Stuttgart | G19: =IF($C19,INDEX(Results!F$5:F$15784,$C$4+$B19),"") -> 3 | H19: =IF($C19,INDEX(Results!G$5:G$15784,$C$4+$B19),"") -> 2 | I19: 3 | J19: 0
B20: 14 | C20: =B20<=Control!$C$17 -> TRUE | D20: =IF($C20,INDEX(Results!C$5:C$15784,$C$4+$B20),"") -> 2 | E20: =IF($C20,INDEX(Results!D$5:D$15784,$C$4+$B20),"") -> Hannover 96 | F20: =IF($C20,INDEX(Results!E$5:E$15784,$C$4+$B20),"") -> Bayer Leverkusen | G20: =IF($C20,INDEX(Results!F$5:F$15784,$C$4+$B20),"") -> 0 | H20: =IF($C20,INDEX(Results!G$5:G$15784,$C$4+$B20),"") -> 1 | I20: 0 | J20: 3
B21: 15 | C21: =B21<=Control!$C$17 -> TRUE | D21: =IF($C21,INDEX(Results!C$5:C$15784,$C$4+$B21),"") -> 2 | E21: =IF($C21,INDEX(Results!D$5:D$15784,$C$4+$B21),"") -> TSG 1899 Hoffenheim | F21: =IF($C21,INDEX(Results!E$5:E$15784,$C$4+$B21),"") -> FC Bayern München | G21: =IF($C21,INDEX(Results!F$5:F$15784,$C$4+$B21),"") -> 1 | H21: =IF($C21,INDEX(Results!G$5:G$15784,$C$4+$B21),"") -> 2 | I21: 0 | J21: 3
B22: 16 | C22: =B22<=Control!$C$17 -> TRUE | D22: =IF($C22,INDEX(Results!C$5:C$15784,$C$4+$B22),"") -> 2 | E22: =IF($C22,INDEX(Results!D$5:D$15784,$C$4+$B22),"") -> FC Schalke 04 | F22: =IF($C22,INDEX(Results!E$5:E$15784,$C$4+$B22),"") -> Darmstadt 98 | G22: =IF($C22,INDEX(Results!F$5:F$15784,$C$4+$B22),"") -> 1 | H22: =IF($C22,INDEX(Results!G$5:G$15784,$C$4+$B22),"") -> 1 | I22: 1 | J22: 1
B23: 17 | C23: =B23<=Control!$C$17 -> TRUE | D23: =IF($C23,INDEX(Results!C$5:C$15784,$C$4+$B23),"") -> 2 | E23: =IF($C23,INDEX(Results!D$5:D$15784,$C$4+$B23),"") -> FC Ingolstadt | F23: =IF($C23,INDEX(Results!E$5:E$15784,$C$4+$B23),"") -> Borussia Dortmund | G23: =IF($C23,INDEX(Results!F$5:F$15784,$C$4+$B23),"") -> 0 | H23: =IF($C23,INDEX(Results!G$5:G$15784,$C$4+$B23),"") -> 4 | I23: 0 | J23: 3
B24: 18 | C24: =B24<=Control!$C$17 -> TRUE | D24: =IF($C24,INDEX(Results!C$5:C$15784,$C$4+$B24),"") -> 2 | E24: =IF($C24,INDEX(Results!D$5:D$15784,$C$4+$B24),"") -> Borussia M'gladbach | F24: =IF($C24,INDEX(Results!E$5:E$15784,$C$4+$B24),"") -> FSV Mainz 05 | G24: =IF($C24,INDEX(Results!F$5:F$15784,$C$4+$B24),"") -> 1 | H24: =IF($C24,INDEX(Results!G$5:G$15784,$C$4+$B24),"") -> 2 | I24: 0 | J24: 3
B25: 19 | C25: =B25<=Control!$C$17 -> TRUE | D25: =IF($C25,INDEX(Results!C$5:C$15784,$C$4+$B25),"") -> 3 | E25: =IF($C25,INDEX(Results!D$5:D$15784,$C$4+$B25),"") -> VfL Wolfsburg | F25: =IF($C25,INDEX(Results!E$5:E$15784,$C$4+$B25),"") -> FC Schalke 04 | G25: =IF($C25,INDEX(Results!F$5:F$15784,$C$4+$B25),"") -> 3 | H25: =IF($C25,INDEX(Results!G$5:G$15784,$C$4+$B25),"") -> 0 | I25: 3 | J25: 0
B26: 20 | C26: =B26<=Control!$C$17 -> TRUE | D26: =IF($C26,INDEX(Results!C$5:C$15784,$C$4+$B26),"") -> 3 | E26: =IF($C26,INDEX(Results!D$5:D$15784,$C$4+$B26),"") -> FC Augsburg | F26: =IF($C26,INDEX(Results!E$5:E$15784,$C$4+$B26),"") -> FC Ingolstadt | G26: =IF($C26,INDEX(Results!F$5:F$15784,$C$4+$B26),"") -> 0 | H26: =IF($C26,INDEX(Results!G$5:G$15784,$C$4+$B26),"") -> 1 | I26: 0 | J26: 3
B27: 21 | C27: =B27<=Control!$C$17 -> TRUE | D27: =IF($C27,INDEX(Results!C$5:C$15784,$C$4+$B27),"") -> 3 | E27: =IF($C27,INDEX(Results!D$5:D$15784,$C$4+$B27),"") -> FC Bayern München | F27: =IF($C27,INDEX(Results!E$5:E$15784,$C$4+$B27),"") -> Bayer Leverkusen | G27: =IF($C27,INDEX(Results!F$5:F$15784,$C$4+$B27),"") -> 3 | H27: =IF($C27,INDEX(Results!G$5:G$15784,$C$4+$B27),"") -> 0 | I27: 3 | J27: 0
B28: 22 | C28: =B28<=Control!$C$17 -> TRUE | D28: =IF($C28,INDEX(Results!C$5:C$15784,$C$4+$B28),"") -> 3 | E28: =IF($C28,INDEX(Results!D$5:D$15784,$C$4+$B28),"") -> Darmstadt 98 | F28: =IF($C28,INDEX(Results!E$5:E$15784,$C$4+$B28),"") -> TSG 1899 Hoffenheim | G28: =IF($C28,INDEX(Results!F$5:F$15784,$C$4+$B28),"") -> 0 | H28: =IF($C28,INDEX(Results!G$5:G$15784,$C$4+$B28),"") -> 0 | I28: 1 | J28: 1
B29: 23 | C29: =B29<=Control!$C$17 -> TRUE | D29: =IF($C29,INDEX(Results!C$5:C$15784,$C$4+$B29),"") -> 3 | E29: =IF($C29,INDEX(Results!D$5:D$15784,$C$4+$B29),"") -> 1.FC Köln | F29: =IF($C29,INDEX(Results!E$5:E$15784,$C$4+$B29),"") -> Hamburger SV | G29: =IF($C29,INDEX(Results!F$5:F$15784,$C$4+$B29),"") -> 2 | H29: =IF($C29,INDEX(Results!G$5:G$15784,$C$4+$B29),"") -> 1 | I29: 3 | J29: 0
B30: 24 | C30: =B30<=Control!$C$17 -> TRUE | D30: =IF($C30,INDEX(Results!C$5:C$15784,$C$4+$B30),"") -> 3 | E30: =IF($C30,INDEX(Results!D$5:D$15784,$C$4+$B30),"") -> FSV Mainz 05 | F30: =IF($C30,INDEX(Results!E$5:E$15784,$C$4+$B30),"") -> Hannover 96 | G30: =IF($C30,INDEX(Results!F$5:F$15784,$C$4+$B30),"") -> 3 | H30: =IF($C30,INDEX(Results!G$5:G$15784,$C$4+$B30),"") -> 0 | I30: 3 | J30: 0
B31: 25 | C31: =B31<=Control!$C$17 -> TRUE | D31: =IF($C31,INDEX(Results!C$5:C$15784,$C$4+$B31),"") -> 3 | E31: =IF($C31,INDEX(Results!D$5:D$15784,$C$4+$B31),"") -> VfB Stuttgart | F31: =IF($C31,INDEX(Results!E$5:E$15784,$C$4+$B31),"") -> Eintracht Frankfurt | G31: =IF($C31,INDEX(Results!F$5:F$15784,$C$4+$B31),"") -> 1 | H31: =IF($C31,INDEX(Results!G$5:G$15784,$C$4+$B31),"") -> 4 | I31: 0 | J31: 3
B32: 26 | C32: =B32<=Control!$C$17 -> TRUE | D32: =IF($C32,INDEX(Results!C$5:C$15784,$C$4+$B32),"") -> 3 | E32: =IF($C32,INDEX(Results!D$5:D$15784,$C$4+$B32),"") -> Borussia Dortmund | F32: =IF($C32,INDEX(Results!E$5:E$15784,$C$4+$B32),"") -> Hertha BSC Berlin | G32: =IF($C32,INDEX(Results!F$5:F$15784,$C$4+$B32),"") -> 3 | H32: =IF($C32,INDEX(Results!G$5:G$15784,$C$4+$B32),"") -> 1 | I32: 3 | J32: 0
B33: 27 | C33: =B33<=Control!$C$17 -> TRUE | D33: =IF($C33,INDEX(Results!C$5:C$15784,$C$4+$B33),"") -> 3 | E33: =IF($C33,INDEX(Results!D$5:D$15784,$C$4+$B33),"") -> Werder Bremen | F33: =IF($C33,INDEX(Results!E$5:E$15784,$C$4+$B33),"") -> Borussia M'gladbach | G33: =IF($C33,INDEX(Results!F$5:F$15784,$C$4+$B33),"") -> 2 | H33: =IF($C33,INDEX(Results!G$5:G$15784,$C$4+$B33),"") -> 1 | I33: 3 | J33: 0
B34: 28 | C34: =B34<=Control!$C$17 -> TRUE | D34: =IF($C34,INDEX(Results!C$5:C$15784,$C$4+$B34),"") -> 4 | E34: =IF($C34,INDEX(Results!D$5:D$15784,$C$4+$B34),"") -> Borussia M'gladbach | F34: =IF($C34,INDEX(Results!E$5:E$15784,$C$4+$B34),"") -> Hamburger SV | G34: =IF($C34,INDEX(Results!F$5:F$15784,$C$4+$B34),"") -> 0 | H34: =IF($C34,INDEX(Results!G$5:G$15784,$C$4+$B34),"") -> 3 | I34: 0 | J34: 3
B35: 29 | C35: =B35<=Control!$C$17 -> TRUE | D35: =IF($C35,INDEX(Results!C$5:C$15784,$C$4+$B35),"") -> 4 | E35: =IF($C35,INDEX(Results!D$5:D$15784,$C$4+$B35),"") -> FC Bayern München | F35: =IF($C35,INDEX(Results!E$5:E$15784,$C$4+$B35),"") -> FC Augsburg | G35: =IF($C35,INDEX(Results!F$5:F$15784,$C$4+$B35),"") -> 2 | H35: =IF($C35,INDEX(Results!G$5:G$15784,$C$4+$B35),"") -> 1 | I35: 3 | J35: 0
B36: 30 | C36: =B36<=Control!$C$17 -> TRUE | D36: =IF($C36,INDEX(Results!C$5:C$15784,$C$4+$B36),"") -> 4 | E36: =IF($C36,INDEX(Results!D$5:D$15784,$C$4+$B36),"") -> Eintracht Frankfurt | F36: =IF($C36,INDEX(Results!E$5:E$15784,$C$4+$B36),"") -> 1.FC Köln | G36: =IF($C36,INDEX(Results!F$5:F$15784,$C$4+$B36),"") -> 6 | H36: =IF($C36,INDEX(Results!G$5:G$15784,$C$4+$B36),"") -> 2 | I36: 3 | J36: 0
B37: 31 | C37: =B37<=Control!$C$17 -> TRUE | D37: =IF($C37,INDEX(Results!C$5:C$15784,$C$4+$B37),"") -> 4 | E37: =IF($C37,INDEX(Results!D$5:D$15784,$C$4+$B37),"") -> Hannover 96 | F37: =IF($C37,INDEX(Results!E$5:E$15784,$C$4+$B37),"") -> Borussia Dortmund | G37: =IF($C37,INDEX(Results!F$5:F$15784,$C$4+$B37),"") -> 2 | H37: =IF($C37,INDEX(Results!G$5:G$15784,$C$4+$B37),"") -> 4 | I37: 0 | J37: 3
B38: 32 | C38: =B38<=Control!$C$17 -> TRUE | D38: =IF($C38,INDEX(Results!C$5:C$15784,$C$4+$B38),"") -> 4 | E38: =IF($C38,INDEX(Results!D$5:D$15784,$C$4+$B38),"") -> Hertha BSC Berlin | F38: =IF($C38,INDEX(Results!E$5:E$15784,$C$4+$B38),"") -> VfB Stuttgart | G38: =IF($C38,INDEX(Results!F$5:F$15784,$C$4+$B38),"") -> 2 | H38: =IF($C38,INDEX(Results!G$5:G$15784,$C$4+$B38),"") -> 1 | I38: 3 | J38: 0
B39: 33 | C39: =B39<=Control!$C$17 -> TRUE | D39: =IF($C39,INDEX(Results!C$5:C$15784,$C$4+$B39),"") -> 4 | E39: =IF($C39,INDEX(Results!D$5:D$15784,$C$4+$B39),"") -> FC Ingolstadt | F39: =IF($C39,INDEX(Results!E$5:E$15784,$C$4+$B39),"") -> VfL Wolfsburg | G39: =IF($C39,INDEX(Results!F$5:F$15784,$C$4+$B39),"") -> 0 | H39: =IF($C39,INDEX(Results!G$5:G$15784,$C$4+$B39),"") -> 0 | I39: 1 | J39: 1
B40: 34 | C40: =B40<=Control!$C$17 -> TRUE | D40: =IF($C40,INDEX(Results!C$5:C$15784,$C$4+$B40),"") -> 4 | E40: =IF($C40,INDEX(Results!D$5:D$15784,$C$4+$B40),"") -> Bayer Leverkusen | F40: =IF($C40,INDEX(Results!E$5:E$15784,$C$4+$B40),"") -> Darmstadt 98 | G40: =IF($C40,INDEX(Results!F$5:F$15784,$C$4+$B40),"") -> 0 | H40: =IF($C40,INDEX(Results!G$5:G$15784,$C$4+$B40),"") -> 1 | I40: 0 | J40: 3
B41: 35 | C41: =B41<=Control!$C$17 -> TRUE | D41: =IF($C41,INDEX(Results!C$5:C$15784,$C$4+$B41),"") -> 4 | E41: =IF($C41,INDEX(Results!D$5:D$15784,$C$4+$B41),"") -> TSG 1899 Hoffenheim | F41: =IF($C41,INDEX(Results!E$5:E$15784,$C$4+$B41),"") -> Werder Bremen | G41: =IF($C41,INDEX(Results!F$5:F$15784,$C$4+$B41),"") -> 1 | H41: =IF($C41,INDEX(Results!G$5:G$15784,$C$4+$B41),"") -> 3 | I41: 0 | J41: 3
B42: 36 | C42: =B42<=Control!$C$17 -> TRUE | D42: =IF($C42,INDEX(Results!C$5:C$15784,$C$4+$B42),"") -> 4 | E42: =IF($C42,INDEX(Results!D$5:D$15784,$C$4+$B42),"") -> FC Schalke 04 | F42: =IF($C42,INDEX(Results!E$5:E$15784,$C$4+$B42),"") -> FSV Mainz 05 | G42: =IF($C42,INDEX(Results!F$5:F$15784,$C$4+$B42),"") -> 2 | H42: =IF($C42,INDEX(Results!G$5:G$15784,$C$4+$B42),"") -> 1 | I42: 3 | J42: 0
B43: 37 | C43: =B43<=Control!$C$17 -> TRUE | D43: =IF($C43,INDEX(Results!C$5:C$15784,$C$4+$B43),"") -> 5 | E43: =IF($C43,INDEX(Results!D$5:D$15784,$C$4+$B43),"") -> FSV Mainz 05 | F43: =IF($C43,INDEX(Results!E$5:E$15784,$C$4+$B43),"") -> TSG 1899 Hoffenheim | G43: =IF($C43,INDEX(Results!F$5:F$15784,$C$4+$B43),"") -> 3 | H43: =IF($C43,INDEX(Results!G$5:G$15784,$C$4+$B43),"") -> 1 | I43: 3 | J43: 0
B44: 38 | C44: =B44<=Control!$C$17 -> TRUE | D44: =IF($C44,INDEX(Results!C$5:C$15784,$C$4+$B44),"") -> 5 | E44: =IF($C44,INDEX(Results!D$5:D$15784,$C$4+$B44),"") -> Darmstadt 98 | F44: =IF($C44,INDEX(Results!E$5:E$15784,$C$4+$B44),"") -> FC Bayern München | G44: =IF($C44,INDEX(Results!F$5:F$15784,$C$4+$B44),"") -> 0 | H44: =IF($C44,INDEX(Results!G$5:G$15784,$C$4+$B44),"") -> 3 | I44: 0 | J44: 3
B45: 39 | C45: =B45<=Control!$C$17 -> TRUE | D45: =IF($C45,INDEX(Results!C$5:C$15784,$C$4+$B45),"") -> 5 | E45: =IF($C45,INDEX(Results!D$5:D$15784,$C$4+$B45),"") -> 1.FC Köln | F45: =IF($C45,INDEX(Results!E$5:E$15784,$C$4+$B45),"") -> Borussia M'gladbach | G45: =IF($C45,INDEX(Results!F$5:F$15784,$C$4+$B45),"") -> 1 | H45: =IF($C45,INDEX(Results!G$5:G$15784,$C$4+$B45),"") -> 0 | I45: 3 | J45: 0
B46: 40 | C46: =B46<=Control!$C$17 -> TRUE | D46: =IF($C46,INDEX(Results!C$5:C$15784,$C$4+$B46),"") -> 5 | E46: =IF($C46,INDEX(Results!D$5:D$15784,$C$4+$B46),"") -> Hamburger SV | F46: =IF($C46,INDEX(Results!E$5:E$15784,$C$4+$B46),"") -> Eintracht Frankfurt | G46: =IF($C46,INDEX(Results!F$5:F$15784,$C$4+$B46),"") -> 0 | H46: =IF($C46,INDEX(Results!G$5:G$15784,$C$4+$B46),"") -> 0 | I46: 1 | J46: 1
B47: 41 | C47: =B47<=Control!$C$17 -> TRUE | D47: =IF($C47,INDEX(Results!C$5:C$15784,$C$4+$B47),"") -> 5 | E47: =IF($C47,INDEX(Results!D$5:D$15784,$C$4+$B47),"") -> Werder Bremen | F47: =IF($C47,INDEX(Results!E$5:E$15784,$C$4+$B47),"") -> FC Ingolstadt | G47: =IF($C47,INDEX(Results!F$5:F$15784,$C$4+$B47),"") -> 0 | H47: =IF($C47,INDEX(Results!G$5:G$15784,$C$4+$B47),"") -> 1 | I47: 0 | J47: 3
B48: 42 | C48: =B48<=Control!$C$17 -> TRUE | D48: =IF($C48,INDEX(Results!C$5:C$15784,$C$4+$B48),"") -> 5 | E48: =IF($C48,INDEX(Results!D$5:D$15784,$C$4+$B48),"") -> VfL Wolfsburg | F48: =IF($C48,INDEX(Results!E$5:E$15784,$C$4+$B48),"") -> Hertha BSC Berlin | G48: =IF($C48,INDEX(Results!F$5:F$15784,$C$4+$B48),"") -> 2 | H48: =IF($C48,INDEX(Results!G$5:G$15784,$C$4+$B48),"") -> 0 | I48: 3 | J48: 0
B49: 43 | C49: =B49<=Control!$C$17 -> TRUE | D49: =IF($C49,INDEX(Results!C$5:C$15784,$C$4+$B49),"") -> 5 | E49: =IF($C49,INDEX(Results!D$5:D$15784,$C$4+$B49),"") -> FC Augsburg | F49: =IF($C49,INDEX(Results!E$5:E$15784,$C$4+$B49),"") -> Hannover 96 | G49: =IF($C49,INDEX(Results!F$5:F$15784,$C$4+$B49),"") -> 2 | H49: =IF($C49,INDEX(Results!G$5:G$15784,$C$4+$B49),"") -> 0 | I49: 3 | J49: 0
B50: 44 | C50: =B50<=Control!$C$17 -> TRUE | D50: =IF($C50,INDEX(Results!C$5:C$15784,$C$4+$B50),"") -> 5 | E50: =IF($C50,INDEX(Results!D$5:D$15784,$C$4+$B50),"") -> Borussia Dortmund | F50: =IF($C50,INDEX(Results!E$5:E$15784,$C$4+$B50),"") -> Bayer Leverkusen | G50: =IF($C50,INDEX(Results!F$5:F$15784,$C$4+$B50),"") -> 3 | H50: =IF($C50,INDEX(Results!G$5:G$15784,$C$4+$B50),"") -> 0 | I50: 3 | J50: 0
B51: 45 | C51: =B51<=Control!$C$17 -> TRUE | D51: =IF($C51,INDEX(Results!C$5:C$15784,$C$4+$B51),"") -> 5 | E51: =IF($C51,INDEX(Results!D$5:D$15784,$C$4+$B51),"") -> VfB Stuttgart | F51: =IF($C51,INDEX(Results!E$5:E$15784,$C$4+$B51),"") -> FC Schalke 04 | G51: =IF($C51,INDEX(Results!F$5:F$15784,$C$4+$B51),"") -> 0 | H51: =IF($C51,INDEX(Results!G$5:G$15784,$C$4+$B51),"") -> 1 | I51: 0 | J51: 3
B52: 46 | C52: =B52<=Control!$C$17 -> TRUE | D52: =IF($C52,INDEX(Results!C$5:C$15784,$C$4+$B52),"") -> 6 | E52: =IF($C52,INDEX(Results!D$5:D$15784,$C$4+$B52),"") -> FC Bayern München | F52: =IF($C52,INDEX(Results!E$5:E$15784,$C$4+$B52),"") -> VfL Wolfsburg | G52: =IF($C52,INDEX(Results!F$5:F$15784,$C$4+$B52),"") -> 5 | H52: =IF($C52,INDEX(Results!G$5:G$15784,$C$4+$B52),"") -> 1 | I52: 3 | J52: 0
B53: 47 | C53: =B53<=Control!$C$17 -> TRUE | D53: =IF($C53,INDEX(Results!C$5:C$15784,$C$4+$B53),"") -> 6 | E53: =IF($C53,INDEX(Results!D$5:D$15784,$C$4+$B53),"") -> Darmstadt 98 | F53: =IF($C53,INDEX(Results!E$5:E$15784,$C$4+$B53),"") -> Werder Bremen | G53: =IF($C53,INDEX(Results!F$5:F$15784,$C$4+$B53),"") -> 2 | H53: =IF($C53,INDEX(Results!G$5:G$15784,$C$4+$B53),"") -> 1 | I53: 3 | J53: 0
B54: 48 | C54: =B54<=Control!$C$17 -> TRUE | D54: =IF($C54,INDEX(Results!C$5:C$15784,$C$4+$B54),"") -> 6 | E54: =IF($C54,INDEX(Results!D$5:D$15784,$C$4+$B54),"") -> Hertha BSC Berlin | F54: =IF($C54,INDEX(Results!E$5:E$15784,$C$4+$B54),"") -> 1.FC Köln | G54: =IF($C54,INDEX(Results!F$5:F$15784,$C$4+$B54),"") -> 2 | H54: =IF($C54,INDEX(Results!G$5:G$15784,$C$4+$B54),"") -> 0 | I54: 3 | J54: 0
B55: 49 | C55: =B55<=Control!$C$17 -> TRUE | D55: =IF($C55,INDEX(Results!C$5:C$15784,$C$4+$B55),"") -> 6 | E55: =IF($C55,INDEX(Results!D$5:D$15784,$C$4+$B55),"") -> FC Ingolstadt | F55: =IF($C55,INDEX(Results!E$5:E$15784,$C$4+$B55),"") -> Hamburger SV | G55: =IF($C55,INDEX(Results!F$5:F$15784,$C$4+$B55),"") -> 0 | H55: =IF($C55,INDEX(Results!G$5:G$15784,$C$4+$B55),"") -> 1 | I55: 0 | J55: 3
B56: 50 | C56: =B56<=Control!$C$17 -> TRUE | D56: =IF($C56,INDEX(Results!C$5:C$15784,$C$4+$B56),"") -> 6 | E56: =IF($C56,INDEX(Results!D$5:D$15784,$C$4+$B56),"") -> Hannover 96 | F56: =IF($C56,INDEX(Results!E$5:E$15784,$C$4+$B56),"") -> VfB Stuttgart | G56: =IF($C56,INDEX(Results!F$5:F$15784,$C$4+$B56),"") -> 1 | H56: =IF($C56,INDEX(Results!G$5:G$15784,$C$4+$B56),"") -> 3 | I56: 0 | J56: 3
B57: 51 | C57: =B57<=Control!$C$17 -> TRUE | D57: =IF($C57,INDEX(Results!C$5:C$15784,$C$4+$B57),"") -> 6 | E57: =IF($C57,INDEX(Results!D$5:D$15784,$C$4+$B57),"") -> TSG 1899 Hoffenheim | F57: =IF($C57,INDEX(Results!E$5:E$15784,$C$4+$B57),"") -> Borussia Dortmund | G57: =IF($C57,INDEX(Results!F$5:F$15784,$C$4+$B57),"") -> 1 | H57: =IF($C57,INDEX(Results!G$5:G$15784,$C$4+$B57),"") -> 1 | I57: 1 | J57: 1
B58: 52 | C58: =B58<=Control!$C$17 -> TRUE | D58: =IF($C58,INDEX(Results!C$5:C$15784,$C$4+$B58),"") -> 6 | E58: =IF($C58,INDEX(Results!D$5:D$15784,$C$4+$B58),"") -> Bayer Leverkusen | F58: =IF($C58,INDEX(Results!E$5:E$15784,$C$4+$B58),"") -> FSV Mainz 05 | G58: =IF($C58,INDEX(Results!F$5:F$15784,$C$4+$B58),"") -> 1 | H58: =IF($C58,INDEX(Results!G$5:G$15784,$C$4+$B58),"") -> 0 | I58: 3 | J58: 0
B59: 53 | C59: =B59<=Control!$C$17 -> TRUE | D59: =IF($C59,INDEX(Results!C$5:C$15784,$C$4+$B59),"") -> 6 | E59: =IF($C59,INDEX(Results!D$5:D$15784,$C$4+$B59),"") -> Borussia M'gladbach | F59: =IF($C59,INDEX(Results!E$5:E$15784,$C$4+$B59),"") -> FC Augsburg | G59: =IF($C59,INDEX(Results!F$5:F$15784,$C$4+$B59),"") -> 4 | H59: =IF($C59,INDEX(Results!G$5:G$15784,$C$4+$B59),"") -> 2 | I59: 3 | J59: 0
B60: 54 | C60: =B60<=Control!$C$17 -> TRUE | D60: =IF($C60,INDEX(Results!C$5:C$15784,$C$4+$B60),"") -> 6 | E60: =IF($C60,INDEX(Results!D$5:D$15784,$C$4+$B60),"") -> FC Schalke 04 | F60: =IF($C60,INDEX(Results!E$5:E$15784,$C$4+$B60),"") -> Eintracht Frankfurt | G60: =IF($C60,INDEX(Results!F$5:F$15784,$C$4+$B60),"") -> 2 | H60: =IF($C60,INDEX(Results!G$5:G$15784,$C$4+$B60),"") -> 0 | I60: 3 | J60: 0
B61: 55 | C61: =B61<=Control!$C$17 -> TRUE | D61: =IF($C61,INDEX(Results!C$5:C$15784,$C$4+$B61),"") -> 7 | E61: =IF($C61,INDEX(Results!D$5:D$15784,$C$4+$B61),"") -> 1.FC Köln | F61: =IF($C61,INDEX(Results!E$5:E$15784,$C$4+$B61),"") -> FC Ingolstadt | G61: =IF($C61,INDEX(Results!F$5:F$15784,$C$4+$B61),"") -> 1 | H61: =IF($C61,INDEX(Results!G$5:G$15784,$C$4+$B61),"") -> 1 | I61: 1 | J61: 1
B62: 56 | C62: =B62<=Control!$C$17 -> TRUE | D62: =IF($C62,INDEX(Results!C$5:C$15784,$C$4+$B62),"") -> 7 | E62: =IF($C62,INDEX(Results!D$5:D$15784,$C$4+$B62),"") -> FC Augsburg | F62: =IF($C62,INDEX(Results!E$5:E$15784,$C$4+$B62),"") -> TSG 1899 Hoffenheim | G62: =IF($C62,INDEX(Results!F$5:F$15784,$C$4+$B62),"") -> 1 | H62: =IF($C62,INDEX(Results!G$5:G$15784,$C$4+$B62),"") -> 3 | I62: 0 | J62: 3
B63: 57 | C63: =B63<=Control!$C$17 -> TRUE | D63: =IF($C63,INDEX(Results!C$5:C$15784,$C$4+$B63),"") -> 7 | E63: =IF($C63,INDEX(Results!D$5:D$15784,$C$4+$B63),"") -> Hamburger SV | F63: =IF($C63,INDEX(Results!E$5:E$15784,$C$4+$B63),"") -> FC Schalke 04 | G63: =IF($C63,INDEX(Results!F$5:F$15784,$C$4+$B63),"") -> 0 | H63: =IF($C63,INDEX(Results!G$5:G$15784,$C$4+$B63),"") -> 1 | I63: 0 | J63: 3
B64: 58 | C64: =B64<=Control!$C$17 -> TRUE | D64: =IF($C64,INDEX(Results!C$5:C$15784,$C$4+$B64),"") -> 7 | E64: =IF($C64,INDEX(Results!D$5:D$15784,$C$4+$B64),"") -> FSV Mainz 05 | F64: =IF($C64,INDEX(Results!E$5:E$15784,$C$4+$B64),"") -> FC Bayern München | G64: =IF($C64,INDEX(Results!F$5:F$15784,$C$4+$B64),"") -> 0 | H64: =IF($C64,INDEX(Results!G$5:G$15784,$C$4+$B64),"") -> 3 | I64: 0 | J64: 3
B65: 59 | C65: =B65<=Control!$C$17 -> TRUE | D65: =IF($C65,INDEX(Results!C$5:C$15784,$C$4+$B65),"") -> 7 | E65: =IF($C65,INDEX(Results!D$5:D$15784,$C$4+$B65),"") -> VfB Stuttgart | F65: =IF($C65,INDEX(Results!E$5:E$15784,$C$4+$B65),"") -> Borussia M'gladbach | G65: =IF($C65,INDEX(Results!F$5:F$15784,$C$4+$B65),"") -> 1 | H65: =IF($C65,INDEX(Results!G$5:G$15784,$C$4+$B65),"") -> 3 | I65: 0 | J65: 3
B66: 60 | C66: =B66<=Control!$C$17 -> TRUE | D66: =IF($C66,INDEX(Results!C$5:C$15784,$C$4+$B66),"") -> 7 | E66: =IF($C66,INDEX(Results!D$5:D$15784,$C$4+$B66),"") -> Werder Bremen | F66: =IF($C66,INDEX(Results!E$5:E$15784,$C$4+$B66),"") -> Bayer Leverkusen | G66: =IF($C66,INDEX(Results!F$5:F$15784,$C$4+$B66),"") -> 0 | H66: =IF($C66,INDEX(Results!G$5:G$15784,$C$4+$B66),"") -> 3 | I66: 0 | J66: 3
B67: 61 | C67: =B67<=Control!$C$17 -> TRUE | D67: =IF($C67,INDEX(Results!C$5:C$15784,$C$4+$B67),"") -> 7 | E67: =IF($C67,INDEX(Results!D$5:D$15784,$C$4+$B67),"") -> VfL Wolfsburg | F67: =IF($C67,INDEX(Results!E$5:E$15784,$C$4+$B67),"") -> Hannover 96 | G67: =IF($C67,INDEX(Results!F$5:F$15784,$C$4+$B67),"") -> 1 | H67: =IF($C67,INDEX(Results!G$5:G$15784,$C$4+$B67),"") -> 1 | I67: 1 | J67: 1
B68: 62 | C68: =B68<=Control!$C$17 -> TRUE | D68: =IF($C68,INDEX(Results!C$5:C$15784,$C$4+$B68),"") -> 7 | E68: =IF($C68,INDEX(Results!D$5:D$15784,$C$4+$B68),"") -> Borussia Dortmund | F68: =IF($C68,INDEX(Results!E$5:E$15784,$C$4+$B68),"") -> Darmstadt 98 | G68: =IF($C68,INDEX(Results!F$5:F$15784,$C$4+$B68),"") -> 2 | H68: =IF($C68,INDEX(Results!G$5:G$15784,$C$4+$B68),"") -> 2 | I68: 1 | J68: 1
B69: 63 | C69: =B69<=Control!$C$17 -> TRUE | D69: =IF($C69,INDEX(Results!C$5:C$15784,$C$4+$B69),"") -> 7 | E69: =IF($C69,INDEX(Results!D$5:D$15784,$C$4+$B69),"") -> Eintracht Frankfurt | F69: =IF($C69,INDEX(Results!E$5:E$15784,$C$4+$B69),"") -> Hertha BSC Berlin | G69: =IF($C69,INDEX(Results!F$5:F$15784,$C$4+$B69),"") -> 1 | H69: =IF($C69,INDEX(Results!G$5:G$15784,$C$4+$B69),"") -> 1 | I69: 1 | J69: 1
B70: 64 | C70: =B70<=Control!$C$17 -> TRUE | D70: =IF($C70,INDEX(Results!C$5:C$15784,$C$4+$B70),"") -> 8 | E70: =IF($C70,INDEX(Results!D$5:D$15784,$C$4+$B70),"") -> Darmstadt 98 | F70: =IF($C70,INDEX(Results!E$5:E$15784,$C$4+$B70),"") -> FSV Mainz 05 | G70: =IF($C70,INDEX(Results!F$5:F$15784,$C$4+$B70),"") -> 2 | H70: =IF($C70,INDEX(Results!G$5:G$15784,$C$4+$B70),"") -> 3 | I70: 0 | J70: 3
B71: 65 | C71: =B71<=Control!$C$17 -> TRUE | D71: =IF($C71,INDEX(Results!C$5:C$15784,$C$4+$B71),"") -> 8 | E71: =IF($C71,INDEX(Results!D$5:D$15784,$C$4+$B71),"") -> Hannover 96 | F71: =IF($C71,INDEX(Results!E$5:E$15784,$C$4+$B71),"") -> Werder Bremen | G71: =IF($C71,INDEX(Results!F$5:F$15784,$C$4+$B71),"") -> 1 | H71: =IF($C71,INDEX(Results!G$5:G$15784,$C$4+$B71),"") -> 0 | I71: =$C71*IF($G71>$H71,myPoints,IF($G71<$H71,0,1)) -> 3 | J71: =$C71*IF($G71>$H71,0,IF($G71<$H71,myPoints,1)) -> 0
B72: 66 | C72: =B72<=Control!$C$17 -> TRUE | D72: =IF($C72,INDEX(Results!C$5:C$15784,$C$4+$B72),"") -> 8 | E72: =IF($C72,INDEX(Results!D$5:D$15784,$C$4+$B72),"") -> Hertha BSC Berlin | F72: =IF($C72,INDEX(Results!E$5:E$15784,$C$4+$B72),"") -> Hamburger SV | G72: =IF($C72,INDEX(Results!F$5:F$15784,$C$4+$B72),"") -> 3 | H72: =IF($C72,INDEX(Results!G$5:G$15784,$C$4+$B72),"") -> 0 | I72: 3 | J72: 0
B73: 67 | C73: =B73<=Control!$C$17 -> TRUE | D73: =IF($C73,INDEX(Results!C$5:C$15784,$C$4+$B73),"") -> 8 | E73: =IF($C73,INDEX(Results!D$5:D$15784,$C$4+$B73),"") -> TSG 1899 Hoffenheim | F73: =IF($C73,INDEX(Results!E$5:E$15784,$C$4+$B73),"") -> VfB Stuttgart | G73: =IF($C73,INDEX(Results!F$5:F$15784,$C$4+$B73),"") -> 2 | H73: =IF($C73,INDEX(Results!G$5:G$15784,$C$4+$B73),"") -> 2 | I73: 1 | J73: 1
B74: 68 | C74: =B74<=Control!$C$17 -> TRUE | D74: =IF($C74,INDEX(Results!C$5:C$15784,$C$4+$B74),"") -> 8 | E74: =IF($C74,INDEX(Results!D$5:D$15784,$C$4+$B74),"") -> FC Ingolstadt | F74: =IF($C74,INDEX(Results!E$5:E$15784,$C$4+$B74),"") -> Eintracht Frankfurt | G74: =IF($C74,INDEX(Results!F$5:F$15784,$C$4+$B74),"") -> 2 | H74: =IF($C74,INDEX(Results!G$5:G$15784,$C$4+$B74),"") -> 0 | I74: 3 | J74: 0
B75: 69 | C75: =B75<=Control!$C$17 -> TRUE | D75: =IF($C75,INDEX(Results!C$5:C$15784,$C$4+$B75),"") -> 8 | E75: =IF($C75,INDEX(Results!D$5:D$15784,$C$4+$B75),"") -> Borussia M'gladbach | F75: =IF($C75,INDEX(Results!E$5:E$15784,$C$4+$B75),"") -> VfL Wolfsburg | G75: =IF($C75,INDEX(Results!F$5:F$15784,$C$4+$B75),"") -> 2 | H75: =IF($C75,INDEX(Results!G$5:G$15784,$C$4+$B75),"") -> 0 | I75: 3 | J75: 0
B76: 70 | C76: =B76<=Control!$C$17 -> TRUE | D76: =IF($C76,INDEX(Results!C$5:C$15784,$C$4+$B76),"") -> 8 | E76: =IF($C76,INDEX(Results!D$5:D$15784,$C$4+$B76),"") -> FC Bayern München | F76: =IF($C76,INDEX(Results!E$5:E$15784,$C$4+$B76),"") -> Borussia Dortmund | G76: =IF($C76,INDEX(Results!F$5:F$15784,$C$4+$B76),"") -> 5 | H76: =IF($C76,INDEX(Results!G$5:G$15784,$C$4+$B76),"") -> 1 | I76: 3 | J76: 0
B77: 71 | C77: =B77<=Control!$C$17 -> TRUE | D77: =IF($C77,INDEX(Results!C$5:C$15784,$C$4+$B77),"") -> 8 | E77: =IF($C77,INDEX(Results!D$5:D$15784,$C$4+$B77),"") -> Bayer Leverkusen | F77: =IF($C77,INDEX(Results!E$5:E$15784,$C$4+$B77),"") -> FC Augsburg | G77: =IF($C77,INDEX(Results!F$5:F$15784,$C$4+$B77),"") -> 1 | H77: =IF($C77,INDEX(Results!G$5:G$15784,$C$4+$B77),"") -> 1 | I77: 1 | J77: 1
B78: 72 | C78: =B78<=Control!$C$17 -> TRUE | D78: =IF($C78,INDEX(Results!C$5:C$15784,$C$4+$B78),"") -> 8 | E78: =IF($C78,INDEX(Results!D$5:D$15784,$C$4+$B78),"") -> FC Schalke 04 | F78: =IF($C78,INDEX(Results!E$5:E$15784,$C$4+$B78),"") -> 1.FC Köln | G78: =IF($C78,INDEX(Results!F$5:F$15784,$C$4+$B78),"") -> 0 | H78: =IF($C78,INDEX(Results!G$5:G$15784,$C$4+$B78),"") -> 3 | I78: 0 | J78: 3
B79: 73 | C79: =B79<=Control!$C$17 -> TRUE | D79: =IF($C79,INDEX(Results!C$5:C$15784,$C$4+$B79),"") -> 9 | E79: =IF($C79,INDEX(Results!D$5:D$15784,$C$4+$B79),"") -> FSV Mainz 05 | F79: =IF($C79,INDEX(Results!E$5:E$15784,$C$4+$B79),"") -> Borussia Dortmund | G79: =IF($C79,INDEX(Results!F$5:F$15784,$C$4+$B79),"") -> 0 | H79: =IF($C79,INDEX(Results!G$5:G$15784,$C$4+$B79),"") -> 2 | I79: 0 | J79: 3
B80: 74 | C80: =B80<=Control!$C$17 -> TRUE | D80: =IF($C80,INDEX(Results!C$5:C$15784,$C$4+$B80),"") -> 9 | E80: =IF($C80,INDEX(Results!D$5:D$15784,$C$4+$B80),"") -> FC Augsburg | F80: =IF($C80,INDEX(Results!E$5:E$15784,$C$4+$B80),"") -> Darmstadt 98 | G80: =IF($C80,INDEX(Results!F$5:F$15784,$C$4+$B80),"") -> 0 | H80: =IF($C80,INDEX(Results!G$5:G$15784,$C$4+$B80),"") -> 2 | I80: 0 | J80: 3
B81: 75 | C81: =B81<=Control!$C$17 -> TRUE | D81: =IF($C81,INDEX(Results!C$5:C$15784,$C$4+$B81),"") -> 9 | E81: =IF($C81,INDEX(Results!D$5:D$15784,$C$4+$B81),"") -> Eintracht Frankfurt | F81: =IF($C81,INDEX(Results!E$5:E$15784,$C$4+$B81),"") -> Borussia M'gladbach | G81: =IF($C81,INDEX(Results!F$5:F$15784,$C$4+$B81),"") -> 1 | H81: =IF($C81,INDEX(Results!G$5:G$15784,$C$4+$B81),"") -> 5 | I81: 0 | J81: 3
B82: 76 | C82: =B82<=Control!$C$17 -> TRUE | D82: =IF($C82,INDEX(Results!C$5:C$15784,$C$4+$B82),"") -> 9 | E82: =IF($C82,INDEX(Results!D$5:D$15784,$C$4+$B82),"") -> Hamburger SV | F82: =IF($C82,INDEX(Results!E$5:E$15784,$C$4+$B82),"") -> Bayer Leverkusen | G82: =IF($C82,INDEX(Results!F$5:F$15784,$C$4+$B82),"") -> 0 | H82: =IF($C82,INDEX(Results!G$5:G$15784,$C$4+$B82),"") -> 0 | I82: 1 | J82: 1
B83: 77 | C83: =B83<=Control!$C$17 -> TRUE | D83: =IF($C83,INDEX(Results!C$5:C$15784,$C$4+$B83),"") -> 9 | E83: =IF($C83,INDEX(Results!D$5:D$15784,$C$4+$B83),"") -> FC Schalke 04 | F83: =IF($C83,INDEX(Results!E$5:E$15784,$C$4+$B83),"") -> Hertha BSC Berlin | G83: =IF($C83,INDEX(Results!F$5:F$15784,$C$4+$B83),"") -> 2 | H83: =IF($C83,INDEX(Results!G$5:G$15784,$C$4+$B83),"") -> 1 | I83: 3 | J83: 0
B84: 78 | C84: =B84<=Control!$C$17 -> TRUE | D84: =IF($C84,INDEX(Results!C$5:C$15784,$C$4+$B84),"") -> 9 | E84: =IF($C84,INDEX(Results!D$5:D$15784,$C$4+$B84),"") -> Werder Bremen | F84: =IF($C84,INDEX(Results!E$5:E$15784,$C$4+$B84),"") -> FC Bayern München | G84: =IF($C84,INDEX(Results!F$5:F$15784,$C$4+$B84),"") -> 0 | H84: =IF($C84,INDEX(Results!G$5:G$15784,$C$4+$B84),"") -> 1 | I84: 0 | J84: 3
B85: 79 | C85: =B85<=Control!$C$17 -> TRUE | D85: =IF($C85,INDEX(Results!C$5:C$15784,$C$4+$B85),"") -> 9 | E85: =IF($C85,INDEX(Results!D$5:D$15784,$C$4+$B85),"") -> VfL Wolfsburg | F85: =IF($C85,INDEX(Results!E$5:E$15784,$C$4+$B85),"") -> TSG 1899 Hoffenheim | G85: =IF($C85,INDEX(Results!F$5:F$15784,$C$4+$B85),"") -> 4 | H85: =IF($C85,INDEX(Results!G$5:G$15784,$C$4+$B85),"") -> 2 | I85: 3 | J85: 0
B86: 80 | C86: =B86<=Control!$C$17 -> TRUE | D86: =IF($C86,INDEX(Results!C$5:C$15784,$C$4+$B86),"") -> 9 | E86: =IF($C86,INDEX(Results!D$5:D$15784,$C$4+$B86),"") -> 1.FC Köln | F86: =IF($C86,INDEX(Results!E$5:E$15784,$C$4+$B86),"") -> Hannover 96 | G86: =IF($C86,INDEX(Results!F$5:F$15784,$C$4+$B86),"") -> 0 | H86: =IF($C86,INDEX(Results!G$5:G$15784,$C$4+$B86),"") -> 1 | I86: 0 | J86: 3
B87: 81 | C87: =B87<=Control!$C$17 -> TRUE | D87: =IF($C87,INDEX(Results!C$5:C$15784,$C$4+$B87),"") -> 9 | E87: =IF($C87,INDEX(Results!D$5:D$15784,$C$4+$B87),"") -> VfB Stuttgart | F87: =IF($C87,INDEX(Results!E$5:E$15784,$C$4+$B87),"") -> FC Ingolstadt | G87: =IF($C87,INDEX(Results!F$5:F$15784,$C$4+$B87),"") -> 1 | H87: =IF($C87,INDEX(Results!G$5:G$15784,$C$4+$B87),"") -> 0 | I87: 3 | J87: 0
B88: 82 | C88: =B88<=Control!$C$17 -> TRUE | D88: =IF($C88,INDEX(Results!C$5:C$15784,$C$4+$B88),"") -> 10 | E88: =IF($C88,INDEX(Results!D$5:D$15784,$C$4+$B88),"") -> TSG 1899 Hoffenheim | F88: =IF($C88,INDEX(Results!E$5:E$15784,$C$4+$B88),"") -> Hamburger SV | G88: =IF($C88,INDEX(Results!F$5:F$15784,$C$4+$B88),"") -> 0 | H88: =IF($C88,INDEX(Results!G$5:G$15784,$C$4+$B88),"") -> 1 | I88: 0 | J88: 3
B89: 83 | C89: =B89<=Control!$C$17 -> TRUE | D89: =IF($C89,INDEX(Results!C$5:C$15784,$C$4+$B89),"") -> 10 | E89: =IF($C89,INDEX(Results!D$5:D$15784,$C$4+$B89),"") -> FC Bayern München | F89: =IF($C89,INDEX(Results!E$5:E$15784,$C$4+$B89),"") -> 1.FC Köln | G89: =IF($C89,INDEX(Results!F$5:F$15784,$C$4+$B89),"") -> 4 | H89: =IF($C89,INDEX(Results!G$5:G$15784,$C$4+$B89),"") -> 0 | I89: 3 | J89: 0
B90: 84 | C90: =B90<=Control!$C$17 -> TRUE | D90: =IF($C90,INDEX(Results!C$5:C$15784,$C$4+$B90),"") -> 10 | E90: =IF($C90,INDEX(Results!D$5:D$15784,$C$4+$B90),"") -> Darmstadt 98 | F90: =IF($C90,INDEX(Results!E$5:E$15784,$C$4+$B90),"") -> VfL Wolfsburg | G90: =IF($C90,INDEX(Results!F$5:F$15784,$C$4+$B90),"") -> 0 | H90: =IF($C90,INDEX(Results!G$5:G$15784,$C$4+$B90),"") -> 1 | I90: 0 | J90: 3
B91: 85 | C91: =B91<=Control!$C$17 -> TRUE | D91: =IF($C91,INDEX(Results!C$5:C$15784,$C$4+$B91),"") -> 10 | E91: =IF($C91,INDEX(Results!D$5:D$15784,$C$4+$B91),"") -> Hannover 96 | F91: =IF($C91,INDEX(Results!E$5:E$15784,$C$4+$B91),"") -> Eintracht Frankfurt | G91: =IF($C91,INDEX(Results!F$5:F$15784,$C$4+$B91),"") -> 1 | H91: =IF($C91,INDEX(Results!G$5:G$15784,$C$4+$B91),"") -> 2 | I91: 0 | J91: 3
B92: 86 | C92: =B92<=Control!$C$17 -> TRUE | D92: =IF($C92,INDEX(Results!C$5:C$15784,$C$4+$B92),"") -> 10 | E92: =IF($C92,INDEX(Results!D$5:D$15784,$C$4+$B92),"") -> FC Ingolstadt | F92: =IF($C92,INDEX(Results!E$5:E$15784,$C$4+$B92),"") -> Hertha BSC Berlin | G92: =IF($C92,INDEX(Results!F$5:F$15784,$C$4+$B92),"") -> 0 | H92: =IF($C92,INDEX(Results!G$5:G$15784,$C$4+$B92),"") -> 1 | I92: 0 | J92: 3
B93: 87 | C93: =B93<=Control!$C$17 -> TRUE | D93: =IF($C93,INDEX(Results!C$5:C$15784,$C$4+$B93),"") -> 10 | E93: =IF($C93,INDEX(Results!D$5:D$15784,$C$4+$B93),"") -> Bayer Leverkusen | F93: =IF($C93,INDEX(Results!E$5:E$15784,$C$4+$B93),"") -> VfB Stuttgart | G93: =IF($C93,INDEX(Results!F$5:F$15784,$C$4+$B93),"") -> 4 | H93: =IF($C93,INDEX(Results!G$5:G$15784,$C$4+$B93),"") -> 3 | I93: 3 | J93: 0
B94: 88 | C94: =B94<=Control!$C$17 -> TRUE | D94: =IF($C94,INDEX(Results!C$5:C$15784,$C$4+$B94),"") -> 10 | E94: =IF($C94,INDEX(Results!D$5:D$15784,$C$4+$B94),"") -> FSV Mainz 05 | F94: =IF($C94,INDEX(Results!E$5:E$15784,$C$4+$B94),"") -> Werder Bremen | G94: =IF($C94,INDEX(Results!F$5:F$15784,$C$4+$B94),"") -> 1 | H94: =IF($C94,INDEX(Results!G$5:G$15784,$C$4+$B94),"") -> 3 | I94: 0 | J94: 3
B95: 89 | C95: =B95<=Control!$C$17 -> TRUE | D95: =IF($C95,INDEX(Results!C$5:C$15784,$C$4+$B95),"") -> 10 | E95: =IF($C95,INDEX(Results!D$5:D$15784,$C$4+$B95),"") -> Borussia Dortmund | F95: =IF($C95,INDEX(Results!E$5:E$15784,$C$4+$B95),"") -> FC Augsburg | G95: =IF($C95,INDEX(Results!F$5:F$15784,$C$4+$B95),"") -> 5 | H95: =IF($C95,INDEX(Results!G$5:G$15784,$C$4+$B95),"") -> 1 | I95: 3 | J95: 0
B96: 90 | C96: =B96<=Control!$C$17 -> TRUE | D96: =IF($C96,INDEX(Results!C$5:C$15784,$C$4+$B96),"") -> 10 | E96: =IF($C96,INDEX(Results!D$5:D$15784,$C$4+$B96),"") -> Borussia M'gladbach | F96: =IF($C96,INDEX(Results!E$5:E$15784,$C$4+$B96),"") -> FC Schalke 04 | G96: =IF($C96,INDEX(Results!F$5:F$15784,$C$4+$B96),"") -> 3 | H96: =IF($C96,INDEX(Results!G$5:G$15784,$C$4+$B96),"") -> 1 | I96: 3 | J96: 0
B97: 91 | C97: =B97<=Control!$C$17 -> TRUE | D97: =IF($C97,INDEX(Results!C$5:C$15784,$C$4+$B97),"") -> 11 | E97: =IF($C97,INDEX(Results!D$5:D$15784,$C$4+$B97),"") -> Eintracht Frankfurt | F97: =IF($C97,INDEX(Results!E$5:E$15784,$C$4+$B97),"") -> FC Bayern München | G97: =IF($C97,INDEX(Results!F$5:F$15784,$C$4+$B97),"") -> 0 | H97: =IF($C97,INDEX(Results!G$5:G$15784,$C$4+$B97),"") -> 0 | I97: 1 | J97: 1
B98: 92 | C98: =B98<=Control!$C$17 -> TRUE | D98: =IF($C98,INDEX(Results!C$5:C$15784,$C$4+$B98),"") -> 11 | E98: =IF($C98,INDEX(Results!D$5:D$15784,$C$4+$B98),"") -> FC Augsburg | F98: =IF($C98,INDEX(Results!E$5:E$15784,$C$4+$B98),"") -> FSV Mainz 05 | G98: =IF($C98,INDEX(Results!F$5:F$15784,$C$4+$B98),"") -> 3 | H98: =IF($C98,INDEX(Results!G$5:G$15784,$C$4+$B98),"") -> 3 | I98: 1 | J98: 1
B99: 93 | C99: =B99<=Control!$C$17 -> TRUE | D99: =IF($C99,INDEX(Results!C$5:C$15784,$C$4+$B99),"") -> 11 | E99: =IF($C99,INDEX(Results!D$5:D$15784,$C$4+$B99),"") -> 1.FC Köln | F99: =IF($C99,INDEX(Results!E$5:E$15784,$C$4+$B99),"") -> TSG 1899 Hoffenheim | G99: =IF($C99,INDEX(Results!F$5:F$15784,$C$4+$B99),"") -> 0 | H99: =IF($C99,INDEX(Results!G$5:G$15784,$C$4+$B99),"") -> 0 | I99: 1 | J99: 1
B100: 94 | C100: =B100<=Control!$C$17 -> TRUE | D100: =IF($C100,INDEX(Results!C$5:C$15784,$C$4+$B100),"") -> 11 | E100: =IF($C100,INDEX(Results!D$5:D$15784,$C$4+$B100),"") -> Hertha BSC Berlin | F100: =IF($C100,INDEX(Results!E$5:E$15784,$C$4+$B100),"") -> Borussia M'gladbach | G100: =IF($C100,INDEX(Results!F$5:F$15784,$C$4+$B100),"") -> 1 | H100: =IF($C100,INDEX(Results!G$5:G$15784,$C$4+$B100),"") -> 4 | I100: 0 | J100: 3
B101: 95 | C101: =B101<=Control!$C$17 -> TRUE | D101: =IF($C101,INDEX(Results!C$5:C$15784,$C$4+$B101),"") -> 11 | E101: =IF($C101,INDEX(Results!D$5:D$15784,$C$4+$B101),"") -> FC Schalke 04 | F101: =IF($C101,INDEX(Results!E$5:E$15784,$C$4+$B101),"") -> FC Ingolstadt | G101: =IF($C101,INDEX(Results!F$5:F$15784,$C$4+$B101),"") -> 1 | H101: =IF($C101,INDEX(Results!G$5:G$15784,$C$4+$B101),"") -> 1 | I101: 1 | J101: 1
B102: 96 | C102: =B102<=Control!$C$17 -> TRUE | D102: =IF($C102,INDEX(Results!C$5:C$15784,$C$4+$B102),"") -> 11 | E102: =IF($C102,INDEX(Results!D$5:D$15784,$C$4+$B102),"") -> Werder Bremen | F102: =IF($C102,INDEX(Results!E$5:E$15784,$C$4+$B102),"") -> Borussia Dortmund | G102: =IF($C102,INDEX(Results!F$5:F$15784,$C$4+$B102),"") -> 1 | H102: =IF($C102,INDEX(Results!G$5:G$15784,$C$4+$B102),"") -> 3 | I102: 0 | J102: 3
B103: 97 | C103: =B103<=Control!$C$17 -> TRUE | D103: =IF($C103,INDEX(Results!C$5:C$15784,$C$4+$B103),"") -> 11 | E103: =IF($C103,INDEX(Results!D$5:D$15784,$C$4+$B103),"") -> VfL Wolfsburg | F103: =IF($C103,INDEX(Results!E$5:E$15784,$C$4+$B103),"") -> Bayer Leverkusen | G103: =IF($C103,INDEX(Results!F$5:F$15784,$C$4+$B103),"") -> 2 | H103: =IF($C103,INDEX(Results!G$5:G$15784,$C$4+$B103),"") -> 1 | I103: 3 | J103: 0
B104: 98 | C104: =B104<=Control!$C$17 -> TRUE | D104: =IF($C104,INDEX(Results!C$5:C$15784,$C$4+$B104),"") -> 11 | E104: =IF($C104,INDEX(Results!D$5:D$15784,$C$4+$B104),"") -> Hamburger SV | F104: =IF($C104,INDEX(Results!E$5:E$15784,$C$4+$B104),"") -> Hannover 96 | G104: =IF($C104,INDEX(Results!F$5:F$15784,$C$4+$B104),"") -> 1 | H104: =IF($C104,INDEX(Results!G$5:G$15784,$C$4+$B104),"") -> 2 | I104: 0 | J104: 3
B105: 99 | C105: =B105<=Control!$C$17 -> TRUE | D105: =IF($C105,INDEX(Results!C$5:C$15784,$C$4+$B105),"") -> 11 | E105: =IF($C105,INDEX(Results!D$5:D$15784,$C$4+$B105),"") -> VfB Stuttgart | F105: =IF($C105,INDEX(Results!E$5:E$15784,$C$4+$B105),"") -> Darmstadt 98 | G105: =IF($C105,INDEX(Results!F$5:F$15784,$C$4+$B105),"") -> 2 | H105: =IF($C105,INDEX(Results!G$5:G$15784,$C$4+$B105),"") -> 0 | I105: 3 | J105: 0
B106: 100 | C106: =B106<=Control!$C$17 -> TRUE | D106: =IF($C106,INDEX(Results!C$5:C$15784,$C$4+$B106),"") -> 12 | E106: =IF($C106,INDEX(Results!D$5:D$15784,$C$4+$B106),"") -> Hannover 96 | F106: =IF($C106,INDEX(Results!E$5:E$15784,$C$4+$B106),"") -> Hertha BSC Berlin | G106: =IF($C106,INDEX(Results!F$5:F$15784,$C$4+$B106),"") -> 1 | H106: =IF($C106,INDEX(Results!G$5:G$15784,$C$4+$B106),"") -> 3 | I106: 0 | J106: 3
B107: 101 | C107: =B107<=Control!$C$17 -> TRUE | D107: =IF($C107,INDEX(Results!C$5:C$15784,$C$4+$B107),"") -> 12 | E107: =IF($C107,INDEX(Results!D$5:D$15784,$C$4+$B107),"") -> FC Bayern München | F107: =IF($C107,INDEX(Results!E$5:E$15784,$C$4+$B107),"") -> VfB Stuttgart | G107: =IF($C107,INDEX(Results!F$5:F$15784,$C$4+$B107),"") -> 4 | H107: =IF($C107,INDEX(Results!G$5:G$15784,$C$4+$B107),"") -> 0 | I107: 3 | J107: 0
B108: 102 | C108: =B108<=Control!$C$17 -> TRUE | D108: =IF($C108,INDEX(Results!C$5:C$15784,$C$4+$B108),"") -> 12 | E108: =IF($C108,INDEX(Results!D$5:D$15784,$C$4+$B108),"") -> Darmstadt 98 | F108: =IF($C108,INDEX(Results!E$5:E$15784,$C$4+$B108),"") -> Hamburger SV | G108: =IF($C108,INDEX(Results!F$5:F$15784,$C$4+$B108),"") -> 1 | H108: =IF($C108,INDEX(Results!G$5:G$15784,$C$4+$B108),"") -> 1 | I108: 1 | J108: 1
B109: 103 | C109: =B109<=Control!$C$17 -> TRUE | D109: =IF($C109,INDEX(Results!C$5:C$15784,$C$4+$B109),"") -> 12 | E109: =IF($C109,INDEX(Results!D$5:D$15784,$C$4+$B109),"") -> TSG 1899 Hoffenheim | F109: =IF($C109,INDEX(Results!E$5:E$15784,$C$4+$B109),"") -> Eintracht Frankfurt | G109: =IF($C109,INDEX(Results!F$5:F$15784,$C$4+$B109),"") -> 0 | H109: =IF($C109,INDEX(Results!G$5:G$15784,$C$4+$B109),"") -> 0 | I109: 1 | J109: 1
B110: 104 | C110: =B110<=Control!$C$17 -> TRUE | D110: =IF($C110,INDEX(Results!C$5:C$15784,$C$4+$B110),"") -> 12 | E110: =IF($C110,INDEX(Results!D$5:D$15784,$C$4+$B110),"") -> Bayer Leverkusen | F110: =IF($C110,INDEX(Results!E$5:E$15784,$C$4+$B110),"") -> 1.FC Köln | G110: =IF($C110,INDEX(Results!F$5:F$15784,$C$4+$B110),"") -> 1 | H110: =IF($C110,INDEX(Results!G$5:G$15784,$C$4+$B110),"") -> 2 | I110: 0 | J110: 3
B111: 105 | C111: =B111<=Control!$C$17 -> TRUE | D111: =IF($C111,INDEX(Results!C$5:C$15784,$C$4+$B111),"") -> 12 | E111: =IF($C111,INDEX(Results!D$5:D$15784,$C$4+$B111),"") -> FSV Mainz 05 | F111: =IF($C111,INDEX(Results!E$5:E$15784,$C$4+$B111),"") -> VfL Wolfsburg | G111: =IF($C111,INDEX(Results!F$5:F$15784,$C$4+$B111),"") -> 2 | H111: =IF($C111,INDEX(Results!G$5:G$15784,$C$4+$B111),"") -> 0 | I111: 3 | J111: 0
B112: 106 | C112: =B112<=Control!$C$17 -> TRUE | D112: =IF($C112,INDEX(Results!C$5:C$15784,$C$4+$B112),"") -> 12 | E112: =IF($C112,INDEX(Results!D$5:D$15784,$C$4+$B112),"") -> Borussia M'gladbach | F112: =IF($C112,INDEX(Results!E$5:E$15784,$C$4+$B112),"") -> FC Ingolstadt | G112: =IF($C112,INDEX(Results!F$5:F$15784,$C$4+$B112),"") -> 0 | H112: =IF($C112,INDEX(Results!G$5:G$15784,$C$4+$B112),"") -> 0 | I112: 1 | J112: 1
B113: 107 | C113: =B113<=Control!$C$17 -> TRUE | D113: =IF($C113,INDEX(Results!C$5:C$15784,$C$4+$B113),"") -> 12 | E113: =IF($C113,INDEX(Results!D$5:D$15784,$C$4+$B113),"") -> FC Augsburg | F113: =IF($C113,INDEX(Results!E$5:E$15784,$C$4+$B113),"") -> Werder Bremen | G113: =IF($C113,INDEX(Results!F$5:F$15784,$C$4+$B113),"") -> 1 | H113: =IF($C113,INDEX(Results!G$5:G$15784,$C$4+$B113),"") -> 2 | I113: 0 | J113: 3
B114: 108 | C114: =B114<=Control!$C$17 -> TRUE | D114: =IF($C114,INDEX(Results!C$5:C$15784,$C$4+$B114),"") -> 12 | E114: =IF($C114,INDEX(Results!D$5:D$15784,$C$4+$B114),"") -> Borussia Dortmund | F114: =IF($C114,INDEX(Results!E$5:E$15784,$C$4+$B114),"") -> FC Schalke 04 | G114: =IF($C114,INDEX(Results!F$5:F$15784,$C$4+$B114),"") -> 3 | H114: =IF($C114,INDEX(Results!G$5:G$15784,$C$4+$B114),"") -> 2 | I114: 3 | J114: 0
B115: 109 | C115: =B115<=Control!$C$17 -> TRUE | D115: =IF($C115,INDEX(Results!C$5:C$15784,$C$4+$B115),"") -> 13 | E115: =IF($C115,INDEX(Results!D$5:D$15784,$C$4+$B115),"") -> Hamburger SV | F115: =IF($C115,INDEX(Results!E$5:E$15784,$C$4+$B115),"") -> Borussia Dortmund | G115: =IF($C115,INDEX(Results!F$5:F$15784,$C$4+$B115),"") -> 3 | H115: =IF($C115,INDEX(Results!G$5:G$15784,$C$4+$B115),"") -> 1 | I115: 3 | J115: 0
B116: 110 | C116: =B116<=Control!$C$17 -> TRUE | D116: =IF($C116,INDEX(Results!C$5:C$15784,$C$4+$B116),"") -> 13 | E116: =IF($C116,INDEX(Results!D$5:D$15784,$C$4+$B116),"") -> Eintracht Frankfurt | F116: =IF($C116,INDEX(Results!E$5:E$15784,$C$4+$B116),"") -> Bayer Leverkusen | G116: =IF($C116,INDEX(Results!F$5:F$15784,$C$4+$B116),"") -> 1 | H116: =IF($C116,INDEX(Results!G$5:G$15784,$C$4+$B116),"") -> 3 | I116: 0 | J116: 3
B117: 111 | C117: =B117<=Control!$C$17 -> TRUE | D117: =IF($C117,INDEX(Results!C$5:C$15784,$C$4+$B117),"") -> 13 | E117: =IF($C117,INDEX(Results!D$5:D$15784,$C$4+$B117),"") -> 1.FC Köln | F117: =IF($C117,INDEX(Results!E$5:E$15784,$C$4+$B117),"") -> FSV Mainz 05 | G117: =IF($C117,INDEX(Results!F$5:F$15784,$C$4+$B117),"") -> 0 | H117: =IF($C117,INDEX(Results!G$5:G$15784,$C$4+$B117),"") -> 0 | I117: 1 | J117: 1
B118: 112 | C118: =B118<=Control!$C$17 -> TRUE | D118: =IF($C118,INDEX(Results!C$5:C$15784,$C$4+$B118),"") -> 13 | E118: =IF($C118,INDEX(Results!D$5:D$15784,$C$4+$B118),"") -> Borussia M'gladbach | F118: =IF($C118,INDEX(Results!E$5:E$15784,$C$4+$B118),"") -> Hannover 96 | G118: =IF($C118,INDEX(Results!F$5:F$15784,$C$4+$B118),"") -> 2 | H118: =IF($C118,INDEX(Results!G$5:G$15784,$C$4+$B118),"") -> 1 | I118: 3 | J118: 0
B119: 113 | C119: =B119<=Control!$C$17 -> TRUE | D119: =IF($C119,INDEX(Results!C$5:C$15784,$C$4+$B119),"") -> 13 | E119: =IF($C119,INDEX(Results!D$5:D$15784,$C$4+$B119),"") -> FC Schalke 04 | F119: =IF($C119,INDEX(Results!E$5:E$15784,$C$4+$B119),"") -> FC Bayern München | G119: =IF($C119,INDEX(Results!F$5:F$15784,$C$4+$B119),"") -> 1 | H119: =IF($C119,INDEX(Results!G$5:G$15784,$C$4+$B119),"") -> 3 | I119: 0 | J119: 3
B120: 114 | C120: =B120<=Control!$C$17 -> TRUE | D120: =IF($C120,INDEX(Results!C$5:C$15784,$C$4+$B120),"") -> 13 | E120: =IF($C120,INDEX(Results!D$5:D$15784,$C$4+$B120),"") -> VfB Stuttgart | F120: =IF($C120,INDEX(Results!E$5:E$15784,$C$4+$B120),"") -> FC Augsburg | G120: =IF($C120,INDEX(Results!F$5:F$15784,$C$4+$B120),"") -> 0 | H120: =IF($C120,INDEX(Results!G$5:G$15784,$C$4+$B120),"") -> 4 | I120: 0 | J120: 3
B121: 115 | C121: =B121<=Control!$C$17 -> TRUE | D121: =IF($C121,INDEX(Results!C$5:C$15784,$C$4+$B121),"") -> 13 | E121: =IF($C121,INDEX(Results!D$5:D$15784,$C$4+$B121),"") -> VfL Wolfsburg | F121: =IF($C121,INDEX(Results!E$5:E$15784,$C$4+$B121),"") -> Werder Bremen | G121: =IF($C121,INDEX(Results!F$5:F$15784,$C$4+$B121),"") -> 6 | H121: =IF($C121,INDEX(Results!G$5:G$15784,$C$4+$B121),"") -> 0 | I121: 3 | J121: 0
B122: 116 | C122: =B122<=Control!$C$17 -> TRUE | D122: =IF($C122,INDEX(Results!C$5:C$15784,$C$4+$B122),"") -> 13 | E122: =IF($C122,INDEX(Results!D$5:D$15784,$C$4+$B122),"") -> Hertha BSC Berlin | F122: =IF($C122,INDEX(Results!E$5:E$15784,$C$4+$B122),"") -> TSG 1899 Hoffenheim | G122: =IF($C122,INDEX(Results!F$5:F$15784,$C$4+$B122),"") -> 1 | H122: =IF($C122,INDEX(Results!G$5:G$15784,$C$4+$B122),"") -> 0 | I122: 3 | J122: 0
B123: 117 | C123: =B123<=Control!$C$17 -> TRUE | D123: =IF($C123,INDEX(Results!C$5:C$15784,$C$4+$B123),"") -> 13 | E123: =IF($C123,INDEX(Results!D$5:D$15784,$C$4+$B123),"") -> FC Ingolstadt | F123: =IF($C123,INDEX(Results!E$5:E$15784,$C$4+$B123),"") -> Darmstadt 98 | G123: =IF($C123,INDEX(Results!F$5:F$15784,$C$4+$B123),"") -> 3 | H123: =IF($C123,INDEX(Results!G$5:G$15784,$C$4+$B123),"") -> 1 | I123: 3 | J123: 0
B124: 118 | C124: =B124<=Control!$C$17 -> TRUE | D124: =IF($C124,INDEX(Results!C$5:C$15784,$C$4+$B124),"") -> 14 | E124: =IF($C124,INDEX(Results!D$5:D$15784,$C$4+$B124),"") -> Darmstadt 98 | F124: =IF($C124,INDEX(Results!E$5:E$15784,$C$4+$B124),"") -> 1.FC Köln | G124: =IF($C124,INDEX(Results!F$5:F$15784,$C$4+$B124),"") -> 0 | H124: =IF($C124,INDEX(Results!G$5:G$15784,$C$4+$B124),"") -> 0 | I124: 1 | J124: 1
B125: 119 | C125: =B125<=Control!$C$17 -> TRUE | D125: =IF($C125,INDEX(Results!C$5:C$15784,$C$4+$B125),"") -> 14 | E125: =IF($C125,INDEX(Results!D$5:D$15784,$C$4+$B125),"") -> FC Bayern München | F125: =IF($C125,INDEX(Results!E$5:E$15784,$C$4+$B125),"") -> Hertha BSC Berlin | G125: =IF($C125,INDEX(Results!F$5:F$15784,$C$4+$B125),"") -> 2 | H125: =IF($C125,INDEX(Results!G$5:G$15784,$C$4+$B125),"") -> 0 | I125: 3 | J125: 0
B126: 120 | C126: =B126<=Control!$C$17 -> TRUE | D126: =IF($C126,INDEX(Results!C$5:C$15784,$C$4+$B126),"") -> 14 | E126: =IF($C126,INDEX(Results!D$5:D$15784,$C$4+$B126),"") -> Hannover 96 | F126: =IF($C126,INDEX(Results!E$5:E$15784,$C$4+$B126),"") -> FC Ingolstadt | G126: =IF($C126,INDEX(Results!F$5:F$15784,$C$4+$B126),"") -> 4 | H126: =IF($C126,INDEX(Results!G$5:G$15784,$C$4+$B126),"") -> 0 | I126: 3 | J126: 0
B127: 121 | C127: =B127<=Control!$C$17 -> TRUE | D127: =IF($C127,INDEX(Results!C$5:C$15784,$C$4+$B127),"") -> 14 | E127: =IF($C127,INDEX(Results!D$5:D$15784,$C$4+$B127),"") -> TSG 1899 Hoffenheim | F127: =IF($C127,INDEX(Results!E$5:E$15784,$C$4+$B127),"") -> Borussia M'gladbach | G127: =IF($C127,INDEX(Results!F$5:F$15784,$C$4+$B127),"") -> 3 | H127: =IF($C127,INDEX(Results!G$5:G$15784,$C$4+$B127),"") -> 3 | I127: 1 | J127: 1
B128: 122 | C128: =B128<=Control!$C$17 -> TRUE | D128: =IF($C128,INDEX(Results!C$5:C$15784,$C$4+$B128),"") -> 14 | E128: =IF($C128,INDEX(Results!D$5:D$15784,$C$4+$B128),"") -> FSV Mainz 05 | F128: =IF($C128,INDEX(Results!E$5:E$15784,$C$4+$B128),"") -> Eintracht Frankfurt | G128: =IF($C128,INDEX(Results!F$5:F$15784,$C$4+$B128),"") -> 2 | H128: =IF($C128,INDEX(Results!G$5:G$15784,$C$4+$B128),"") -> 1 | I128: 3 | J128: 0
B129: 123 | C129: =B129<=Control!$C$17 -> TRUE | D129: =IF($C129,INDEX(Results!C$5:C$15784,$C$4+$B129),"") -> 14 | E129: =IF($C129,INDEX(Results!D$5:D$15784,$C$4+$B129),"") -> Werder Bremen | F129: =IF($C129,INDEX(Results!E$5:E$15784,$C$4+$B129),"") -> Hamburger SV | G129: =IF($C129,INDEX(Results!F$5:F$15784,$C$4+$B129),"") -> 1 | H129: =IF($C129,INDEX(Results!G$5:G$15784,$C$4+$B129),"") -> 3 | I129: 0 | J129: 3
B130: 124 | C130: =B130<=Control!$C$17 -> TRUE | D130: =IF($C130,INDEX(Results!C$5:C$15784,$C$4+$B130),"") -> 14 | E130: =IF($C130,INDEX(Results!D$5:D$15784,$C$4+$B130),"") -> FC Augsburg | F130: =IF($C130,INDEX(Results!E$5:E$15784,$C$4+$B130),"") -> VfL Wolfsburg | G130: =IF($C130,INDEX(Results!F$5:F$15784,$C$4+$B130),"") -> 0 | H130: =IF($C130,INDEX(Results!G$5:G$15784,$C$4+$B130),"") -> 0 | I130: 1 | J130: 1
B131: 125 | C131: =B131<=Control!$C$17 -> TRUE | D131: =IF($C131,INDEX(Results!C$5:C$15784,$C$4+$B131),"") -> 14 | E131: =IF($C131,INDEX(Results!D$5:D$15784,$C$4+$B131),"") -> Borussia Dortmund | F131: =IF($C131,INDEX(Results!E$5:E$15784,$C$4+$B131),"") -> VfB Stuttgart | G131: =IF($C131,INDEX(Results!F$5:F$15784,$C$4+$B131),"") -> 4 | H131: =IF($C131,INDEX(Results!G$5:G$15784,$C$4+$B131),"") -> 1 | I131: 3 | J131: 0
B132: 126 | C132: =B132<=Control!$C$17 -> TRUE | D132: =IF($C132,INDEX(Results!C$5:C$15784,$C$4+$B132),"") -> 14 | E132: =IF($C132,INDEX(Results!D$5:D$15784,$C$4+$B132),"") -> Bayer Leverkusen | F132: =IF($C132,INDEX(Results!E$5:E$15784,$C$4+$B132),"") -> FC Schalke 04 | G132: =IF($C132,INDEX(Results!F$5:F$15784,$C$4+$B132),"") -> 1 | H132: =IF($C132,INDEX(Results!G$5:G$15784,$C$4+$B132),"") -> 1 | I132: 1 | J132: 1
B133: 127 | C133: =B133<=Control!$C$17 -> TRUE | D133: =IF($C133,INDEX(Results!C$5:C$15784,$C$4+$B133),"") -> 15 | E133: =IF($C133,INDEX(Results!D$5:D$15784,$C$4+$B133),"") -> FC Schalke 04 | F133: =IF($C133,INDEX(Results!E$5:E$15784,$C$4+$B133),"") -> Hannover 96 | G133: =IF($C133,INDEX(Results!F$5:F$15784,$C$4+$B133),"") -> 3 | H133: =IF($C133,INDEX(Results!G$5:G$15784,$C$4+$B133),"") -> 1 | I133: 3 | J133: 0
B134: 128 | C134: =B134<=Control!$C$17 -> TRUE | D134: =IF($C134,INDEX(Results!C$5:C$15784,$C$4+$B134),"") -> 15 | E134: =IF($C134,INDEX(Results!D$5:D$15784,$C$4+$B134),"") -> 1.FC Köln | F134: =IF($C134,INDEX(Results!E$5:E$15784,$C$4+$B134),"") -> FC Augsburg | G134: =IF($C134,INDEX(Results!F$5:F$15784,$C$4+$B134),"") -> 0 | H134: =IF($C134,INDEX(Results!G$5:G$15784,$C$4+$B134),"") -> 1 | I134: 0 | J134: 3
B135: 129 | C135: =B135<=Control!$C$17 -> TRUE | D135: =IF($C135,INDEX(Results!C$5:C$15784,$C$4+$B135),"") -> 15 | E135: =IF($C135,INDEX(Results!D$5:D$15784,$C$4+$B135),"") -> Hamburger SV | F135: =IF($C135,INDEX(Results!E$5:E$15784,$C$4+$B135),"") -> FSV Mainz 05 | G135: =IF($C135,INDEX(Results!F$5:F$15784,$C$4+$B135),"") -> 1 | H135: =IF($C135,INDEX(Results!G$5:G$15784,$C$4+$B135),"") -> 3 | I135: =$C135*IF($G135>$H135,myPoints,IF($G135<$H135,0,1)) -> 0 | J135: =$C135*IF($G135>$H135,0,IF($G135<$H135,myPoints,1)) -> 3
B136: 130 | C136: =B136<=Control!$C$17 -> TRUE | D136: =IF($C136,INDEX(Results!C$5:C$15784,$C$4+$B136),"") -> 15 | E136: =IF($C136,INDEX(Results!D$5:D$15784,$C$4+$B136),"") -> Hertha BSC Berlin | F136: =IF($C136,INDEX(Results!E$5:E$15784,$C$4+$B136),"") -> Bayer Leverkusen | G136: =IF($C136,INDEX(Results!F$5:F$15784,$C$4+$B136),"") -> 2 | H136: =IF($C136,INDEX(Results!G$5:G$15784,$C$4+$B136),"") -> 1 | I136: 3 | J136: 0
B137: 131 | C137: =B137<=Control!$C$17 -> TRUE | D137: =IF($C137,INDEX(Results!C$5:C$15784,$C$4+$B137),"") -> 15 | E137: =IF($C137,INDEX(Results!D$5:D$15784,$C$4+$B137),"") -> FC Ingolstadt | F137: =IF($C137,INDEX(Results!E$5:E$15784,$C$4+$B137),"") -> TSG 1899 Hoffenheim | G137: =IF($C137,INDEX(Results!F$5:F$15784,$C$4+$B137),"") -> 1 | H137: =IF($C137,INDEX(Results!G$5:G$15784,$C$4+$B137),"") -> 1 | I137: 1 | J137: 1
B138: 132 | C138: =B138<=Control!$C$17 -> TRUE | D138: =IF($C138,INDEX(Results!C$5:C$15784,$C$4+$B138),"") -> 15 | E138: =IF($C138,INDEX(Results!D$5:D$15784,$C$4+$B138),"") -> Borussia M'gladbach | F138: =IF($C138,INDEX(Results!E$5:E$15784,$C$4+$B138),"") -> FC Bayern München | G138: =IF($C138,INDEX(Results!F$5:F$15784,$C$4+$B138),"") -> 3 | H138: =IF($C138,INDEX(Results!G$5:G$15784,$C$4+$B138),"") -> 1 | I138: 3 | J138: 0
B139: 133 | C139: =B139<=Control!$C$17 -> TRUE | D139: =IF($C139,INDEX(Results!C$5:C$15784,$C$4+$B139),"") -> 15 | E139: =IF($C139,INDEX(Results!D$5:D$15784,$C$4+$B139),"") -> VfL Wolfsburg | F139: =IF($C139,INDEX(Results!E$5:E$15784,$C$4+$B139),"") -> Borussia Dortmund | G139: =IF($C139,INDEX(Results!F$5:F$15784,$C$4+$B139),"") -> 1 | H139: =IF($C139,INDEX(Results!G$5:G$15784,$C$4+$B139),"") -> 2 | I139: 0 | J139: 3
B140: 134 | C140: =B140<=Control!$C$17 -> TRUE | D140: =IF($C140,INDEX(Results!C$5:C$15784,$C$4+$B140),"") -> 15 | E140: =IF($C140,INDEX(Results!D$5:D$15784,$C$4+$B140),"") -> Eintracht Frankfurt | F140: =IF($C140,INDEX(Results!E$5:E$15784,$C$4+$B140),"") -> Darmstadt 98 | G140: =IF($C140,INDEX(Results!F$5:F$15784,$C$4+$B140),"") -> 0 | H140: =IF($C140,INDEX(Results!G$5:G$15784,$C$4+$B140),"") -> 1 | I140: 0 | J140: 3
B141: 135 | C141: =B141<=Control!$C$17 -> TRUE | D141: =IF($C141,INDEX(Results!C$5:C$15784,$C$4+$B141),"") -> 15 | E141: =IF($C141,INDEX(Results!D$5:D$15784,$C$4+$B141),"") -> VfB Stuttgart | F141: =IF($C141,INDEX(Results!E$5:E$15784,$C$4+$B141),"") -> Werder Bremen | G141: =IF($C141,INDEX(Results!F$5:F$15784,$C$4+$B141),"") -> 1 | H141: =IF($C141,INDEX(Results!G$5:G$15784,$C$4+$B141),"") -> 1 | I141: 1 | J141: 1
B142: 136 | C142: =B142<=Control!$C$17 -> TRUE | D142: =IF($C142,INDEX(Results!C$5:C$15784,$C$4+$B142),"") -> 16 | E142: =IF($C142,INDEX(Results!D$5:D$15784,$C$4+$B142),"") -> FSV Mainz 05 | F142: =IF($C142,INDEX(Results!E$5:E$15784,$C$4+$B142),"") -> VfB Stuttgart | G142: =IF($C142,INDEX(Results!F$5:F$15784,$C$4+$B142),"") -> 0 | H142: =IF($C142,INDEX(Results!G$5:G$15784,$C$4+$B142),"") -> 0 | I142: 1 | J142: 1
B143: 137 | C143: =B143<=Control!$C$17 -> TRUE | D143: =IF($C143,INDEX(Results!C$5:C$15784,$C$4+$B143),"") -> 16 | E143: =IF($C143,INDEX(Results!D$5:D$15784,$C$4+$B143),"") -> FC Bayern München | F143: =IF($C143,INDEX(Results!E$5:E$15784,$C$4+$B143),"") -> FC Ingolstadt | G143: =IF($C143,INDEX(Results!F$5:F$15784,$C$4+$B143),"") -> 2 | H143: =IF($C143,INDEX(Results!G$5:G$15784,$C$4+$B143),"") -> 0 | I143: 3 | J143: 0
B144: 138 | C144: =B144<=Control!$C$17 -> TRUE | D144: =IF($C144,INDEX(Results!C$5:C$15784,$C$4+$B144),"") -> 16 | E144: =IF($C144,INDEX(Results!D$5:D$15784,$C$4+$B144),"") -> Darmstadt 98 | F144: =IF($C144,INDEX(Results!E$5:E$15784,$C$4+$B144),"") -> Hertha BSC Berlin | G144: =IF($C144,INDEX(Results!F$5:F$15784,$C$4+$B144),"") -> 0 | H144: =IF($C144,INDEX(Results!G$5:G$15784,$C$4+$B144),"") -> 4 | I144: 0 | J144: 3
B145: 139 | C145: =B145<=Control!$C$17 -> TRUE | D145: =IF($C145,INDEX(Results!C$5:C$15784,$C$4+$B145),"") -> 16 | E145: =IF($C145,INDEX(Results!D$5:D$15784,$C$4+$B145),"") -> TSG 1899 Hoffenheim | F145: =IF($C145,INDEX(Results!E$5:E$15784,$C$4+$B145),"") -> Hannover 96 | G145: =IF($C145,INDEX(Results!F$5:F$15784,$C$4+$B145),"") -> 1 | H145: =IF($C145,INDEX(Results!G$5:G$15784,$C$4+$B145),"") -> 0 | I145: 3 | J145: 0
B146: 140 | C146: =B146<=Control!$C$17 -> TRUE | D146: =IF($C146,INDEX(Results!C$5:C$15784,$C$4+$B146),"") -> 16 | E146: =IF($C146,INDEX(Results!D$5:D$15784,$C$4+$B146),"") -> Bayer Leverkusen | F146: =IF($C146,INDEX(Results!E$5:E$15784,$C$4+$B146),"") -> Borussia M'gladbach | G146: =IF($C146,INDEX(Results!F$5:F$15784,$C$4+$B146),"") -> 5 | H146: =IF($C146,INDEX(Results!G$5:G$15784,$C$4+$B146),"") -> 0 | I146: 3 | J146: 0
B147: 141 | C147: =B147<=Control!$C$17 -> TRUE | D147: =IF($C147,INDEX(Results!C$5:C$15784,$C$4+$B147),"") -> 16 | E147: =IF($C147,INDEX(Results!D$5:D$15784,$C$4+$B147),"") -> Werder Bremen | F147: =IF($C147,INDEX(Results!E$5:E$15784,$C$4+$B147),"") -> 1.FC Köln | G147: =IF($C147,INDEX(Results!F$5:F$15784,$C$4+$B147),"") -> 1 | H147: =IF($C147,INDEX(Results!G$5:G$15784,$C$4+$B147),"") -> 1 | I147: 1 | J147: 1
B148: 142 | C148: =B148<=Control!$C$17 -> TRUE | D148: =IF($C148,INDEX(Results!C$5:C$15784,$C$4+$B148),"") -> 16 | E148: =IF($C148,INDEX(Results!D$5:D$15784,$C$4+$B148),"") -> VfL Wolfsburg | F148: =IF($C148,INDEX(Results!E$5:E$15784,$C$4+$B148),"") -> Hamburger SV | G148: =IF($C148,INDEX(Results!F$5:F$15784,$C$4+$B148),"") -> 1 | H148: =IF($C148,INDEX(Results!G$5:G$15784,$C$4+$B148),"") -> 1 | I148: 1 | J148: 1
B149: 143 | C149: =B149<=Control!$C$17 -> TRUE | D149: =IF($C149,INDEX(Results!C$5:C$15784,$C$4+$B149),"") -> 16 | E149: =IF($C149,INDEX(Results!D$5:D$15784,$C$4+$B149),"") -> FC Augsburg | F149: =IF($C149,INDEX(Results!E$5:E$15784,$C$4+$B149),"") -> FC Schalke 04 | G149: =IF($C149,INDEX(Results!F$5:F$15784,$C$4+$B149),"") -> 2 | H149: =IF($C149,INDEX(Results!G$5:G$15784,$C$4+$B149),"") -> 1 | I149: 3 | J149: 0
B150: 144 | C150: =B150<=Control!$C$17 -> TRUE | D150: =IF($C150,INDEX(Results!C$5:C$15784,$C$4+$B150),"") -> 16 | E150: =IF($C150,INDEX(Results!D$5:D$15784,$C$4+$B150),"") -> Borussia Dortmund | F150: =IF($C150,INDEX(Results!E$5:E$15784,$C$4+$B150),"") -> Eintracht Frankfurt | G150: =IF($C150,INDEX(Results!F$5:F$15784,$C$4+$B150),"") -> 4 | H150: =IF($C150,INDEX(Results!G$5:G$15784,$C$4+$B150),"") -> 1 | I150: 3 | J150: 0
B151: 145 | C151: =B151<=Control!$C$17 -> TRUE | D151: =IF($C151,INDEX(Results!C$5:C$15784,$C$4+$B151),"") -> 17 | E151: =IF($C151,INDEX(Results!D$5:D$15784,$C$4+$B151),"") -> FC Schalke 04 | F151: =IF($C151,INDEX(Results!E$5:E$15784,$C$4+$B151),"") -> TSG 1899 Hoffenheim | G151: =IF($C151,INDEX(Results!F$5:F$15784,$C$4+$B151),"") -> 1 | H151: =IF($C151,INDEX(Results!G$5:G$15784,$C$4+$B151),"") -> 0 | I151: 3 | J151: 0
B152: 146 | C152: =B152<=Control!$C$17 -> TRUE | D152: =IF($C152,INDEX(Results!C$5:C$15784,$C$4+$B152),"") -> 17 | E152: =IF($C152,INDEX(Results!D$5:D$15784,$C$4+$B152),"") -> Eintracht Frankfurt | F152: =IF($C152,INDEX(Results!E$5:E$15784,$C$4+$B152),"") -> Werder Bremen | G152: =IF($C152,INDEX(Results!F$5:F$15784,$C$4+$B152),"") -> 2 | H152: =IF($C152,INDEX(Results!G$5:G$15784,$C$4+$B152),"") -> 1 | I152: 3 | J152: 0
B153: 147 | C153: =B153<=Control!$C$17 -> TRUE | D153: =IF($C153,INDEX(Results!C$5:C$15784,$C$4+$B153),"") -> 17 | E153: =IF($C153,INDEX(Results!D$5:D$15784,$C$4+$B153),"") -> 1.FC Köln | F153: =IF($C153,INDEX(Results!E$5:E$15784,$C$4+$B153),"") -> Borussia Dortmund | G153: =IF($C153,INDEX(Results!F$5:F$15784,$C$4+$B153),"") -> 2 | H153: =IF($C153,INDEX(Results!G$5:G$15784,$C$4+$B153),"") -> 1 | I153: 3 | J153: 0
B154: 148 | C154: =B154<=Control!$C$17 -> TRUE | D154: =IF($C154,INDEX(Results!C$5:C$15784,$C$4+$B154),"") -> 17 | E154: =IF($C154,INDEX(Results!D$5:D$15784,$C$4+$B154),"") -> Hamburger SV | F154: =IF($C154,INDEX(Results!E$5:E$15784,$C$4+$B154),"") -> FC Augsburg | G154: =IF($C154,INDEX(Results!F$5:F$15784,$C$4+$B154),"") -> 0 | H154: =IF($C154,INDEX(Results!G$5:G$15784,$C$4+$B154),"") -> 1 | I154: 0 | J154: 3
B155: 149 | C155: =B155<=Control!$C$17 -> TRUE | D155: =IF($C155,INDEX(Results!C$5:C$15784,$C$4+$B155),"") -> 17 | E155: =IF($C155,INDEX(Results!D$5:D$15784,$C$4+$B155),"") -> Hannover 96 | F155: =IF($C155,INDEX(Results!E$5:E$15784,$C$4+$B155),"") -> FC Bayern München | G155: =IF($C155,INDEX(Results!F$5:F$15784,$C$4+$B155),"") -> 0 | H155: =IF($C155,INDEX(Results!G$5:G$15784,$C$4+$B155),"") -> 1 | I155: 0 | J155: 3
B156: 150 | C156: =B156<=Control!$C$17 -> TRUE | D156: =IF($C156,INDEX(Results!C$5:C$15784,$C$4+$B156),"") -> 17 | E156: =IF($C156,INDEX(Results!D$5:D$15784,$C$4+$B156),"") -> FC Ingolstadt | F156: =IF($C156,INDEX(Results!E$5:E$15784,$C$4+$B156),"") -> Bayer Leverkusen | G156: =IF($C156,INDEX(Results!F$5:F$15784,$C$4+$B156),"") -> 0 | H156: =IF($C156,INDEX(Results!G$5:G$15784,$C$4+$B156),"") -> 1 | I156: 0 | J156: 3
B157: 151 | C157: =B157<=Control!$C$17 -> TRUE | D157: =IF($C157,INDEX(Results!C$5:C$15784,$C$4+$B157),"") -> 17 | E157: =IF($C157,INDEX(Results!D$5:D$15784,$C$4+$B157),"") -> VfB Stuttgart | F157: =IF($C157,INDEX(Results!E$5:E$15784,$C$4+$B157),"") -> VfL Wolfsburg | G157: =IF($C157,INDEX(Results!F$5:F$15784,$C$4+$B157),"") -> 3 | H157: =IF($C157,INDEX(Results!G$5:G$15784,$C$4+$B157),"") -> 1 | I157: 3 | J157: 0
B158: 152 | C158: =B158<=Control!$C$17 -> TRUE | D158: =IF($C158,INDEX(Results!C$5:C$15784,$C$4+$B158),"") -> 17 | E158: =IF($C158,INDEX(Results!D$5:D$15784,$C$4+$B158),"") -> Hertha BSC Berlin | F158: =IF($C158,INDEX(Results!E$5:E$15784,$C$4+$B158),"") -> FSV Mainz 05 | G158: =IF($C158,INDEX(Results!F$5:F$15784,$C$4+$B158),"") -> 2 | H158: =IF($C158,INDEX(Results!G$5:G$15784,$C$4+$B158),"") -> 0 | I158: 3 | J158: 0
B159: 153 | C159: =B159<=Control!$C$17 -> TRUE | D159: =IF($C159,INDEX(Results!C$5:C$15784,$C$4+$B159),"") -> 17 | E159: =IF($C159,INDEX(Results!D$5:D$15784,$C$4+$B159),"") -> Borussia M'gladbach | F159: =IF($C159,INDEX(Results!E$5:E$15784,$C$4+$B159),"") -> Darmstadt 98 | G159: =IF($C159,INDEX(Results!F$5:F$15784,$C$4+$B159),"") -> 3 | H159: =IF($C159,INDEX(Results!G$5:G$15784,$C$4+$B159),"") -> 2 | I159: 3 | J159: 0
B160: 154 | C160: =B160<=Control!$C$17 -> TRUE | D160: =IF($C160,INDEX(Results!C$5:C$15784,$C$4+$B160),"") -> 18 | E160: =IF($C160,INDEX(Results!D$5:D$15784,$C$4+$B160),"") -> Hamburger SV | F160: =IF($C160,INDEX(Results!E$5:E$15784,$C$4+$B160),"") -> FC Bayern München | G160: =IF($C160,INDEX(Results!F$5:F$15784,$C$4+$B160),"") -> 1 | H160: =IF($C160,INDEX(Results!G$5:G$15784,$C$4+$B160),"") -> 2 | I160: 0 | J160: 3
B161: 155 | C161: =B161<=Control!$C$17 -> TRUE | D161: =IF($C161,INDEX(Results!C$5:C$15784,$C$4+$B161),"") -> 18 | E161: =IF($C161,INDEX(Results!D$5:D$15784,$C$4+$B161),"") -> 1.FC Köln | F161: =IF($C161,INDEX(Results!E$5:E$15784,$C$4+$B161),"") -> VfB Stuttgart | G161: =IF($C161,INDEX(Results!F$5:F$15784,$C$4+$B161),"") -> 1 | H161: =IF($C161,INDEX(Results!G$5:G$15784,$C$4+$B161),"") -> 3 | I161: 0 | J161: 3
B162: 156 | C162: =B162<=Control!$C$17 -> TRUE | D162: =IF($C162,INDEX(Results!C$5:C$15784,$C$4+$B162),"") -> 18 | E162: =IF($C162,INDEX(Results!D$5:D$15784,$C$4+$B162),"") -> Hannover 96 | F162: =IF($C162,INDEX(Results!E$5:E$15784,$C$4+$B162),"") -> Darmstadt 98 | G162: =IF($C162,INDEX(Results!F$5:F$15784,$C$4+$B162),"") -> 1 | H162: =IF($C162,INDEX(Results!G$5:G$15784,$C$4+$B162),"") -> 2 | I162: 0 | J162: 3
B163: 157 | C163: =B163<=Control!$C$17 -> TRUE | D163: =IF($C163,INDEX(Results!C$5:C$15784,$C$4+$B163),"") -> 18 | E163: =IF($C163,INDEX(Results!D$5:D$15784,$C$4+$B163),"") -> Hertha BSC Berlin | F163: =IF($C163,INDEX(Results!E$5:E$15784,$C$4+$B163),"") -> FC Augsburg | G163: =IF($C163,INDEX(Results!F$5:F$15784,$C$4+$B163),"") -> 0 | H163: =IF($C163,INDEX(Results!G$5:G$15784,$C$4+$B163),"") -> 0 | I163: 1 | J163: 1
B164: 158 | C164: =B164<=Control!$C$17 -> TRUE | D164: =IF($C164,INDEX(Results!C$5:C$15784,$C$4+$B164),"") -> 18 | E164: =IF($C164,INDEX(Results!D$5:D$15784,$C$4+$B164),"") -> TSG 1899 Hoffenheim | F164: =IF($C164,INDEX(Results!E$5:E$15784,$C$4+$B164),"") -> Bayer Leverkusen | G164: =IF($C164,INDEX(Results!F$5:F$15784,$C$4+$B164),"") -> 1 | H164: =IF($C164,INDEX(Results!G$5:G$15784,$C$4+$B164),"") -> 1 | I164: 1 | J164: 1
B165: 159 | C165: =B165<=Control!$C$17 -> TRUE | D165: =IF($C165,INDEX(Results!C$5:C$15784,$C$4+$B165),"") -> 18 | E165: =IF($C165,INDEX(Results!D$5:D$15784,$C$4+$B165),"") -> FC Ingolstadt | F165: =IF($C165,INDEX(Results!E$5:E$15784,$C$4+$B165),"") -> FSV Mainz 05 | G165: =IF($C165,INDEX(Results!F$5:F$15784,$C$4+$B165),"") -> 1 | H165: =IF($C165,INDEX(Results!G$5:G$15784,$C$4+$B165),"") -> 0 | I165: 3 | J165: 0
B166: 160 | C166: =B166<=Control!$C$17 -> TRUE | D166: =IF($C166,INDEX(Results!C$5:C$15784,$C$4+$B166),"") -> 18 | E166: =IF($C166,INDEX(Results!D$5:D$15784,$C$4+$B166),"") -> Borussia M'gladbach | F166: =IF($C166,INDEX(Results!E$5:E$15784,$C$4+$B166),"") -> Borussia Dortmund | G166: =IF($C166,INDEX(Results!F$5:F$15784,$C$4+$B166),"") -> 1 | H166: =IF($C166,INDEX(Results!G$5:G$15784,$C$4+$B166),"") -> 3 | I166: 0 | J166: 3
B167: 161 | C167: =B167<=Control!$C$17 -> TRUE | D167: =IF($C167,INDEX(Results!C$5:C$15784,$C$4+$B167),"") -> 18 | E167: =IF($C167,INDEX(Results!D$5:D$15784,$C$4+$B167),"") -> Eintracht Frankfurt | F167: =IF($C167,INDEX(Results!E$5:E$15784,$C$4+$B167),"") -> VfL Wolfsburg | G167: =IF($C167,INDEX(Results!F$5:F$15784,$C$4+$B167),"") -> 3 | H167: =IF($C167,INDEX(Results!G$5:G$15784,$C$4+$B167),"") -> 2 | I167: 3 | J167: 0
B168: 162 | C168: =B168<=Control!$C$17 -> TRUE | D168: =IF($C168,INDEX(Results!C$5:C$15784,$C$4+$B168),"") -> 18 | E168: =IF($C168,INDEX(Results!D$5:D$15784,$C$4+$B168),"") -> FC Schalke 04 | F168: =IF($C168,INDEX(Results!E$5:E$15784,$C$4+$B168),"") -> Werder Bremen | G168: =IF($C168,INDEX(Results!F$5:F$15784,$C$4+$B168),"") -> 1 | H168: =IF($C168,INDEX(Results!G$5:G$15784,$C$4+$B168),"") -> 3 | I168: 0 | J168: 3
B169: 163 | C169: =B169<=Control!$C$17 -> TRUE | D169: =IF($C169,INDEX(Results!C$5:C$15784,$C$4+$B169),"") -> 19 | E169: =IF($C169,INDEX(Results!D$5:D$15784,$C$4+$B169),"") -> FSV Mainz 05 | F169: =IF($C169,INDEX(Results!E$5:E$15784,$C$4+$B169),"") -> Borussia M'gladbach | G169: =IF($C169,INDEX(Results!F$5:F$15784,$C$4+$B169),"") -> 1 | H169: =IF($C169,INDEX(Results!G$5:G$15784,$C$4+$B169),"") -> 0 | I169: 3 | J169: 0
B170: 164 | C170: =B170<=Control!$C$17 -> TRUE | D170: =IF($C170,INDEX(Results!C$5:C$15784,$C$4+$B170),"") -> 19 | E170: =IF($C170,INDEX(Results!D$5:D$15784,$C$4+$B170),"") -> FC Augsburg | F170: =IF($C170,INDEX(Results!E$5:E$15784,$C$4+$B170),"") -> Eintracht Frankfurt | G170: =IF($C170,INDEX(Results!F$5:F$15784,$C$4+$B170),"") -> 0 | H170: =IF($C170,INDEX(Results!G$5:G$15784,$C$4+$B170),"") -> 0 | I170: 1 | J170: 1
B171: 165 | C171: =B171<=Control!$C$17 -> TRUE | D171: =IF($C171,INDEX(Results!C$5:C$15784,$C$4+$B171),"") -> 19 | E171: =IF($C171,INDEX(Results!D$5:D$15784,$C$4+$B171),"") -> Darmstadt 98 | F171: =IF($C171,INDEX(Results!E$5:E$15784,$C$4+$B171),"") -> FC Schalke 04 | G171: =IF($C171,INDEX(Results!F$5:F$15784,$C$4+$B171),"") -> 0 | H171: =IF($C171,INDEX(Results!G$5:G$15784,$C$4+$B171),"") -> 2 | I171: 0 | J171: 3
B172: 166 | C172: =B172<=Control!$C$17 -> TRUE | D172: =IF($C172,INDEX(Results!C$5:C$15784,$C$4+$B172),"") -> 19 | E172: =IF($C172,INDEX(Results!D$5:D$15784,$C$4+$B172),"") -> Borussia Dortmund | F172: =IF($C172,INDEX(Results!E$5:E$15784,$C$4+$B172),"") -> FC Ingolstadt | G172: =IF($C172,INDEX(Results!F$5:F$15784,$C$4+$B172),"") -> 2 | H172: =IF($C172,INDEX(Results!G$5:G$15784,$C$4+$B172),"") -> 0 | I172: 3 | J172: 0
B173: 167 | C173: =B173<=Control!$C$17 -> TRUE | D173: =IF($C173,INDEX(Results!C$5:C$15784,$C$4+$B173),"") -> 19 | E173: =IF($C173,INDEX(Results!D$5:D$15784,$C$4+$B173),"") -> Bayer Leverkusen | F173: =IF($C173,INDEX(Results!E$5:E$15784,$C$4+$B173),"") -> Hannover 96 | G173: =IF($C173,INDEX(Results!F$5:F$15784,$C$4+$B173),"") -> 3 | H173: =IF($C173,INDEX(Results!G$5:G$15784,$C$4+$B173),"") -> 0 | I173: 3 | J173: 0
B174: 168 | C174: =B174<=Control!$C$17 -> TRUE | D174: =IF($C174,INDEX(Results!C$5:C$15784,$C$4+$B174),"") -> 19 | E174: =IF($C174,INDEX(Results!D$5:D$15784,$C$4+$B174),"") -> VfB Stuttgart | F174: =IF($C174,INDEX(Results!E$5:E$15784,$C$4+$B174),"") -> Hamburger SV | G174: =IF($C174,INDEX(Results!F$5:F$15784,$C$4+$B174),"") -> 2 | H174: =IF($C174,INDEX(Results!G$5:G$15784,$C$4+$B174),"") -> 1 | I174: 3 | J174: 0
B175: 169 | C175: =B175<=Control!$C$17 -> TRUE | D175: =IF($C175,INDEX(Results!C$5:C$15784,$C$4+$B175),"") -> 19 | E175: =IF($C175,INDEX(Results!D$5:D$15784,$C$4+$B175),"") -> Werder Bremen | F175: =IF($C175,INDEX(Results!E$5:E$15784,$C$4+$B175),"") -> Hertha BSC Berlin | G175: =IF($C175,INDEX(Results!F$5:F$15784,$C$4+$B175),"") -> 3 | H175: =IF($C175,INDEX(Results!G$5:G$15784,$C$4+$B175),"") -> 3 | I175: 1 | J175: 1
B176: 170 | C176: =B176<=Control!$C$17 -> TRUE | D176: =IF($C176,INDEX(Results!C$5:C$15784,$C$4+$B176),"") -> 19 | E176: =IF($C176,INDEX(Results!D$5:D$15784,$C$4+$B176),"") -> FC Bayern München | F176: =IF($C176,INDEX(Results!E$5:E$15784,$C$4+$B176),"") -> TSG 1899 Hoffenheim | G176: =IF($C176,INDEX(Results!F$5:F$15784,$C$4+$B176),"") -> 2 | H176: =IF($C176,INDEX(Results!G$5:G$15784,$C$4+$B176),"") -> 0 | I176: 3 | J176: 0
B177: 171 | C177: =B177<=Control!$C$17 -> TRUE | D177: =IF($C177,INDEX(Results!C$5:C$15784,$C$4+$B177),"") -> 19 | E177: =IF($C177,INDEX(Results!D$5:D$15784,$C$4+$B177),"") -> VfL Wolfsburg | F177: =IF($C177,INDEX(Results!E$5:E$15784,$C$4+$B177),"") -> 1.FC Köln | G177: =IF($C177,INDEX(Results!F$5:F$15784,$C$4+$B177),"") -> 1 | H177: =IF($C177,INDEX(Results!G$5:G$15784,$C$4+$B177),"") -> 1 | I177: 1 | J177: 1
B178: 172 | C178: =B178<=Control!$C$17 -> TRUE | D178: =IF($C178,INDEX(Results!C$5:C$15784,$C$4+$B178),"") -> 20 | E178: =IF($C178,INDEX(Results!D$5:D$15784,$C$4+$B178),"") -> Borussia M'gladbach | F178: =IF($C178,INDEX(Results!E$5:E$15784,$C$4+$B178),"") -> Werder Bremen | G178: =IF($C178,INDEX(Results!F$5:F$15784,$C$4+$B178),"") -> 5 | H178: =IF($C178,INDEX(Results!G$5:G$15784,$C$4+$B178),"") -> 1 | I178: 3 | J178: 0
B179: 173 | C179: =B179<=Control!$C$17 -> TRUE | D179: =IF($C179,INDEX(Results!C$5:C$15784,$C$4+$B179),"") -> 20 | E179: =IF($C179,INDEX(Results!D$5:D$15784,$C$4+$B179),"") -> Eintracht Frankfurt | F179: =IF($C179,INDEX(Results!E$5:E$15784,$C$4+$B179),"") -> VfB Stuttgart | G179: =IF($C179,INDEX(Results!F$5:F$15784,$C$4+$B179),"") -> 2 | H179: =IF($C179,INDEX(Results!G$5:G$15784,$C$4+$B179),"") -> 4 | I179: 0 | J179: 3
B180: 174 | C180: =B180<=Control!$C$17 -> TRUE | D180: =IF($C180,INDEX(Results!C$5:C$15784,$C$4+$B180),"") -> 20 | E180: =IF($C180,INDEX(Results!D$5:D$15784,$C$4+$B180),"") -> Hannover 96 | F180: =IF($C180,INDEX(Results!E$5:E$15784,$C$4+$B180),"") -> FSV Mainz 05 | G180: =IF($C180,INDEX(Results!F$5:F$15784,$C$4+$B180),"") -> 0 | H180: =IF($C180,INDEX(Results!G$5:G$15784,$C$4+$B180),"") -> 1 | I180: 0 | J180: 3
B181: 175 | C181: =B181<=Control!$C$17 -> TRUE | D181: =IF($C181,INDEX(Results!C$5:C$15784,$C$4+$B181),"") -> 20 | E181: =IF($C181,INDEX(Results!D$5:D$15784,$C$4+$B181),"") -> Hertha BSC Berlin | F181: =IF($C181,INDEX(Results!E$5:E$15784,$C$4+$B181),"") -> Borussia Dortmund | G181: =IF($C181,INDEX(Results!F$5:F$15784,$C$4+$B181),"") -> 0 | H181: =IF($C181,INDEX(Results!G$5:G$15784,$C$4+$B181),"") -> 0 | I181: 1 | J181: 1
B182: 176 | C182: =B182<=Control!$C$17 -> TRUE | D182: =IF($C182,INDEX(Results!C$5:C$15784,$C$4+$B182),"") -> 20 | E182: =IF($C182,INDEX(Results!D$5:D$15784,$C$4+$B182),"") -> FC Ingolstadt | F182: =IF($C182,INDEX(Results!E$5:E$15784,$C$4+$B182),"") -> FC Augsburg | G182: =IF($C182,INDEX(Results!F$5:F$15784,$C$4+$B182),"") -> 2 | H182: =IF($C182,INDEX(Results!G$5:G$15784,$C$4+$B182),"") -> 1 | I182: 3 | J182: 0
B183: 177 | C183: =B183<=Control!$C$17 -> TRUE | D183: =IF($C183,INDEX(Results!C$5:C$15784,$C$4+$B183),"") -> 20 | E183: =IF($C183,INDEX(Results!D$5:D$15784,$C$4+$B183),"") -> Bayer Leverkusen | F183: =IF($C183,INDEX(Results!E$5:E$15784,$C$4+$B183),"") -> FC Bayern München | G183: =IF($C183,INDEX(Results!F$5:F$15784,$C$4+$B183),"") -> 0 | H183: =IF($C183,INDEX(Results!G$5:G$15784,$C$4+$B183),"") -> 0 | I183: 1 | J183: 1
B184: 178 | C184: =B184<=Control!$C$17 -> TRUE | D184: =IF($C184,INDEX(Results!C$5:C$15784,$C$4+$B184),"") -> 20 | E184: =IF($C184,INDEX(Results!D$5:D$15784,$C$4+$B184),"") -> FC Schalke 04 | F184: =IF($C184,INDEX(Results!E$5:E$15784,$C$4+$B184),"") -> VfL Wolfsburg | G184: =IF($C184,INDEX(Results!F$5:F$15784,$C$4+$B184),"") -> 3 | H184: =IF($C184,INDEX(Results!G$5:G$15784,$C$4+$B184),"") -> 0 | I184: 3 | J184: 0
B185: 179 | C185: =B185<=Control!$C$17 -> TRUE | D185: =IF($C185,INDEX(Results!C$5:C$15784,$C$4+$B185),"") -> 20 | E185: =IF($C185,INDEX(Results!D$5:D$15784,$C$4+$B185),"") -> Hamburger SV | F185: =IF($C185,INDEX(Results!E$5:E$15784,$C$4+$B185),"") -> 1.FC Köln | G185: =IF($C185,INDEX(Results!F$5:F$15784,$C$4+$B185),"") -> 1 | H185: =IF($C185,INDEX(Results!G$5:G$15784,$C$4+$B185),"") -> 1 | I185: 1 | J185: 1
B186: 180 | C186: =B186<=Control!$C$17 -> TRUE | D186: =IF($C186,INDEX(Results!C$5:C$15784,$C$4+$B186),"") -> 20 | E186: =IF($C186,INDEX(Results!D$5:D$15784,$C$4+$B186),"") -> TSG 1899 Hoffenheim | F186: =IF($C186,INDEX(Results!E$5:E$15784,$C$4+$B186),"") -> Darmstadt 98 | G186: =IF($C186,INDEX(Results!F$5:F$15784,$C$4+$B186),"") -> 0 | H186: =IF($C186,INDEX(Results!G$5:G$15784,$C$4+$B186),"") -> 2 | I186: 0 | J186: 3
B187: 181 | C187: =B187<=Control!$C$17 -> TRUE | D187: =IF($C187,INDEX(Results!C$5:C$15784,$C$4+$B187),"") -> 21 | E187: =IF($C187,INDEX(Results!D$5:D$15784,$C$4+$B187),"") -> FSV Mainz 05 | F187: =IF($C187,INDEX(Results!E$5:E$15784,$C$4+$B187),"") -> FC Schalke 04 | G187: =IF($C187,INDEX(Results!F$5:F$15784,$C$4+$B187),"") -> 2 | H187: =IF($C187,INDEX(Results!G$5:G$15784,$C$4+$B187),"") -> 1 | I187: 3 | J187: 0
B188: 182 | C188: =B188<=Control!$C$17 -> TRUE | D188: =IF($C188,INDEX(Results!C$5:C$15784,$C$4+$B188),"") -> 21 | E188: =IF($C188,INDEX(Results!D$5:D$15784,$C$4+$B188),"") -> Darmstadt 98 | F188: =IF($C188,INDEX(Results!E$5:E$15784,$C$4+$B188),"") -> Bayer Leverkusen | G188: =IF($C188,INDEX(Results!F$5:F$15784,$C$4+$B188),"") -> 1 | H188: =IF($C188,INDEX(Results!G$5:G$15784,$C$4+$B188),"") -> 2 | I188: 0 | J188: 3
B189: 183 | C189: =B189<=Control!$C$17 -> TRUE | D189: =IF($C189,INDEX(Results!C$5:C$15784,$C$4+$B189),"") -> 21 | E189: =IF($C189,INDEX(Results!D$5:D$15784,$C$4+$B189),"") -> Borussia Dortmund | F189: =IF($C189,INDEX(Results!E$5:E$15784,$C$4+$B189),"") -> Hannover 96 | G189: =IF($C189,INDEX(Results!F$5:F$15784,$C$4+$B189),"") -> 1 | H189: =IF($C189,INDEX(Results!G$5:G$15784,$C$4+$B189),"") -> 0 | I189: 3 | J189: 0
B190: 184 | C190: =B190<=Control!$C$17 -> TRUE | D190: =IF($C190,INDEX(Results!C$5:C$15784,$C$4+$B190),"") -> 21 | E190: =IF($C190,INDEX(Results!D$5:D$15784,$C$4+$B190),"") -> 1.FC Köln | F190: =IF($C190,INDEX(Results!E$5:E$15784,$C$4+$B190),"") -> Eintracht Frankfurt | G190: =IF($C190,INDEX(Results!F$5:F$15784,$C$4+$B190),"") -> 3 | H190: =IF($C190,INDEX(Results!G$5:G$15784,$C$4+$B190),"") -> 1 | I190: 3 | J190: 0
B191: 185 | C191: =B191<=Control!$C$17 -> TRUE | D191: =IF($C191,INDEX(Results!C$5:C$15784,$C$4+$B191),"") -> 21 | E191: =IF($C191,INDEX(Results!D$5:D$15784,$C$4+$B191),"") -> VfB Stuttgart | F191: =IF($C191,INDEX(Results!E$5:E$15784,$C$4+$B191),"") -> Hertha BSC Berlin | G191: =IF($C191,INDEX(Results!F$5:F$15784,$C$4+$B191),"") -> 2 | H191: =IF($C191,INDEX(Results!G$5:G$15784,$C$4+$B191),"") -> 0 | I191: 3 | J191: 0
B192: 186 | C192: =B192<=Control!$C$17 -> TRUE | D192: =IF($C192,INDEX(Results!C$5:C$15784,$C$4+$B192),"") -> 21 | E192: =IF($C192,INDEX(Results!D$5:D$15784,$C$4+$B192),"") -> Werder Bremen | F192: =IF($C192,INDEX(Results!E$5:E$15784,$C$4+$B192),"") -> TSG 1899 Hoffenheim | G192: =IF($C192,INDEX(Results!F$5:F$15784,$C$4+$B192),"") -> 1 | H192: =IF($C192,INDEX(Results!G$5:G$15784,$C$4+$B192),"") -> 1 | I192: 1 | J192: 1
B193: 187 | C193: =B193<=Control!$C$17 -> TRUE | D193: =IF($C193,INDEX(Results!C$5:C$15784,$C$4+$B193),"") -> 21 | E193: =IF($C193,INDEX(Results!D$5:D$15784,$C$4+$B193),"") -> VfL Wolfsburg | F193: =IF($C193,INDEX(Results!E$5:E$15784,$C$4+$B193),"") -> FC Ingolstadt | G193: =IF($C193,INDEX(Results!F$5:F$15784,$C$4+$B193),"") -> 2 | H193: =IF($C193,INDEX(Results!G$5:G$15784,$C$4+$B193),"") -> 0 | I193: 3 | J193: 0
B194: 188 | C194: =B194<=Control!$C$17 -> TRUE | D194: =IF($C194,INDEX(Results!C$5:C$15784,$C$4+$B194),"") -> 21 | E194: =IF($C194,INDEX(Results!D$5:D$15784,$C$4+$B194),"") -> FC Augsburg | F194: =IF($C194,INDEX(Results!E$5:E$15784,$C$4+$B194),"") -> FC Bayern München | G194: =IF($C194,INDEX(Results!F$5:F$15784,$C$4+$B194),"") -> 1 | H194: =IF($C194,INDEX(Results!G$5:G$15784,$C$4+$B194),"") -> 3 | I194: 0 | J194: 3
B195: 189 | C195: =B195<=Control!$C$17 -> TRUE | D195: =IF($C195,INDEX(Results!C$5:C$15784,$C$4+$B195),"") -> 21 | E195: =IF($C195,INDEX(Results!D$5:D$15784,$C$4+$B195),"") -> Hamburger SV | F195: =IF($C195,INDEX(Results!E$5:E$15784,$C$4+$B195),"") -> Borussia M'gladbach | G195: =IF($C195,INDEX(Results!F$5:F$15784,$C$4+$B195),"") -> 3 | H195: =IF($C195,INDEX(Results!G$5:G$15784,$C$4+$B195),"") -> 2 | I195: 3 | J195: 0
B196: 190 | C196: =B196<=Control!$C$17 -> TRUE | D196: =IF($C196,INDEX(Results!C$5:C$15784,$C$4+$B196),"") -> 22 | E196: =IF($C196,INDEX(Results!D$5:D$15784,$C$4+$B196),"") -> Eintracht Frankfurt | F196: =IF($C196,INDEX(Results!E$5:E$15784,$C$4+$B196),"") -> Hamburger SV | G196: =IF($C196,INDEX(Results!F$5:F$15784,$C$4+$B196),"") -> 0 | H196: =IF($C196,INDEX(Results!G$5:G$15784,$C$4+$B196),"") -> 0 | I196: 1 | J196: 1
B197: 191 | C197: =B197<=Control!$C$17 -> TRUE | D197: =IF($C197,INDEX(Results!C$5:C$15784,$C$4+$B197),"") -> 22 | E197: =IF($C197,INDEX(Results!D$5:D$15784,$C$4+$B197),"") -> FC Bayern München | F197: =IF($C197,INDEX(Results!E$5:E$15784,$C$4+$B197),"") -> Darmstadt 98 | G197: =IF($C197,INDEX(Results!F$5:F$15784,$C$4+$B197),"") -> 3 | H197: =IF($C197,INDEX(Results!G$5:G$15784,$C$4+$B197),"") -> 1 | I197: 3 | J197: 0
B198: 192 | C198: =B198<=Control!$C$17 -> TRUE | D198: =IF($C198,INDEX(Results!C$5:C$15784,$C$4+$B198),"") -> 22 | E198: =IF($C198,INDEX(Results!D$5:D$15784,$C$4+$B198),"") -> Hertha BSC Berlin | F198: =IF($C198,INDEX(Results!E$5:E$15784,$C$4+$B198),"") -> VfL Wolfsburg | G198: =IF($C198,INDEX(Results!F$5:F$15784,$C$4+$B198),"") -> 1 | H198: =IF($C198,INDEX(Results!G$5:G$15784,$C$4+$B198),"") -> 1 | I198: 1 | J198: 1
B199: 193 | C199: =B199<=Control!$C$17 -> TRUE | D199: =IF($C199,INDEX(Results!C$5:C$15784,$C$4+$B199),"") -> 22 | E199: =IF($C199,INDEX(Results!D$5:D$15784,$C$4+$B199),"") -> TSG 1899 Hoffenheim | F199: =IF($C199,INDEX(Results!E$5:E$15784,$C$4+$B199),"") -> FSV Mainz 05 | G199: =IF($C199,INDEX(Results!F$5:F$15784,$C$4+$B199),"") -> 3 | H199: =IF($C199,INDEX(Results!G$5:G$15784,$C$4+$B199),"") -> 2 | I199: =$C199*IF($G199>$H199,myPoints,IF($G199<$H199,0,1)) -> 3 | J199: =$C199*IF($G199>$H199,0,IF($G199<$H199,myPoints,1)) -> 0
B200: 194 | C200: =B200<=Control!$C$17 -> TRUE | D200: =IF($C200,INDEX(Results!C$5:C$15784,$C$4+$B200),"") -> 22 | E200: =IF($C200,INDEX(Results!D$5:D$15784,$C$4+$B200),"") -> FC Ingolstadt | F200: =IF($C200,INDEX(Results!E$5:E$15784,$C$4+$B200),"") -> Werder Bremen | G200: =IF($C200,INDEX(Results!F$5:F$15784,$C$4+$B200),"") -> 2 | H200: =IF($C200,INDEX(Results!G$5:G$15784,$C$4+$B200),"") -> 0 | I200: 3 | J200: 0
B201: 195 | C201: =B201<=Control!$C$17 -> TRUE | D201: =IF($C201,INDEX(Results!C$5:C$15784,$C$4+$B201),"") -> 22 | E201: =IF($C201,INDEX(Results!D$5:D$15784,$C$4+$B201),"") -> Borussia M'gladbach | F201: =IF($C201,INDEX(Results!E$5:E$15784,$C$4+$B201),"") -> 1.FC Köln | G201: =IF($C201,INDEX(Results!F$5:F$15784,$C$4+$B201),"") -> 1 | H201: =IF($C201,INDEX(Results!G$5:G$15784,$C$4+$B201),"") -> 0 | I201: 3 | J201: 0
B202: 196 | C202: =B202<=Control!$C$17 -> TRUE | D202: =IF($C202,INDEX(Results!C$5:C$15784,$C$4+$B202),"") -> 22 | E202: =IF($C202,INDEX(Results!D$5:D$15784,$C$4+$B202),"") -> Hannover 96 | F202: =IF($C202,INDEX(Results!E$5:E$15784,$C$4+$B202),"") -> FC Augsburg | G202: =IF($C202,INDEX(Results!F$5:F$15784,$C$4+$B202),"") -> 0 | H202: =IF($C202,INDEX(Results!G$5:G$15784,$C$4+$B202),"") -> 1 | I202: 0 | J202: 3
B203: 197 | C203: =B203<=Control!$C$17 -> TRUE | D203: =IF($C203,INDEX(Results!C$5:C$15784,$C$4+$B203),"") -> 22 | E203: =IF($C203,INDEX(Results!D$5:D$15784,$C$4+$B203),"") -> Bayer Leverkusen | F203: =IF($C203,INDEX(Results!E$5:E$15784,$C$4+$B203),"") -> Borussia Dortmund | G203: =IF($C203,INDEX(Results!F$5:F$15784,$C$4+$B203),"") -> 0 | H203: =IF($C203,INDEX(Results!G$5:G$15784,$C$4+$B203),"") -> 1 | I203: 0 | J203: 3
... 109 more rows

Sheet Calculation Positions
B2: Calculations III: development of team positions in table (generated by VBA)
B4: # | C4: Season | D4: Team | E4: 1 | F4: 2 | G4: 3 | H4: 4 | I4: 5 | J4: 6 | K4: 7 | L4: 8 | M4: 9 | N4: 10 | O4: 11 | P4: 12 | Q4: 13 | R4: 14 | S4: 15 | T4: 16 | U4: 17 | V4: 18 | W4: 19 | X4: 20 | Y4: 21 | Z4: 22 | AA4: 23 | AB4: 24 | AC4: 25 | AD4: 26 | AE4: 27 | AF4: 28 | AG4: 29 | AH4: 30 | AI4: 31 | AJ4: 32 | AK4: 33 | AL4: 34
B5: 1 | C5: =Control!$D$5 -> 2015/2016 | D5: ='Calculation Table'!H8 -> FC Bayern München | E5: 1 | F5: 2 | G5: 2 | H5: 2 | I5: 2 | J5: 1 | K5: 1 | L5: 1 | M5: 1 | N5: 1 | O5: 1 | P5: 1 | Q5: 1 | R5: 1 | S5: 1 | T5: 1 | U5: 1 | V5: 1 | W5: 1 | X5: 1 | Y5: 1 | Z5: 1 | AA5: 1 | AB5: 1 | AC5: 1 | AD5: 1 | AE5: 1 | AF5: 1 | AG5: 1 | AH5: 1 | AI5: 1 | AJ5: 1 | AK5: 1 | AL5: 1
B6: 2 | C6: =Control!$D$5 -> 2015/2016 | D6: ='Calculation Table'!H9 -> FC Augsburg | E6: 14 | F6: 14 | G6: 15 | H6: 14 | I6: 14 | J6: 14 | K6: 16 | L6: 16 | M6: 18 | N6: 18 | O6: 18 | P6: 18 | Q6: 17 | R6: 16 | S6: 16 | T6: 13 | U6: 12 | V6: 13 | W6: 12 | X6: 14 | Y6: 14 | Z6: 13 | AA6: 13 | AB6: 13 | AC6: 14 | AD6: 13 | AE6: 15 | AF6: 16 | AG6: 15 | AH6: 14 | AI6: 12 | AJ6: 12 | AK6: 11 | AL6: 12
B7: 3 | C7: =Control!$D$5 -> 2015/2016 | D7: ='Calculation Table'!H10 -> Darmstadt 98 | E7: 10 | F7: 11 | G7: 12 | H7: 11 | I7: 12 | J7: 10 | K7: 9 | L7: 10 | M7: 9 | N7: 11 | O7: 13 | P7: 13 | Q7: 13 | R7: 12 | S7: 12 | T7: 12 | U7: 13 | V7: 12 | W7: 14 | X7: 11 | Y7: 13 | Z7: 14 | AA7: 14 | AB7: 14 | AC7: 15 | AD7: 14 | AE7: 13 | AF7: 13 | AG7: 13 | AH7: 11 | AI7: 13 | AJ7: 14 | AK7: 13 | AL7: 14
B8: 4 | C8: =Control!$D$5 -> 2015/2016 | D8: ='Calculation Table'!H11 -> Borussia Dortmund | E8: 2 | F8: 1 | G8: 1 | H8: 1 | I8: 1 | J8: 2 | K8: 2 | L8: 2 | M8: 2 | N8: 2 | O8: 2 | P8: 2 | Q8: 2 | R8: 2 | S8: 2 | T8: 2 | U8: 2 | V8: 2 | W8: 2 | X8: 2 | Y8: 2 | Z8: 2 | AA8: 2 | AB8: 2 | AC8: 2 | AD8: 2 | AE8: 2 | AF8: 2 | AG8: 2 | AH8: 2 | AI8: 2 | AJ8: 2 | AK8: 2 | AL8: 2
B9: 5 | C9: =Control!$D$5 -> 2015/2016 | D9: ='Calculation Table'!H12 -> Bayer Leverkusen | E9: 6 | F9: 3 | G9: 6 | H9: 13 | I9: 13 | J9: 11 | K9: 5 | L9: 7 | M9: 7 | N9: 6 | O9: 7 | P9: 8 | Q9: 6 | R9: 6 | S9: 8 | T9: 6 | U9: 5 | V9: 5 | W9: 4 | X9: 5 | Y9: 3 | Z9: 4 | AA9: 6 | AB9: 7 | AC9: 8 | AD9: 7 | AE9: 6 | AF9: 5 | AG9: 4 | AH9: 3 | AI9: 3 | AJ9: 3 | AK9: 3 | AL9: 3
B10: 6 | C10: =Control!$D$5 -> 2015/2016 | D10: ='Calculation Table'!H13 -> FSV Mainz 05 | E10: 13 | F10: 8 | G10: 5 | H10: 10 | I10: 7 | J10: 9 | K10: 12 | L10: 8 | M10: 11 | N10: 13 | O10: 12 | P10: 9 | Q10: 11 | R10: 9 | S10: 7 | T10: 7 | U10: 8 | V10: 8 | W10: 8 | X10: 7 | Y10: 6 | Z10: 7 | AA10: 5 | AB10: 5 | AC10: 5 | AD10: 6 | AE10: 7 | AF10: 6 | AG10: 6 | AH10: 6 | AI10: 6 | AJ10: 7 | AK10: 5 | AL10: 6
B11: 7 | C11: =Control!$D$5 -> 2015/2016 | D11: ='Calculation Table'!H14 -> Werder Bremen | E11: 16 | F11: 15 | G11: 11 | H11: 6 | I11: 9 | J11: 13 | K11: 13 | L11: 14 | M11: 16 | N11: 14 | O11: 16 | P11: 14 | Q11: 14 | R11: 15 | S11: 15 | T11: 14 | U11: 16 | V11: 16 | W11: 16 | X11: 16 | Y11: 16 | Z11: 16 | AA11: 16 | AB11: 15 | AC11: 13 | AD11: 15 | AE11: 14 | AF11: 15 | AG11: 16 | AH11: 16 | AI11: 16 | AJ11: 15 | AK11: 16 | AL11: 13
B12: 8 | C12: =Control!$D$5 -> 2015/2016 | D12: ='Calculation Table'!H15 -> VfB Stuttgart | E12: 15 | F12: 17 | G12: 17 | H12: 17 | I12: 17 | J12: 15 | K12: 17 | L12: 18 | M12: 15 | N12: 16 | O12: 15 | P12: 16 | Q12: 16 | R12: 17 | S12: 17 | T12: 18 | U12: 15 | V12: 15 | W12: 15 | X12: 12 | Y12: 10 | Z12: 11 | AA12: 12 | AB12: 12 | AC12: 11 | AD12: 11 | AE12: 11 | AF12: 12 | AG12: 12 | AH12: 15 | AI12: 15 | AJ12: 17 | AK12: 17 | AL12: 17
B13: 9 | C13: =Control!$D$5 -> 2015/2016 | D13: ='Calculation Table'!H16 -> VfL Wolfsburg | E13: 5 | F13: 6 | G13: 3 | H13: 3 | I13: 3 | J13: 4 | K13: 4 | L13: 9 | M13: 4 | N13: 4 | O13: 3 | P13: 3 | Q13: 3 | R13: 3 | S13: 5 | T13: 4 | U13: 7 | V13: 7 | W13: 7 | X13: 8 | Y13: 8 | Z13: 8 | AA13: 8 | AB13: 8 | AC13: 7 | AD13: 8 | AE13: 8 | AF13: 8 | AG13: 8 | AH13: 8 | AI13: 10 | AJ13: 10 | AK13: 8 | AL13: 8
B14: 10 | C14: =Control!$D$5 -> 2015/2016 | D14: ='Calculation Table'!H17 -> Hertha BSC Berlin | E14: 8 | F14: 7 | G14: 10 | H14: 7 | I14: 11 | J14: 5 | K14: 6 | L14: 4 | M14: 5 | N14: 5 | O14: 6 | P14: 4 | Q14: 4 | R14: 5 | S14: 4 | T14: 3 | U14: 3 | V14: 3 | W14: 3 | X14: 3 | Y14: 4 | Z14: 3 | AA14: 3 | AB14: 3 | AC14: 3 | AD14: 3 | AE14: 3 | AF14: 3 | AG14: 3 | AH14: 4 | AI14: 4 | AJ14: 5 | AK14: 6 | AL14: 7
B15: 11 | C15: =Control!$D$5 -> 2015/2016 | D15: ='Calculation Table'!H18 -> Eintracht Frankfurt | E15: 12 | F15: 13 | G15: 8 | H15: 4 | I15: 8 | J15: 12 | K15: 11 | L15: 12 | M15: 13 | N15: 12 | O15: 11 | P15: 12 | Q15: 12 | R15: 13 | S15: 13 | T15: 15 | U15: 14 | V15: 14 | W15: 13 | X15: 15 | Y15: 15 | Z15: 15 | AA15: 15 | AB15: 16 | AC15: 16 | AD15: 16 | AE15: 17 | AF15: 17 | AG15: 17 | AH15: 17 | AI15: 17 | AJ15: 16 | AK15: 15 | AL15: 16
B16: 12 | C16: =Control!$D$5 -> 2015/2016 | D16: ='Calculation Table'!H19 -> 1.FC Köln | E16: 4 | F16: 5 | G16: 4 | H16: 8 | I16: 5 | J16: 7 | K16: 7 | L16: 5 | M16: 6 | N16: 9 | O16: 9 | P16: 7 | Q16: 9 | R16: 10 | S16: 10 | T16: 10 | U16: 9 | V16: 9 | W16: 9 | X16: 9 | Y16: 9 | Z16: 9 | AA16: 10 | AB16: 10 | AC16: 12 | AD16: 9 | AE16: 9 | AF16: 11 | AG16: 11 | AH16: 10 | AI16: 8 | AJ16: 8 | AK16: 9 | AL16: 9
B17: 13 | C17: =Control!$D$5 -> 2015/2016 | D17: ='Calculation Table'!H20 -> Hamburger SV | E17: 18 | F17: 10 | G17: 13 | H17: 12 | I17: 10 | J17: 6 | K17: 10 | L17: 11 | M17: 12 | N17: 10 | O17: 10 | P17: 11 | Q17: 10 | R17: 7 | S17: 9 | T17: 9 | U17: 10 | V17: 11 | W17: 11 | X17: 13 | Y17: 11 | Z17: 12 | AA17: 11 | AB17: 11 | AC17: 10 | AD17: 12 | AE17: 12 | AF17: 10 | AG17: 10 | AH17: 12 | AI17: 11 | AJ17: 11 | AK17: 12 | AL17: 10
B18: 14 | C18: =Control!$D$5 -> 2015/2016 | D18: ='Calculation Table'!H21 -> Hannover 96 | E18: 9 | F18: 12 | G18: 16 | H18: 16 | I18: 16 | J18: 18 | K18: 18 | L18: 17 | M18: 14 | N18: 15 | O18: 14 | P18: 15 | Q18: 15 | R18: 14 | S18: 14 | T18: 16 | U18: 17 | V18: 18 | W18: 18 | X18: 18 | Y18: 18 | Z18: 18 | AA18: 18 | AB18: 18 | AC18: 18 | AD18: 18 | AE18: 18 | AF18: 18 | AG18: 18 | AH18: 18 | AI18: 18 | AJ18: 18 | AK18: 18 | AL18: 18
B19: 15 | C19: =Control!$D$5 -> 2015/2016 | D19: ='Calculation Table'!H22 -> TSG 1899 Hoffenheim | E19: 11 | F19: 16 | G19: 14 | H19: 15 | I19: 15 | J19: 17 | K19: 15 | L19: 15 | M19: 17 | N19: 17 | O19: 17 | P19: 17 | Q19: 18 | R19: 18 | S19: 18 | T19: 17 | U19: 18 | V19: 17 | W19: 17 | X19: 17 | Y19: 17 | Z19: 17 | AA19: 17 | AB19: 17 | AC19: 17 | AD19: 17 | AE19: 16 | AF19: 14 | AG19: 14 | AH19: 13 | AI19: 14 | AJ19: 13 | AK19: 14 | AL19: 15
B20: 16 | C20: =Control!$D$5 -> 2015/2016 | D20: ='Calculation Table'!H23 -> FC Schalke 04 | E20: 3 | F20: 4 | G20: 9 | H20: 5 | I20: 4 | J20: 3 | K20: 3 | L20: 3 | M20: 3 | N20: 3 | O20: 4 | P20: 5 | Q20: 7 | R20: 8 | S20: 6 | T20: 8 | U20: 6 | V20: 6 | W20: 5 | X20: 4 | Y20: 5 | Z20: 6 | AA20: 7 | AB20: 6 | AC20: 4 | AD20: 5 | AE20: 4 | AF20: 7 | AG20: 7 | AH20: 7 | AI20: 7 | AJ20: 6 | AK20: 7 | AL20: 5
B21: 17 | C21: =Control!$D$5 -> 2015/2016 | D21: ='Calculation Table'!H24 -> FC Ingolstadt | E21: 7 | F21: 9 | G21: 7 | H21: 9 | I21: 6 | J21: 8 | K21: 8 | L21: 6 | M21: 8 | N21: 8 | O21: 8 | P21: 10 | Q21: 8 | R21: 11 | S21: 11 | T21: 11 | U21: 11 | V21: 10 | W21: 10 | X21: 10 | Y21: 12 | Z21: 10 | AA21: 9 | AB21: 9 | AC21: 9 | AD21: 10 | AE21: 10 | AF21: 9 | AG21: 9 | AH21: 9 | AI21: 9 | AJ21: 9 | AK21: 10 | AL21: 11
B22: 18 | C22: =Control!$D$5 -> 2015/2016 | D22: ='Calculation Table'!H25 -> Borussia M'gladbach | E22: 17 | F22: 18 | G22: 18 | H22: 18 | I22: 18 | J22: 16 | K22: 14 | L22: 13 | M22: 10 | N22: 7 | O22: 5 | P22: 6 | Q22: 5 | R22: 4 | S22: 3 | T22: 5 | U22: 4 | V22: 4 | W22: 6 | X22: 6 | Y22: 7 | Z22: 5 | AA22: 4 | AB22: 4 | AC22: 6 | AD22: 4 | AE22: 5 | AF22: 4 | AG22: 5 | AH22: 5 | AI22: 5 | AJ22: 4 | AK22: 4 | AL22: 4

Sheet Control
B2: Control
B4: Selected Matchday | C4: 34
B5: Season | C5: 52 | D5: =INDEX($B$21:$B$72,C5,1) -> 2015/2016
B6: Sort by | C6: 7
B8: Point Rule | C8: 1
B9: Actual Point Rule
B10: 2 Points for a Win
B11: 3 Points for a Win
B14: Points for Win | C14: =CHOOSE(C8,INDEX($C$21:$C$72,mySeason),2,3) -> 3
B15: Teams | C15: =INDEX($D$21:$D$72,mySeason) -> 18
B16: Matchdays | C16: =2*(C15-1) -> 34
B17: Matches | C17: =C15*(C15-1) -> 306
B18: Matches per day | C18: =C15/2 -> 9
B20: Seasons | C20: Points for Win | D20: Teams
B21: 1963/1964 | C21: 2 | D21: 16
B22: 1964/1965 | C22: 2 | D22: 16
B23: 1965/1966 | C23: 2 | D23: 18
B24: 1966/1967 | C24: 2 | D24: 18
B25: 1967/1968 | C25: 2 | D25: 18
B26: 1968/1969 | C26: 2 | D26: 18
B27: 1969/1970 | C27: 2 | D27: 18
B28: 1970/1971 | C28: 2 | D28: 18
B29: 1971/1972 | C29: 2 | D29: 18
B30: 1972/1973 | C30: 2 | D30: 18
B31: 1973/1974 | C31: 2 | D31: 18
B32: 1974/1975 | C32: 2 | D32: 18
B33: 1975/1976 | C33: 2 | D33: 18
B34: 1976/1977 | C34: 2 | D34: 18
B35: 1977/1978 | C35: 2 | D35: 18
B36: 1978/1979 | C36: 2 | D36: 18
B37: 1979/1980 | C37: 2 | D37: 18
B38: 1980/1981 | C38: 2 | D38: 18
B39: 1981/1982 | C39: 2 | D39: 18
B40: 1982/1983 | C40: 2 | D40: 18
B41: 1983/1984 | C41: 2 | D41: 18
B42: 1984/1985 | C42: 2 | D42: 18
B43: 1985/1986 | C43: 2 | D43: 18
B44: 1986/1987 | C44: 2 | D44: 18
B45: 1987/1988 | C45: 2 | D45: 18
B46: 1988/1989 | C46: 2 | D46: 18
B47: 1989/1990 | C47: 2 | D47: 18
B48: 1990/1991 | C48: 2 | D48: 18
B49: 1992/1993 | C49: 2 | D49: 18
B50: 1993/1994 | C50: 2 | D50: 18
B51: 1994/1995 | C51: 2 | D51: 18
B52: 1995/1996 | C52: 3 | D52: 18
B53: 1996/1997 | C53: 3 | D53: 18
B54: 1997/1998 | C54: 3 | D54: 18
B55: 1998/1999 | C55: 3 | D55: 18
B56: 1999/2000 | C56: 3 | D56: 18
B57: 2000/2001 | C57: 3 | D57: 18
B58: 2001/2002 | C58: 3 | D58: 18
B59: 2002/2003 | C59: 3 | D59: 18
B60: 2003/2004 | C60: 3 | D60: 18
B61: 2004/2005 | C61: 3 | D61: 18
B62: 2005/2006 | C62: 3 | D62: 18
B63: 2006/2007 | C63: 3 | D63: 18
B64: 2007/2008 | C64: 3 | D64: 18
B65: 2008/2009 | C65: 3 | D65: 18
B66: 2009/2010 | C66: 3 | D66: 18
B67: 2010/2011 | C67: 3 | D67: 18
B68: 2011/2012 | C68: 3 | D68: 18
B69: 2012/2013 | C69: 3 | D69: 18
B70: 2013/2014 | C70: 3 | D70: 18
B71: 2014/2015 | C71: 3 | D71: 18
B72: 2015/2016 | C72: 3 | D72: 18
